Col. Code,Agency,Check No.,Payee,Month,Day,Year,Purpose,Source,Amount
48,J.F. Drake State,10031822,ACT,Nov,13,2009,Materials and Supplies,UNRESTRICTED,"$1,200.00"
48,J.F. Drake State,10031823,CM & F GROUP INC.,Nov,13,2009,Purchases for Resale,AUXILIARY,"$6,996.00"
48,J.F. Drake State,10031824,"DYNAMIC SECURITY, INC.",Nov,13,2009,Other Contractual Services,UNRESTRICTED,"$4,127.76"
48,J.F. Drake State,10031825,GATUR LAWN CARE,Nov,13,2009,Other Contractual Services,UNRESTRICTED,"$2,459.00"
48,J.F. Drake State,10031826,LOWE'S,Nov,13,2009,Maintenance and Repairs,UNRESTRICTED,$127.19
48,J.F. Drake State,10031826,LOWE'S,Nov,13,2009,Maintenance and Repairs,PLANT FUNDS,"$4,982.00"
48,J.F. Drake State,10031827,MCGRAW HILL EDUCATION,Nov,13,2009,Materials and Supplies,UNRESTRICTED,$218.57
48,J.F. Drake State,10031828,SAM'S CLUB/WALMART,Nov,13,2009,Memberships,UNRESTRICTED,$140.00
48,J.F. Drake State,10031828,SAM'S CLUB/WALMART,Nov,13,2009,Materials and Supplies,UNRESTRICTED,$50.00
48,J.F. Drake State,10031829,SEXTON WELDING SUPPLY,Nov,13,2009,Materials and Supplies,UNRESTRICTED,$173.56
48,J.F. Drake State,10031830,SOUTHERNLINC WIRELESS,Nov,13,2009,Communications,UNRESTRICTED,$127.20
48,J.F. Drake State,10031831,THE INTEGRITY GROUP,Nov,13,2009,Other Contractual Services,UNRESTRICTED,$90.00
48,J.F. Drake State,10031832,KRISTIN TREADWAY,Nov,13,2009,In-State Travel,CAREER COACHES,$132.17
48,J.F. Drake State,10031833,UPS,Nov,13,2009,Freight,UNRESTRICTED,$966.29
48,J.F. Drake State,10031645,ALA INDUST FOR THE BLIND,Oct,26,2009,Other Contractual Services,UNRESTRICTED,$140.00
48,J.F. Drake State,10031646,AMERICAN EXPRESS,Oct,26,2009,Out-of-State Travel,NAT'L SCIENCE FOUNDATION,"$2,980.00"
48,J.F. Drake State,10031647,DAWN LACKEY MARREN VANZO,Oct,26,2009,Other Contractual Services,UNRESTRICTED,$218.90
48,J.F. Drake State,10031648,HIGHLANDS OCCUPATIONAL ME,Oct,26,2009,Purchases for Resale,AUXILIARY,"$2,250.00"
48,J.F. Drake State,10031649,LAUREL STANDLEY PEFFER,Oct,26,2009,Other Contractual Services,UNRESTRICTED,$593.00
48,J.F. Drake State,10031650,MARETTA MARTIN,Oct,26,2009,Other Contractual Services,UNRESTRICTED,"$1,735.05"
48,J.F. Drake State,10031651,NCMPR,Oct,26,2009,Memberships,UNRESTRICTED,$200.00
48,J.F. Drake State,10031652,RENAISSANCE WASHINGTON DC,Oct,26,2009,Out-of-State Travel,NAT'L SCIENCE FOUNDATION,"$10,488.20"
48,J.F. Drake State,10031653,RUTHANNE SZENASI,Oct,26,2009,Other Contractual Services,UNRESTRICTED,$47.65
48,J.F. Drake State,10031544,KELSEY ELECTRIC,Oct,6,2009,Maintenance and Repairs,UNRESTRICTED,$700.90
48,J.F. Drake State,10031545,LAUREL STANDLEY PEFFER,Oct,6,2009,Other Contractual Services,UNRESTRICTED,$738.50
48,J.F. Drake State,10031546,SOUTHERNLINC WIRELESS,Oct,6,2009,Communications,UNRESTRICTED,$174.90
48,J.F. Drake State,10031547,UPS,Oct,6,2009,Freight,UNRESTRICTED,"$1,791.76"
48,J.F. Drake State,14903,HYACINTH BURTON,Oct,5,2009,Instructional Salaries - Tempo,UNRESTRICTED,$675.00
48,J.F. Drake State,14904,JERRY M HUMPHERY,Oct,5,2009,Instructional Salaries - Tempo,UNRESTRICTED,$975.94
48,J.F. Drake State,14905,ANTHONY MCDANIELS,Oct,5,2009,Support Personnel Salaries - S,CAREER COACHES,"$1,293.84"
48,J.F. Drake State,90011762,TROY M CAMPBELL,Oct,5,2009,Instructional Salaries - Tempo,UNRESTRICTED,"$1,276.88"
48,J.F. Drake State,90011763,CHRISTINE H DAVIS,Oct,5,2009,Instructional Salaries - Tempo,UNRESTRICTED,$225.00
48,J.F. Drake State,90011764,HENRY C HAWKINS,Oct,5,2009,Instructional Salaries - Tempo,UNRESTRICTED,"$1,252.50"
48,J.F. Drake State,90011765,PATRICIA RAMEY,Oct,5,2009,Instructional Salaries - Tempo,UNRESTRICTED,$695.50
48,J.F. Drake State,90011766,VERLINDSEY B STEWART,Oct,5,2009,Instructional Salaries - Regul,UNRESTRICTED,$222.22
48,J.F. Drake State,90011767,MIRIE WESTBROOK III,Oct,5,2009,Instructional Salaries - Tempo,UNRESTRICTED,$337.50
48,J.F. Drake State,90011768,KRISHALON WILKERSON,Oct,5,2009,Instructional Salaries - Tempo,UNRESTRICTED,$675.00
48,J.F. Drake State,14907,ANTHONY MCDANIELS,Oct,5,2009,Support Personnel Salaries - S,CAREER COACHES,$431.36
48,J.F. Drake State,90011769,JACKIE SMITH,Oct,5,2009,Other Professional Salaries -,ALLIED HEALTH CARRYOVER,$671.66
48,J.F. Drake State,10031515,"MCALPINE, HELEN",Oct,1,2009,In-State Travel,UNRESTRICTED,$499.30
48,J.F. Drake State,10031517,C & C BUILDING SERVICES,Oct,1,2009,Maintenance and Repairs,PLANT FUNDS,"$14,460.00"
48,J.F. Drake State,10031517,C & C BUILDING SERVICES,Oct,1,2009,Other Contractual Services,ARMY GRANT,"$7,560.00"
48,J.F. Drake State,10031519,C & C BUILDING SERVICES,Oct,1,2009,Maintenance and Repairs,PLANT FUNDS,"$14,444.00"
48,J.F. Drake State,10031519,C & C BUILDING SERVICES,Oct,1,2009,Other Contractual Services,ARMY GRANT,"$7,560.00"
48,J.F. Drake State,14898,JACKIE SMITH,Oct,1,2009,Other Professional Salaries -,ALLIED HEALTH CARRYOVER,"$2,124.66"
48,J.F. Drake State,20038960,TECHNICAL TRAINING AIDS,Sep,30,2009,Materials and Supplies,TITLE III CARRYOVER,"$7,695.00"
48,J.F. Drake State,10031508,BONNER'S ACOUSTICAL,Sep,30,2009,Maintenance and Repairs,PLANT FUNDS,"$11,041.18"
48,J.F. Drake State,10031509,CHEVRON CARD SERVICES,Sep,30,2009,Gasoline and Oil - Motor Vehic,UNRESTRICTED,$465.13
48,J.F. Drake State,10031511,PETTY CASH,Sep,30,2009,Purchases for Resale,UNRESTRICTED,$29.97
48,J.F. Drake State,10031511,PETTY CASH,Sep,30,2009,Materials and Supplies,UNRESTRICTED,$208.36
48,J.F. Drake State,10031511,PETTY CASH,Sep,30,2009,Freight,UNRESTRICTED,$35.00
48,J.F. Drake State,10031511,PETTY CASH,Sep,30,2009,Maintenance and Repairs,UNRESTRICTED,$10.00
48,J.F. Drake State,10031511,PETTY CASH,Sep,30,2009,Advertising and Promotions,UNRESTRICTED,$17.00
48,J.F. Drake State,10031513,SOUTHERNLINC WIRELESS,Sep,30,2009,Communications,UNRESTRICTED,$524.70
48,J.F. Drake State,14883,MOSTAFA DOKHANIAN,Sep,30,2009,Other Contractual Services,NAT'L SCIENCE FOUNDATION,"$3,250.00"
48,J.F. Drake State,14884,WILLIAM WAYNE DUNLAP,Sep,30,2009,Instructional Salaries - Tempo,UNRESTRICTED,$675.00
48,J.F. Drake State,14885,TOBY R HOLLOWAY,Sep,30,2009,Instructional Salaries - Tempo,UNRESTRICTED,"$1,878.75"
48,J.F. Drake State,14886,PAMELA MICHELLE HUMPHREY,Sep,30,2009,Instructional Salaries - Tempo,UNRESTRICTED,"$1,878.75"
48,J.F. Drake State,14887,STEPHANIE JONES BOUNDS,Sep,30,2009,Instructional Salaries - Regul,UNRESTRICTED,"$3,478.42"
48,J.F. Drake State,14888,PRAVEENA KOMMIDI,Sep,30,2009,Instructional Salaries - Regul,UNRESTRICTED,"$5,638.00"
48,J.F. Drake State,14889,DOROTHY J NOBLE,Sep,30,2009,Instructional Salaries - Tempo,UNRESTRICTED,$337.50
48,J.F. Drake State,14890,JAMES ANTHONY PLENTY,Sep,30,2009,Instructional Salaries - Tempo,UNRESTRICTED,$401.25
48,J.F. Drake State,14891,JACKIE D SANDERS,Sep,30,2009,Instructional Salaries - Tempo,UNRESTRICTED,$975.94
48,J.F. Drake State,90011629,LYSA AUGUSTIN,Sep,30,2009,Instructional Salaries - Tempo,UNRESTRICTED,$616.00
48,J.F. Drake State,90011630,CAROLYN AVRITTE,Sep,30,2009,Instructional Salaries - Tempo,UNRESTRICTED,$989.75
48,J.F. Drake State,90011631,NELSON E BARNES,Sep,30,2009,Instructional Salaries - Tempo,UNRESTRICTED,$975.94
48,J.F. Drake State,90011632,JADA M BARRETT,Sep,30,2009,Instructional Salaries - Tempo,UNRESTRICTED,$975.94
48,J.F. Drake State,90011633,BEN BATTLE,Sep,30,2009,Instructional Salaries - Regul,UNRESTRICTED,"$5,306.33"
48,J.F. Drake State,90011635,HAROLD E BATTS,Sep,30,2009,Other Professional Salaries -,UNRESTRICTED,"$8,649.00"
48,J.F. Drake State,90011637,ANGELA NICOLE BELL,Sep,30,2009,Instructional Salaries - Regul,UNRESTRICTED,"$4,823.78"
48,J.F. Drake State,90011639,LINDA BURRUSS,Sep,30,2009,Instructional Salaries - Tempo,UNRESTRICTED,"$1,076.25"
48,J.F. Drake State,90011640,KHALILAH BURTON,Sep,30,2009,Instructional Salaries - Regul,UNRESTRICTED,"$2,713.38"
48,J.F. Drake State,90011640,KHALILAH BURTON,Sep,30,2009,Instructional Salaries - Tempo,UNRESTRICTED,$562.50
48,J.F. Drake State,90011640,KHALILAH BURTON,Sep,30,2009,Instructional Salaries - Regul,NAT'L SCIENCE FOUNDATION,$904.46
48,J.F. Drake State,90011641,KEMBA CHAMBERS,Sep,30,2009,Other Professional Salaries -,UNRESTRICTED,"$7,360.42"
48,J.F. Drake State,90011642,JOSHUA CHAMPION,Sep,30,2009,Support Personnel Salaries - S,UNRESTRICTED,$850.00
48,J.F. Drake State,90011643,ROGER CHEN,Sep,30,2009,Other Contractual Services,NAT'L SCIENCE FOUNDATION,"$1,520.00"
48,J.F. Drake State,90011644,ADAM CLARK,Sep,30,2009,Instructional Salaries - Regul,UNRESTRICTED,"$4,786.11"
48,J.F. Drake State,90011644,ADAM CLARK,Sep,30,2009,Instructional Salaries - Tempo,UNRESTRICTED,"$1,577.81"
48,J.F. Drake State,90011645,APRIL CLEMENT,Sep,30,2009,Support Personnel Salaries - S,CAREER COACHES,"$2,336.00"
48,J.F. Drake State,90011646,CHRISTINE H DAVIS,Sep,30,2009,Instructional Salaries - Regul,UNRESTRICTED,"$5,306.33"
48,J.F. Drake State,90011647,MATTIE D DAVIS,Sep,30,2009,Instructional Salaries - Regul,UNRESTRICTED,"$5,527.33"
48,J.F. Drake State,90011648,MARLO DRAKE,Sep,30,2009,Support Personnel Salaries - S,UNRESTRICTED,"$2,309.88"
48,J.F. Drake State,90011648,MARLO DRAKE,Sep,30,2009,Support Personnel Salaries - S,TITLE III CARRYOVER,$769.96
48,J.F. Drake State,90011649,MARTHA W DUBEY,Sep,30,2009,Support Personnel Salaries - S,UNRESTRICTED,"$4,500.00"
48,J.F. Drake State,90011650,GAIL E FISCH,Sep,30,2009,Instructional Salaries - Regul,UNRESTRICTED,"$2,562.50"
48,J.F. Drake State,90011651,MARY D FISHER,Sep,30,2009,Instructional Salaries - Tempo,UNRESTRICTED,$975.94
48,J.F. Drake State,90011652,PAUL FONTAINE,Sep,30,2009,Instructional Salaries - Tempo,UNRESTRICTED,$616.00
48,J.F. Drake State,90011653,BERNELL S FONTENOT,Sep,30,2009,Support Personnel Salaries - S,UNRESTRICTED,"$3,973.25"
48,J.F. Drake State,90011654,EDWIN T FORBES,Sep,30,2009,Instructional Salaries - Regul,UNRESTRICTED,"$3,951.42"
48,J.F. Drake State,90011654,EDWIN T FORBES,Sep,30,2009,Instructional Salaries - Tempo,UNRESTRICTED,$337.50
48,J.F. Drake State,90011655,MIRIAM B FRANK,Sep,30,2009,Instructional Salaries - Regul,UNRESTRICTED,"$4,840.92"
48,J.F. Drake State,90011656,MATTIE B FREEMAN,Sep,30,2009,Instructional Salaries - Tempo,UNRESTRICTED,"$1,752.13"
48,J.F. Drake State,90011657,BRENDA H FRIEND,Sep,30,2009,Other Professional Salaries -,TITLE III CARRYOVER,"$7,905.25"
48,J.F. Drake State,90011658,KIM GALKOWSKI,Sep,30,2009,Support Personnel Salaries - S,UNRESTRICTED,"$4,046.92"
48,J.F. Drake State,90011659,BONNIE GARRETT,Sep,30,2009,Instructional Salaries - Tempo,UNRESTRICTED,"$1,076.25"
48,J.F. Drake State,90011660,MANELZA CRAWFORD HAMBRICK,Sep,30,2009,Support Personnel Salaries - S,UNRESTRICTED,"$2,411.00"
48,J.F. Drake State,90011661,WILLIAM HAMPTON,Sep,30,2009,Support Personnel Salaries - S,UNRESTRICTED,"$2,136.00"
48,J.F. Drake State,90011662,ALIREZA HASSANZADEH,Sep,30,2009,Instructional Salaries - Tempo,UNRESTRICTED,$562.50
48,J.F. Drake State,90011663,RENEE A HEADEN,Sep,30,2009,Instructional Salaries - Tempo,UNRESTRICTED,$200.63
48,J.F. Drake State,90011664,CAROLYN HENDERSON,Sep,30,2009,Instructional Salaries - Regul,UNRESTRICTED,"$3,951.42"
48,J.F. Drake State,90011664,CAROLYN HENDERSON,Sep,30,2009,Instructional Salaries - Tempo,UNRESTRICTED,$675.00
48,J.F. Drake State,90011664,CAROLYN HENDERSON,Sep,30,2009,Instructional Salaries - Regul,NAT'L SCIENCE FOUNDATION,"$1,317.14"
48,J.F. Drake State,90011665,DEXTER R HENRY,Sep,30,2009,Instructional Salaries - Regul,UNRESTRICTED,"$6,416.89"
48,J.F. Drake State,90011666,KARL W HENRY SR,Sep,30,2009,Instructional Salaries - Regul,UNRESTRICTED,"$5,435.08"
48,J.F. Drake State,90011666,KARL W HENRY SR,Sep,30,2009,Instructional Salaries - Regul,NAT'L SCIENCE FOUNDATION,"$1,678.36"
48,J.F. Drake State,90011667,DORIS HINTON,Sep,30,2009,Instructional Salaries - Regul,UNRESTRICTED,"$5,416.78"
48,J.F. Drake State,90011668,CANDICE HOWELL,Sep,30,2009,Instructional Salaries - Tempo,UNRESTRICTED,$401.25
48,J.F. Drake State,90011668,CANDICE HOWELL,Sep,30,2009,Support Personnel Salaries - S,NAT'L SCIENCE FOUNDATION,"$1,964.00"
48,J.F. Drake State,90011669,PATRICIA HUGHES,Sep,30,2009,Administrative Salaries- Sched,UNRESTRICTED,"$7,747.58"
48,J.F. Drake State,90011671,CHRISTINE H HUNT,Sep,30,2009,Instructional Salaries - Tempo,UNRESTRICTED,$337.50
48,J.F. Drake State,90011672,JAN J HYMAN,Sep,30,2009,Support Personnel Salaries - S,UNRESTRICTED,"$2,262.09"
48,J.F. Drake State,90011674,SARAH J JAMAR,Sep,30,2009,Other Contractual Services,NAT'L SCIENCE FOUNDATION,"$1,020.00"
48,J.F. Drake State,90011675,DEMARIS JENKINS,Sep,30,2009,Instructional Salaries - Tempo,UNRESTRICTED,$675.00
48,J.F. Drake State,90011676,DONYALE D JONES,Sep,30,2009,Support Personnel Salaries - S,TITLE III CARRYOVER,"$3,303.42"
48,J.F. Drake State,90011677,ROBERT LEE JONES,Sep,30,2009,Instructional Salaries - Tempo,UNRESTRICTED,"$1,878.75"
48,J.F. Drake State,90011678,RUTH D JONES,Sep,30,2009,Instructional Salaries - Tempo,UNRESTRICTED,$562.50
48,J.F. Drake State,90011679,CHERYL P KEMP,Sep,30,2009,Instructional Salaries - Tempo,UNRESTRICTED,"$2,073.13"
48,J.F. Drake State,90011680,ANNIE R KNIGHT,Sep,30,2009,Instructional Salaries - Tempo,UNRESTRICTED,$675.00
48,J.F. Drake State,90011681,NICHOLAS PAUL KSEPKA,Sep,30,2009,Hourly Wages,UNRESTRICTED,"$1,590.00"
48,J.F. Drake State,90011682,HONG THUYDUC LAM,Sep,30,2009,Instructional Salaries - Regul,UNRESTRICTED,"$5,675.67"
48,J.F. Drake State,90011683,JOYCE P LAMAR,Sep,30,2009,Support Personnel Salaries - S,UNRESTRICTED,"$1,632.00"
48,J.F. Drake State,90011684,JOEL M LINER,Sep,30,2009,Instructional Salaries - Tempo,UNRESTRICTED,$675.00
48,J.F. Drake State,90011685,MICHEAL V MAXTON,Sep,30,2009,Instructional Salaries - Tempo,UNRESTRICTED,$675.00
48,J.F. Drake State,90011686,HELEN T MCALPINE,Sep,30,2009,Administrative Salaries- Sched,UNRESTRICTED,"$14,266.45"
48,J.F. Drake State,90011686,HELEN T MCALPINE,Sep,30,2009,President's Expense Allowance,UNRESTRICTED,$200.00
48,J.F. Drake State,90011686,HELEN T MCALPINE,Sep,30,2009,Housing Allowance,UNRESTRICTED,"$1,000.00"
48,J.F. Drake State,90011687,DEMETIUS L MCCARTY,Sep,30,2009,Support Personnel Salaries - S,UNRESTRICTED,"$2,208.00"
48,J.F. Drake State,90011688,JERRY L MCCAULLEY,Sep,30,2009,Instructional Salaries - Tempo,UNRESTRICTED,$975.94
48,J.F. Drake State,90011689,BOBBY F MCDONALD,Sep,30,2009,Instructional Salaries - Tempo,UNRESTRICTED,$675.00
48,J.F. Drake State,90011690,SCOTTY MCLAUGHLIN,Sep,30,2009,Instructional Salaries - Regul,UNRESTRICTED,"$7,016.44"
48,J.F. Drake State,90011691,PAMELA F MCTILLER,Sep,30,2009,Instructional Salaries - Tempo,UNRESTRICTED,$337.50
48,J.F. Drake State,90011692,DEBORAH A MILLING,Sep,30,2009,Instructional Salaries - Regul,UNRESTRICTED,"$4,962.33"
48,J.F. Drake State,90011693,SAMMY J MILTON,Sep,30,2009,Support Personnel Salaries - S,UNRESTRICTED,"$3,452.83"
48,J.F. Drake State,90011694,PREMA A MONTEIRO,Sep,30,2009,Instructional Salaries - Regul,UNRESTRICTED,"$4,675.56"
48,J.F. Drake State,90011695,DANA MOORE,Sep,30,2009,Other Professional Salaries -,TITLE III CARRYOVER,"$8,649.00"
48,J.F. Drake State,90011696,MARY JO MORAN,Sep,30,2009,Instructional Salaries - Tempo,UNRESTRICTED,"$1,302.73"
48,J.F. Drake State,90011697,BRUCE D MORRISON,Sep,30,2009,Support Personnel Salaries - S,UNRESTRICTED,"$4,047.25"
48,J.F. Drake State,90011698,KATHRYN B NEAL,Sep,30,2009,Other Professional Salaries -,UNRESTRICTED,"$7,905.25"
48,J.F. Drake State,90011700,KAREN NEIR,Sep,30,2009,Instructional Salaries - Tempo,UNRESTRICTED,"$1,792.25"
48,J.F. Drake State,90011701,JENNIFER O'LINGER,Sep,30,2009,Support Personnel Salaries - S,UNRESTRICTED,"$3,154.25"
48,J.F. Drake State,90011702,DONALD ORR,Sep,30,2009,Support Personnel Salaries - S,UNRESTRICTED,"$3,601.25"
48,J.F. Drake State,90011703,JENNIFER E PATTERSON,Sep,30,2009,Instructional Salaries - Tempo,UNRESTRICTED,$875.63
48,J.F. Drake State,90011703,JENNIFER E PATTERSON,Sep,30,2009,Other Contractual Services,TITLE III CARRYOVER,"$1,006.00"
48,J.F. Drake State,90011704,WILLIE C PATTON,Sep,30,2009,Instructional Salaries - Tempo,UNRESTRICTED,"$1,076.25"
48,J.F. Drake State,90011705,JAMES W PLEASURE,Sep,30,2009,Instructional Salaries - Tempo,UNRESTRICTED,"$1,878.76"
48,J.F. Drake State,90011706,GWENDOLYN D POPE,Sep,30,2009,Instructional Salaries - Regul,UNRESTRICTED,"$5,651.75"
48,J.F. Drake State,90011706,GWENDOLYN D POPE,Sep,30,2009,Instructional Salaries - Tempo,UNRESTRICTED,$975.94
48,J.F. Drake State,90011707,KARRIE PRATT,Sep,30,2009,Instructional Salaries - Tempo,UNRESTRICTED,$428.00
48,J.F. Drake State,90011708,FREDRICK O PRUITT,Sep,30,2009,Instructional Salaries - Regul,UNRESTRICTED,"$4,823.78"
48,J.F. Drake State,90011708,FREDRICK O PRUITT,Sep,30,2009,Instructional Salaries - Tempo,UNRESTRICTED,"$1,878.75"
48,J.F. Drake State,90011709,MICHAEL RADDEN,Sep,30,2009,Instructional Salaries - Tempo,UNRESTRICTED,$337.50
48,J.F. Drake State,90011710,LORAINE RAGIN,Sep,30,2009,Instructional Salaries - Tempo,UNRESTRICTED,"$1,878.75"
48,J.F. Drake State,90011711,WELDON RAGLAND,Sep,30,2009,Instructional Salaries - Tempo,UNRESTRICTED,$975.94
48,J.F. Drake State,90011712,VIKERRIA A RANKINS,Sep,30,2009,Instructional Salaries - Tempo,UNRESTRICTED,$562.50
48,J.F. Drake State,90011713,ALICE G RAYMOND,Sep,30,2009,Instructional Salaries - Regul,UNRESTRICTED,"$8,079.67"
48,J.F. Drake State,90011714,JOYCE L RENTZ,Sep,30,2009,Instructional Salaries - Tempo,UNRESTRICTED,$675.00
48,J.F. Drake State,90011714,JOYCE L RENTZ,Sep,30,2009,Instructional Salaries - Regul,UNRESTRICTED,"$6,706.33"
48,J.F. Drake State,90011715,JOHN REUTTER III,Sep,30,2009,Administrative Salaries- Sched,UNRESTRICTED,$166.67
48,J.F. Drake State,90011715,JOHN REUTTER III,Sep,30,2009,Administrative Salaries- Sched,NAT'L SCIENCE FOUNDATION,"$6,450.08"
48,J.F. Drake State,90011716,MARTHA J ROBERTS,Sep,30,2009,Support Personnel Salaries - S,UNRESTRICTED,"$4,940.33"
48,J.F. Drake State,90011717,CHRISTINA R SCISSUM,Sep,30,2009,Other Professional Salaries -,TITLE III CARRYOVER,"$4,012.50"
48,J.F. Drake State,90011718,JANET MAHAFFEY SHAFER,Sep,30,2009,Instructional Salaries - Tempo,UNRESTRICTED,"$1,276.88"
48,J.F. Drake State,90011719,BARRY E SHELTON,Sep,30,2009,Instructional Salaries - Tempo,UNRESTRICTED,"$1,284.00"
48,J.F. Drake State,90011720,JACQUELINE M SHIVERS,Sep,30,2009,Instructional Salaries - Tempo,UNRESTRICTED,"$2,025.00"
48,J.F. Drake State,90011721,LESLEY SHOTTS,Sep,30,2009,Instructional Salaries - Tempo,UNRESTRICTED,$200.63
48,J.F. Drake State,90011721,LESLEY SHOTTS,Sep,30,2009,Other Professional Salaries -,UNRESTRICTED,"$4,190.50"
48,J.F. Drake State,90011722,COLLIS H SIMS III,Sep,30,2009,Instructional Salaries - Regul,UNRESTRICTED,"$4,713.33"
48,J.F. Drake State,90011723,PATRICIA GORDON SIMS,Sep,30,2009,Administrative Salaries- Sched,UNRESTRICTED,$166.67
48,J.F. Drake State,90011723,PATRICIA GORDON SIMS,Sep,30,2009,Administrative Salaries- Sched,TITLE III CARRYOVER,"$9,078.42"
48,J.F. Drake State,90011724,AUGUSTUS SMITH JR,Sep,30,2009,Instructional Salaries - Tempo,UNRESTRICTED,$638.00
48,J.F. Drake State,90011725,RYAN E SMITH,Sep,30,2009,Other Professional Salaries -,UNRESTRICTED,"$4,000.00"
48,J.F. Drake State,90011726,DELORIS A SMOTHERS,Sep,30,2009,Instructional Salaries - Regul,UNRESTRICTED,"$6,713.44"
48,J.F. Drake State,90011726,DELORIS A SMOTHERS,Sep,30,2009,Instructional Salaries - Tempo,UNRESTRICTED,$975.94
48,J.F. Drake State,90011727,JULIE P SPURGEON,Sep,30,2009,Support Personnel Salaries - S,UNRESTRICTED,"$1,889.83"
48,J.F. Drake State,90011728,VERLINDSEY B STEWART,Sep,30,2009,Instructional Salaries - Regul,UNRESTRICTED,"$6,794.22"
48,J.F. Drake State,90011729,MONICA SUDEALL-HAWKINS,Sep,30,2009,Other Professional Salaries -,UNRESTRICTED,"$4,993.33"
48,J.F. Drake State,90011730,SHANNON SUMMERS,Sep,30,2009,Instructional Salaries - Tempo,UNRESTRICTED,$748.00
48,J.F. Drake State,90011731,RICHARD M SWAIM,Sep,30,2009,Instructional Salaries - Tempo,UNRESTRICTED,"$1,276.88"
48,J.F. Drake State,90011732,DOCQUINN N TAYLOR,Sep,30,2009,Instructional Salaries - Tempo,UNRESTRICTED,$921.25
48,J.F. Drake State,90011733,JOY D TORNQUIST,Sep,30,2009,Instructional Salaries - Tempo,UNRESTRICTED,"$2,380.75"
48,J.F. Drake State,90011734,KRISTIN TREADWAY,Sep,30,2009,Support Personnel Salaries - S,CAREER COACHES,"$2,336.00"
48,J.F. Drake State,90011735,JOYLYN ERNA TROTMAN,Sep,30,2009,Other Professional Salaries -,UNRESTRICTED,"$4,465.83"
48,J.F. Drake State,90011736,ELIZABETH A TUGGLE,Sep,30,2009,Instructional Salaries - Tempo,UNRESTRICTED,"$1,976.00"
48,J.F. Drake State,90011737,GILBERT T TURLEY,Sep,30,2009,Other Professional Salaries -,UNRESTRICTED,"$6,450.08"
48,J.F. Drake State,90011738,LETITIA E WALKER,Sep,30,2009,Support Personnel Salaries - S,UNRESTRICTED,"$3,229.42"
48,J.F. Drake State,90011739,THEO NATHAN WALSTON,Sep,30,2009,Support Personnel Salaries - S,UNRESTRICTED,"$2,187.58"
48,J.F. Drake State,90011740,KATINA L WALTON,Sep,30,2009,Instructional Salaries - Tempo,UNRESTRICTED,"$1,459.50"
48,J.F. Drake State,90011741,YVONNE M WHITE,Sep,30,2009,Support Personnel Salaries - S,UNRESTRICTED,"$1,142.02"
48,J.F. Drake State,90011741,YVONNE M WHITE,Sep,30,2009,Support Personnel Salaries - S,TITLE III CARRYOVER,"$3,426.06"
48,J.F. Drake State,90011744,DWAYNIA WILKERSON,Sep,30,2009,Other Contractual Services,TITLE III CARRYOVER,$320.00
48,J.F. Drake State,90011745,SANOYIA L WILLIAMS,Sep,30,2009,Instructional Salaries - Tempo,UNRESTRICTED,$675.00
48,J.F. Drake State,90011746,DAWN WILLIAMSON-ASHLEY,Sep,30,2009,Instructional Salaries - Tempo,UNRESTRICTED,$200.63
48,J.F. Drake State,90011747,RICKY WILLINGHAM,Sep,30,2009,Support Personnel Salaries - S,CAREER COACHES,"$3,080.50"
48,J.F. Drake State,90011748,INA M WILSON,Sep,30,2009,Support Personnel Salaries - S,UNRESTRICTED,"$3,601.00"
48,J.F. Drake State,90011749,GEORGE R WINN,Sep,30,2009,Instructional Salaries - Regul,UNRESTRICTED,"$5,527.33"
48,J.F. Drake State,90011749,GEORGE R WINN,Sep,30,2009,Instructional Salaries - Tempo,UNRESTRICTED,$337.63
48,J.F. Drake State,90011750,JOHNIKA WORD,Sep,30,2009,Support Personnel Salaries - S,UNRESTRICTED,"$2,232.00"
48,J.F. Drake State,90011752,ANDRAIN YELDELL,Sep,30,2009,Instructional Salaries - Tempo,UNRESTRICTED,$200.63
48,J.F. Drake State,14892,ROBBIE LEE AKINS,Sep,30,2009,Support Personnel Salaries - S,UNRESTRICTED,"$2,352.00"
48,J.F. Drake State,14893,KELLY LA GONZALEZ,Sep,30,2009,Instructional Salaries - Tempo,UNRESTRICTED,$675.00
48,J.F. Drake State,14894,ROBERT N GRISSIM,Sep,30,2009,Instructional Salaries - Tempo,UNRESTRICTED,"$1,979.06"
48,J.F. Drake State,14895,KRISTEN K LECROIX,Sep,30,2009,Instructional Salaries - Tempo,UNRESTRICTED,$675.00
48,J.F. Drake State,90011753,ANGELA NICOLE BELL,Sep,30,2009,Instructional Salaries - Regul,UNRESTRICTED,$400.00
48,J.F. Drake State,90011754,SHALANA L BROWN,Sep,30,2009,Instructional Salaries - Tempo,UNRESTRICTED,$337.50
48,J.F. Drake State,90011755,ADAM CLARK,Sep,30,2009,Instructional Salaries - Regul,UNRESTRICTED,$780.70
48,J.F. Drake State,90011756,TINA COTHREN,Sep,30,2009,Instructional Salaries - Tempo,UNRESTRICTED,$240.75
48,J.F. Drake State,90011757,MARLO DRAKE,Sep,30,2009,Support Personnel Salaries - S,UNRESTRICTED,$504.00
48,J.F. Drake State,90011758,MUKESHA MBUGUJE,Sep,30,2009,Instructional Salaries - Tempo,UNRESTRICTED,"$3,340.00"
48,J.F. Drake State,90011759,ANTHONY MCDANIELS,Sep,30,2009,Support Personnel Salaries - S,CAREER COACHES,"$1,078.20"
48,J.F. Drake State,90011760,JACKIE SMITH,Sep,30,2009,Other Professional Salaries -,ALLIED HEALTH CARRYOVER,"$1,499.76"
48,J.F. Drake State,90011761,MONICA SUDEALL-HAWKINS,Sep,30,2009,Instructional Salaries - Tempo,UNRESTRICTED,$975.94
48,J.F. Drake State,10031487,ACT,Sep,29,2009,Materials and Supplies,UNRESTRICTED,"$1,475.00"
48,J.F. Drake State,10031488,BANKS INDUSTRIES INC.,Sep,29,2009,Materials and Supplies,UNRESTRICTED,$692.50
48,J.F. Drake State,10031489,BEAM ADVERTISING,Sep,29,2009,Materials and Supplies,CAREER COACHES,"$2,700.00"
48,J.F. Drake State,10031490,CHEVRON CARD SERVICES,Sep,29,2009,Gasoline and Oil - Motor Vehic,UNRESTRICTED,$870.31
48,J.F. Drake State,10031491,COLONIAL GRAPHICS,Sep,29,2009,Materials and Supplies,UNRESTRICTED,$345.00
48,J.F. Drake State,10031492,DAWN LACKEY MARREN VANZO,Sep,29,2009,Other Contractual Services,UNRESTRICTED,$547.25
48,J.F. Drake State,10031493,"DYNAMIC SECURITY, INC.",Sep,29,2009,Other Contractual Services,UNRESTRICTED,"$8,561.28"
48,J.F. Drake State,10031494,ELECTRONIX EXPRESS,Sep,29,2009,Purchases for Resale,UNRESTRICTED,$908.15
48,J.F. Drake State,10031495,FOSTER J CAMPBELL,Sep,29,2009,Materials and Supplies,UNRESTRICTED,"$8,022.00"
48,J.F. Drake State,10031496,HBCU LIBRARY ALLIANCE,Sep,29,2009,Memberships,UNRESTRICTED,$250.00
48,J.F. Drake State,10031498,JUDY GARRETT,Sep,29,2009,Other Contractual Services,UNRESTRICTED,"$1,084.25"
48,J.F. Drake State,10031499,THE LAMAR COMPANIES,Sep,29,2009,Materials and Supplies,CAREER COACHES,"$1,800.00"
48,J.F. Drake State,10031500,"LANIER,FORD,SHAVER &",Sep,29,2009,Legal Services,UNRESTRICTED,"$3,999.50"
48,J.F. Drake State,10031501,MARETTA MARTIN,Sep,29,2009,Other Contractual Services,UNRESTRICTED,"$1,628.37"
48,J.F. Drake State,10031502,"OFFICE DEPOT, INC.",Sep,29,2009,Materials and Supplies,UNRESTRICTED,"$2,301.64"
48,J.F. Drake State,10031503,"QUALITY COUNTS, INC",Sep,29,2009,Purchases for Resale,AUXILIARY,$33.00
48,J.F. Drake State,10031504,SAM'S CLUB/WALMART,Sep,29,2009,Materials and Supplies,UNRESTRICTED,$286.09
48,J.F. Drake State,10031505,SUCCESS MARKETING,Sep,29,2009,Advertising and Promotions,UNRESTRICTED,"$3,364.00"
48,J.F. Drake State,10031506,WASTE MANAGEMENT OF NORTH,Sep,29,2009,Other Contractual Services,UNRESTRICTED,$633.81
48,J.F. Drake State,20038948,ATLANTA MARRIOTT MARQUIS,Sep,29,2009,Out-of-State Travel,TITLE III CARRYOVER,$745.20
48,J.F. Drake State,20038949,BERNEY OFFICE SOLUTIONS,Sep,29,2009,Materials and Supplies,TITLE III CARRYOVER,$589.45
48,J.F. Drake State,20038950,"BURMAX, INC.",Sep,29,2009,Materials and Supplies,,"$1,127.40"
48,J.F. Drake State,20038951,CONDITIONED AIR SOLUTIONS,Sep,29,2009,Maintenance and Repairs,TITLE III CARRYOVER,"$5,822.24"
48,J.F. Drake State,20038951,CONDITIONED AIR SOLUTIONS,Sep,29,2009,Materials and Supplies,TITLE III CARRYOVER,"$11,386.76"
48,J.F. Drake State,20038952,IDI,Sep,29,2009,Materials and Supplies,TITLE III CARRYOVER,$117.00
48,J.F. Drake State,20038953,"MCALPINE, HELEN",Sep,29,2009,Out-of-State Travel,TITLE III CARRYOVER,$36.00
48,J.F. Drake State,20038954,"OFFICE DEPOT, INC.",Sep,29,2009,Materials and Supplies,TITLE III CARRYOVER,"$2,770.67"
48,J.F. Drake State,20038954,"OFFICE DEPOT, INC.",Sep,29,2009,Materials and Supplies,NAT'L SCIENCE FOUNDATION,$799.59
48,J.F. Drake State,20038954,"OFFICE DEPOT, INC.",Sep,29,2009,Materials and Supplies,ALLIED HEALTH CARRYOVER,"$2,151.86"
48,J.F. Drake State,20038954,"OFFICE DEPOT, INC.",Sep,29,2009,Materials and Supplies,,$413.41
48,J.F. Drake State,20038955,SACS/COC ANNUAL MEETING,Sep,29,2009,Out-of-State Travel,TITLE III CARRYOVER,$440.00
48,J.F. Drake State,20038956,CHRISTINA SCISSUM,Sep,29,2009,Out-of-State Travel,TITLE III CARRYOVER,$169.30
48,J.F. Drake State,20038957,"SIMS, PATRICIA G.",Sep,29,2009,In-State Travel,TITLE III CARRYOVER,$226.95
48,J.F. Drake State,20038958,"TROTMAN, JOYLYN",Sep,29,2009,Out-of-State Travel,TITLE III CARRYOVER,$234.85
48,J.F. Drake State,20038856,AIRGAS SOUTH,Sep,24,2009,Materials and Supplies,,"$1,438.66"
48,J.F. Drake State,20038857,CDW-G,Sep,24,2009,Materials and Supplies,,-$195.50
48,J.F. Drake State,20038857,CDW-G,Sep,24,2009,Materials and Supplies,TITLE III CARRYOVER,$919.19
48,J.F. Drake State,20038858,KEMBA CHAMBERS,Sep,24,2009,Out-of-State Travel,TITLE III CARRYOVER,$105.88
48,J.F. Drake State,20038859,"DELL MARKETING, L.P.",Sep,24,2009,Materials and Supplies,TITLE III CARRYOVER,"$4,583.03"
48,J.F. Drake State,20038860,KIM GALKOWSKI,Sep,24,2009,Materials and Supplies,TITLE III CARRYOVER,$116.02
48,J.F. Drake State,20038861,"HENRY, DEXTER",Sep,24,2009,In-State Travel,TITLE III CARRYOVER,$434.93
48,J.F. Drake State,20038862,"OFFICE DEPOT, INC.",Sep,24,2009,Materials and Supplies,TITLE III CARRYOVER,"$1,899.73"
48,J.F. Drake State,20038863,SCANTRON CORPORATION,Sep,24,2009,Materials and Supplies,,$258.80
48,J.F. Drake State,20038864,SEXTON WELDING SUPPLY,Sep,24,2009,Materials and Supplies,,"$1,775.84"
48,J.F. Drake State,10031440,CDW-G,Sep,22,2009,Materials and Supplies,UNRESTRICTED,"$16,594.46"
48,J.F. Drake State,10031441,CONCEPTS INC.,Sep,22,2009,Advertising and Promotions,UNRESTRICTED,$512.64
48,J.F. Drake State,10031442,COOK'S PEST CONTROL,Sep,22,2009,Other Contractual Services,UNRESTRICTED,$70.00
48,J.F. Drake State,10031442,COOK'S PEST CONTROL,Sep,22,2009,Other Contractual Services,ARMY GRANT,$70.00
48,J.F. Drake State,10031443,DOMINO'S PIZZA,Sep,22,2009,Materials and Supplies,UNRESTRICTED,$266.00
48,J.F. Drake State,10031444,"DYNAMIC SECURITY, INC.",Sep,22,2009,Other Contractual Services,UNRESTRICTED,"$4,105.92"
48,J.F. Drake State,10031445,THE LAMAR COMPANIES,Sep,22,2009,Advertising and Promotions,UNRESTRICTED,"$1,500.00"
48,J.F. Drake State,10031446,POCKET NURSE,Sep,22,2009,Purchases for Resale,UNRESTRICTED,"$1,590.00"
48,J.F. Drake State,10031447,SAM'S CLUB/WALMART,Sep,22,2009,Materials and Supplies,UNRESTRICTED,$60.00
48,J.F. Drake State,10031448,SERVICE CLEANERS AND LAUN,Sep,22,2009,Advertising and Promotions,UNRESTRICTED,$93.52
48,J.F. Drake State,10031449,SUCCESS MARKETING,Sep,22,2009,Advertising and Promotions,UNRESTRICTED,"$29,451.50"
48,J.F. Drake State,10031450,U HALL SERVICE,Sep,22,2009,Institutional Use,UNRESTRICTED,$52.13
48,J.F. Drake State,10031451,UPS,Sep,22,2009,Freight,UNRESTRICTED,$5.94
48,J.F. Drake State,10031452,XEROX CORPORATION,Sep,22,2009,Other Contractual Services,,$275.98
48,J.F. Drake State,20038832,AMERICAN EXPRESS,Sep,22,2009,Out-of-State Travel,TITLE III CARRYOVER,$430.40
48,J.F. Drake State,20038833,KHALILAH V. BURTON,Sep,22,2009,In-State Travel,TITLE III CARRYOVER,$45.84
48,J.F. Drake State,20038834,CDW-G,Sep,22,2009,Materials and Supplies,TITLE III CARRYOVER,$919.19
48,J.F. Drake State,20038835,KEMBA CHAMBERS,Sep,22,2009,Out-of-State Travel,TITLE III CARRYOVER,$105.88
48,J.F. Drake State,20038837,JF DRAKE RESTRICTED FUNDS,Sep,22,2009,Materials and Supplies,TITLE III CARRYOVER,"$1,169.30"
48,J.F. Drake State,20038838,"HENRY, DEXTER",Sep,22,2009,In-State Travel,TITLE III CARRYOVER,$434.93
48,J.F. Drake State,20038839,HIGH GROUND SOLUTIONS,Sep,22,2009,Materials and Supplies,TITLE III CARRYOVER,"$4,500.00"
48,J.F. Drake State,20038840,"HUGHES, PATRICIA",Sep,22,2009,In-State Travel,TITLE III CARRYOVER,$150.00
48,J.F. Drake State,20038841,INDIANA FURNITURE,Sep,22,2009,Materials and Supplies,TITLE III CARRYOVER,"$1,021.44"
48,J.F. Drake State,20038842,JOHN CONDO,Sep,22,2009,Materials and Supplies,,$90.24
48,J.F. Drake State,20038843,LIBRARICA LLC,Sep,22,2009,Materials and Supplies,TITLE III CARRYOVER,$461.85
48,J.F. Drake State,20038844,NATIONAL SEMINARS GROUP,Sep,22,2009,In-State Travel,TITLE III CARRYOVER,$399.00
48,J.F. Drake State,20038845,"OFFICE DEPOT, INC.",Sep,22,2009,Materials and Supplies,TITLE III CARRYOVER,"$1,145.34"
48,J.F. Drake State,20038845,"OFFICE DEPOT, INC.",Sep,22,2009,Materials and Supplies,NAT'L SCIENCE FOUNDATION,$295.88
48,J.F. Drake State,20038845,"OFFICE DEPOT, INC.",Sep,22,2009,Materials and Supplies,,"$1,277.28"
48,J.F. Drake State,20038846,QUALITY SOUND SYSTEMS,Sep,22,2009,Maintenance and Repairs,TITLE III CARRYOVER,"$7,631.00"
48,J.F. Drake State,20038847,SERVICE CLEANERS AND LAUN,Sep,22,2009,Materials and Supplies,NAT'L SCIENCE FOUNDATION,$374.93
48,J.F. Drake State,20038848,SEXTON WELDING SUPPLY,Sep,22,2009,Materials and Supplies,TITLE III CARRYOVER,-$195.50
48,J.F. Drake State,20038848,SEXTON WELDING SUPPLY,Sep,22,2009,Materials and Supplies,,"$1,011.97"
48,J.F. Drake State,20038849,THOMPSON PUBLISHING GROUP,Sep,22,2009,Books,TITLE III CARRYOVER,$438.50
48,J.F. Drake State,20038850,TUSCALOOSA LIBRARY BINDER,Sep,22,2009,Books,TITLE III CARRYOVER,"$1,310.15"
48,J.F. Drake State,20038852,CRI,Sep,22,2009,Materials and Supplies,TITLE III CARRYOVER,$451.85
48,J.F. Drake State,10031427,ALABAMA DEPT OF REVENUE,Sep,16,2009,Materials and Supplies,UNRESTRICTED,$21.20
48,J.F. Drake State,10031428,ALBERT'S FLOWERS,Sep,16,2009,Advertising and Promotions,UNRESTRICTED,$56.50
48,J.F. Drake State,10031429,BROOKS LOCK & KEY,Sep,16,2009,Maintenance and Repairs,PLANT FUNDS,$172.00
48,J.F. Drake State,10031430,APRIL CLEMENT,Sep,16,2009,Materials and Supplies,UNRESTRICTED,$42.41
48,J.F. Drake State,10031431,"HUGHES, PATRICIA",Sep,16,2009,Materials and Supplies,UNRESTRICTED,$78.49
48,J.F. Drake State,10031432,ANTHONY MCDANIELS,Sep,16,2009,Materials and Supplies,UNRESTRICTED,$73.15
48,J.F. Drake State,10031433,MONACO PICTURES,Sep,16,2009,Materials and Supplies,CAREER COACHES,$650.00
48,J.F. Drake State,10031434,"OFFICE DEPOT, INC.",Sep,16,2009,Materials and Supplies,UNRESTRICTED,$576.45
48,J.F. Drake State,10031435,SAM'S CLUB/WALMART,Sep,16,2009,Materials and Supplies,UNRESTRICTED,$493.60
48,J.F. Drake State,10031436,SEXTON WELDING SUPPLY,Sep,16,2009,Purchases for Resale,UNRESTRICTED,"$6,395.36"
48,J.F. Drake State,10031437,KRISTIN TREADWAY,Sep,16,2009,Materials and Supplies,UNRESTRICTED,$121.61
48,J.F. Drake State,10031438,RICKY WILLINGHAM,Sep,16,2009,Materials and Supplies,UNRESTRICTED,$116.44
48,J.F. Drake State,10031384,A METRO SECURITY/TELECOM,Sep,15,2009,Other Contractual Services,ARMY GRANT,$240.00
48,J.F. Drake State,10031385,AIRGAS SOUTH,Sep,15,2009,Purchases for Resale,UNRESTRICTED,"$9,900.99"
48,J.F. Drake State,10031386,AL AUTOMOTIVE MANUF. ASSN,Sep,15,2009,Memberships,UNRESTRICTED,$300.00
48,J.F. Drake State,10031387,ALABAMA DEPT OF REVENUE,Sep,15,2009,Materials and Supplies,UNRESTRICTED,$21.20
48,J.F. Drake State,10031390,BAMA JAMMER PROMOTIONS,Sep,15,2009,Advertising and Promotions,UNRESTRICTED,$217.68
48,J.F. Drake State,10031392,BUBBA'S,Sep,15,2009,Advertising and Promotions,UNRESTRICTED,$165.50
48,J.F. Drake State,10031393,"BURMAX, INC.",Sep,15,2009,Purchases for Resale,UNRESTRICTED,"$17,737.69"
48,J.F. Drake State,10031394,CDW-G,Sep,15,2009,Materials and Supplies,UNRESTRICTED,"$6,233.14"
48,J.F. Drake State,10031395,DAWN LACKEY MARREN VANZO,Sep,15,2009,Other Contractual Services,UNRESTRICTED,"$1,435.60"
48,J.F. Drake State,10031396,DECATUR MORGAN COUNTY,Sep,15,2009,Advertising and Promotions,UNRESTRICTED,$22.00
48,J.F. Drake State,10031398,ELSEVIER/HESI,Sep,15,2009,Purchases for Resale,AUXILIARY,$592.00
48,J.F. Drake State,10031399,"HUGHES, PATRICIA",Sep,15,2009,Materials and Supplies,UNRESTRICTED,$82.09
48,J.F. Drake State,10031400,CHAMBER OF COMMERCE,Sep,15,2009,Advertising and Promotions,UNRESTRICTED,"$1,325.00"
48,J.F. Drake State,10031401,JUDY GARRETT,Sep,15,2009,Other Contractual Services,UNRESTRICTED,"$2,306.15"
48,J.F. Drake State,10031402,"LANIER,FORD,SHAVER &",Sep,15,2009,Legal Services,UNRESTRICTED,"$2,178.00"
48,J.F. Drake State,10031404,"MCALPINE, HELEN",Sep,15,2009,Advertising and Promotions,UNRESTRICTED,$181.22
48,J.F. Drake State,10031405,NCMPR-DISTRICT,Sep,15,2009,Advertising and Promotions,UNRESTRICTED,$80.00
48,J.F. Drake State,10031406,NIGHTINGALE UNIFORM COMPA,Sep,15,2009,Purchases for Resale,UNRESTRICTED,$228.95
48,J.F. Drake State,10031407,OAKHALL INDUSTRIES,Sep,15,2009,Institutional Use,UNRESTRICTED,$192.25
48,J.F. Drake State,10031408,PRINTERS & STATIONERS,Sep,15,2009,Materials and Supplies,UNRESTRICTED,$7.95
48,J.F. Drake State,10031409,PROGRESSIVE INS,Sep,15,2009,Insurance and Bonding,UNRESTRICTED,$964.00
48,J.F. Drake State,10031410,SERVICE CLEANERS AND LAUN,Sep,15,2009,Materials and Supplies,UNRESTRICTED,$92.70
48,J.F. Drake State,10031412,"ALLIANT DATA SYSTEM,INC",Sep,15,2009,Other Contractual Services,UNRESTRICTED,$600.00
48,J.F. Drake State,10031413,AT&T,Sep,15,2009,Communications,UNRESTRICTED,$381.68
48,J.F. Drake State,20038813,ATLANTA MARRIOTT MARQUIS,Sep,11,2009,Out-of-State Travel,TITLE III CARRYOVER,$745.20
48,J.F. Drake State,20038814,CDW-G,Sep,11,2009,Materials and Supplies,,"$4,151.22"
48,J.F. Drake State,20038815,JF DRAKE RESTRICTED FUNDS,Sep,11,2009,Materials and Supplies,TITLE III CARRYOVER,$583.55
48,J.F. Drake State,20038816,EBSCO PUBLISHING,Sep,11,2009,Books,TITLE III CARRYOVER,$126.61
48,J.F. Drake State,20038817,JOHN CONDO,Sep,11,2009,Materials and Supplies,,$97.46
48,J.F. Drake State,20038818,DR. MOHAMMED R. KARIM,Sep,11,2009,Other Contractual Services,NAT'L SCIENCE FOUNDATION,"$1,625.00"
48,J.F. Drake State,20038821,SERVICE CLEANERS AND LAUN,Sep,11,2009,Materials and Supplies,NAT'L SCIENCE FOUNDATION,$72.10
48,J.F. Drake State,20038822,SYSCO CENTRAL ALABAMA,Sep,11,2009,Materials and Supplies,,"$1,481.10"
48,J.F. Drake State,20038823,TODAY'S CLASS,Sep,11,2009,Other Contractual Services,TITLE III CARRYOVER,"$2,500.00"
48,J.F. Drake State,20038824,4IMPRINT,Sep,11,2009,Materials and Supplies,NAT'L SCIENCE FOUNDATION,$370.00
48,J.F. Drake State,20038826,DIABETIC EXPRESS,Sep,11,2009,Materials and Supplies,ALLIED HEALTH CARRYOVER,$396.67
48,J.F. Drake State,20038827,HAWORTH,Sep,11,2009,Materials and Supplies,ALLIED HEALTH CARRYOVER,"$3,854.10"
48,J.F. Drake State,20038827,HAWORTH,Sep,11,2009,Materials and Supplies,TITLE III CARRYOVER,"$5,145.94"
48,J.F. Drake State,20038828,INDIANA FURNITURE,Sep,11,2009,Materials and Supplies,TITLE III CARRYOVER,"$5,152.78"
48,J.F. Drake State,20038829,PITNEY BOWES,Sep,11,2009,Materials and Supplies,TITLE III CARRYOVER,$541.05
48,J.F. Drake State,20038830,SACS/COC ANNUAL MEETING,Sep,11,2009,Out-of-State Travel,TITLE III CARRYOVER,$440.00
48,J.F. Drake State,14881,MORGAN ALBERT RICHARDSON,Sep,11,2009,Hourly Wages,Q-TRACK,$70.00
48,J.F. Drake State,90011626,ALEXANDRA CATRICE DAVIS,Sep,11,2009,Hourly Wages,PROJECT TREE,$50.00
48,J.F. Drake State,90011627,ANTHONY MARCEL HARRIS,Sep,11,2009,Hourly Wages,PROJECT TREE,$115.00
48,J.F. Drake State,20038793,"ATECH TRAINING, INC",Sep,10,2009,Materials and Supplies,,"$18,430.00"
48,J.F. Drake State,20038794,BRIGGS,Sep,10,2009,Materials and Supplies,ALLIED HEALTH CARRYOVER,$283.95
48,J.F. Drake State,20038795,CDW-G,Sep,10,2009,Maintenance and Repairs,TITLE III CARRYOVER,"$6,098.22"
48,J.F. Drake State,20038796,CHROMCRAFT,Sep,10,2009,Materials and Supplies,TITLE III CARRYOVER,"$7,035.00"
48,J.F. Drake State,20038797,"DELL MARKETING, L.P.",Sep,10,2009,Materials and Supplies,,"$30,240.00"
48,J.F. Drake State,20038798,DIABETIC EXPRESS,Sep,10,2009,Materials and Supplies,ALLIED HEALTH CARRYOVER,$396.67
48,J.F. Drake State,20038799,HAWORTH,Sep,10,2009,Materials and Supplies,TITLE III CARRYOVER,"$9,000.04"
48,J.F. Drake State,20038800,INDIANA FURNITURE,Sep,10,2009,Materials and Supplies,TITLE III CARRYOVER,"$5,152.78"
48,J.F. Drake State,20038801,KRUEGER INTERNATIONAL,Sep,10,2009,Materials and Supplies,,"$9,977.52"
48,J.F. Drake State,20038802,"OFFICE DEPOT, INC.",Sep,10,2009,Materials and Supplies,TITLE III CARRYOVER,$575.53
48,J.F. Drake State,20038803,RICHARD NEWTON,Sep,10,2009,Other Contractual Services,NAT'L SCIENCE FOUNDATION,$544.00
48,J.F. Drake State,20038804,SEXTON WELDING SUPPLY,Sep,10,2009,Materials and Supplies,,$198.00
48,J.F. Drake State,20038805,THE HON CO,Sep,10,2009,Materials and Supplies,TITLE III CARRYOVER,"$6,420.48"
48,J.F. Drake State,20038806,"THE LIBRARY STORE, INC.",Sep,10,2009,Materials and Supplies,TITLE III CARRYOVER,"$1,255.53"
48,J.F. Drake State,20038808,CDW-G,Sep,10,2009,Materials and Supplies,,"$4,151.22"
48,J.F. Drake State,20038809,SERVICE CLEANERS AND LAUN,Sep,10,2009,Materials and Supplies,NAT'L SCIENCE FOUNDATION,$72.10
48,J.F. Drake State,20038810,SYSCO CENTRAL ALABAMA,Sep,10,2009,Materials and Supplies,,"$1,481.10"
48,J.F. Drake State,20038811,4IMPRINT,Sep,10,2009,Materials and Supplies,NAT'L SCIENCE FOUNDATION,$370.00
48,J.F. Drake State,10030591,ACT,Sep,4,2009,Materials and Supplies,UNRESTRICTED,"$1,200.00"
48,J.F. Drake State,10030592,CHEVRON CARD SERVICES,Sep,4,2009,Gasoline and Oil - Motor Vehic,UNRESTRICTED,$405.18
48,J.F. Drake State,10030593,COLONIAL GRAPHICS GROUP,Sep,4,2009,Materials and Supplies,UNRESTRICTED,$54.00
48,J.F. Drake State,10030593,COLONIAL GRAPHICS GROUP,Sep,4,2009,Advertising and Promotions,UNRESTRICTED,$825.00
48,J.F. Drake State,10030593,COLONIAL GRAPHICS GROUP,Sep,4,2009,In-State Travel,CAREER COACHES,$108.00
48,J.F. Drake State,10030594,CONDITIONED AIR SOLUTIONS,Sep,4,2009,Maintenance and Repairs,PLANT FUNDS,"$1,562.06"
48,J.F. Drake State,10030595,CRITTER CONTROL OF AL,Sep,4,2009,Other Contractual Services,ARMY GRANT,$199.95
48,J.F. Drake State,10030596,"DYNAMIC SECURITY, INC.",Sep,4,2009,Other Contractual Services,UNRESTRICTED,"$20,529.60"
48,J.F. Drake State,10030597,FEDEX,Sep,4,2009,Postage,UNRESTRICTED,$192.93
48,J.F. Drake State,10030598,GATUR LAWN CARE,Sep,4,2009,Other Contractual Services,UNRESTRICTED,"$2,459.00"
48,J.F. Drake State,10030599,THE LAMAR COMPANIES,Sep,4,2009,Advertising and Promotions,UNRESTRICTED,"$1,500.00"
48,J.F. Drake State,10030600,MID CITY SUPPLY CO,Sep,4,2009,Materials and Supplies,UNRESTRICTED,$488.55
48,J.F. Drake State,10030601,PRESIDENTS ROUND TABLE,Sep,4,2009,Memberships,UNRESTRICTED,$100.00
48,J.F. Drake State,10030602,SEXTON WELDING SUPPLY,Sep,4,2009,Materials and Supplies,WIRED GRANT,"$5,764.80"
48,J.F. Drake State,10030603,UPS,Sep,4,2009,Freight,UNRESTRICTED,$140.87
48,J.F. Drake State,10030604,VERIZON WIRELESS,Sep,4,2009,Communications,UNRESTRICTED,$661.21
48,J.F. Drake State,10030605,WASTE MANAGEMENT OF NORTH,Sep,4,2009,Other Contractual Services,UNRESTRICTED,"$1,474.04"
48,J.F. Drake State,10030605,WASTE MANAGEMENT OF NORTH,Sep,4,2009,Other Contractual Services,ARMY GRANT,$325.00
48,J.F. Drake State,20038768,ALABAMA POVERTY PROJECT,Sep,2,2009,In-State Travel,TITLE III CARRYOVER,$100.00
48,J.F. Drake State,14876,MOSTAFA DOKHANIAN,Aug,31,2009,Other Contractual Services,NAT'L SCIENCE FOUNDATION,"$3,250.00"
48,J.F. Drake State,14877,TOBY R HOLLOWAY,Aug,31,2009,Instructional Salaries - Tempo,UNRESTRICTED,"$1,268.76"
48,J.F. Drake State,14878,STEPHANIE JONES BOUNDS,Aug,31,2009,Instructional Salaries - Regul,UNRESTRICTED,"$1,765.94"
48,J.F. Drake State,14879,JACKIE D SANDERS,Aug,31,2009,Instructional Salaries - Tempo,UNRESTRICTED,"$1,268.76"
48,J.F. Drake State,90011510,ROBBIE LEE AKINS,Aug,31,2009,Support Personnel Salaries - S,UNRESTRICTED,"$2,016.00"
48,J.F. Drake State,90011511,LYSA AUGUSTIN,Aug,31,2009,Instructional Salaries - Tempo,UNRESTRICTED,$687.50
48,J.F. Drake State,90011512,CAROLYN AVRITTE,Aug,31,2009,Instructional Salaries - Tempo,UNRESTRICTED,$802.50
48,J.F. Drake State,90011513,NELSON E BARNES,Aug,31,2009,Instructional Salaries - Tempo,UNRESTRICTED,"$1,268.76"
48,J.F. Drake State,90011514,BEN BATTLE,Aug,31,2009,Instructional Salaries - Regul,UNRESTRICTED,"$5,322.34"
48,J.F. Drake State,90011516,HAROLD E BATTS,Aug,31,2009,Other Professional Salaries -,UNRESTRICTED,"$8,503.50"
48,J.F. Drake State,90011518,ANGELA NICOLE BELL,Aug,31,2009,Instructional Salaries - Regul,UNRESTRICTED,"$4,332.66"
48,J.F. Drake State,90011520,SHALANA L BROWN,Aug,31,2009,Instructional Salaries - Tempo,UNRESTRICTED,$450.00
48,J.F. Drake State,90011521,NINA BULLOCK,Aug,31,2009,Instructional Salaries - Regul,UNRESTRICTED,"$4,370.34"
48,J.F. Drake State,90011522,LINDA BURRUSS,Aug,31,2009,Instructional Salaries - Tempo,UNRESTRICTED,$733.76
48,J.F. Drake State,90011523,KHALILAH BURTON,Aug,31,2009,Instructional Salaries - Regul,UNRESTRICTED,"$4,332.66"
48,J.F. Drake State,90011523,KHALILAH BURTON,Aug,31,2009,Instructional Salaries - Tempo,UNRESTRICTED,$733.76
48,J.F. Drake State,90011524,TROY M CAMPBELL,Aug,31,2009,Instructional Salaries - Tempo,UNRESTRICTED,$733.76
48,J.F. Drake State,90011525,KEMBA CHAMBERS,Aug,31,2009,Other Professional Salaries -,UNRESTRICTED,"$7,360.44"
48,J.F. Drake State,90011526,JOSHUA CHAMPION,Aug,31,2009,Support Personnel Salaries - S,UNRESTRICTED,$857.50
48,J.F. Drake State,90011527,ROGER CHEN,Aug,31,2009,Other Contractual Services,NAT'L SCIENCE FOUNDATION,"$1,280.00"
48,J.F. Drake State,90011528,ADAM CLARK,Aug,31,2009,Instructional Salaries - Regul,UNRESTRICTED,"$3,427.77"
48,J.F. Drake State,90011529,APRIL CLEMENT,Aug,31,2009,Support Personnel Salaries - S,CAREER COACHES,"$2,336.00"
48,J.F. Drake State,90011530,TINA COTHREN,Aug,31,2009,Instructional Salaries - Tempo,UNRESTRICTED,$481.50
48,J.F. Drake State,90011531,MATTIE D DAVIS,Aug,31,2009,Instructional Salaries - Regul,UNRESTRICTED,"$4,609.00"
48,J.F. Drake State,90011532,MARTHA W DUBEY,Aug,31,2009,Support Personnel Salaries - S,UNRESTRICTED,"$4,500.00"
48,J.F. Drake State,90011533,GAIL E FISCH,Aug,31,2009,Instructional Salaries - Regul,UNRESTRICTED,"$1,300.97"
48,J.F. Drake State,90011534,MARY D FISHER,Aug,31,2009,Instructional Salaries - Tempo,UNRESTRICTED,$883.75
48,J.F. Drake State,90011535,PAUL FONTAINE,Aug,31,2009,Instructional Salaries - Tempo,UNRESTRICTED,$880.00
48,J.F. Drake State,90011536,BERNELL S FONTENOT,Aug,31,2009,Support Personnel Salaries - S,UNRESTRICTED,"$3,973.25"
48,J.F. Drake State,90011537,EDWIN T FORBES,Aug,31,2009,Instructional Salaries - Regul,UNRESTRICTED,"$8,587.25"
48,J.F. Drake State,90011537,EDWIN T FORBES,Aug,31,2009,Instructional Salaries - Tempo,UNRESTRICTED,$450.00
48,J.F. Drake State,90011538,MIRIAM B FRANK,Aug,31,2009,Instructional Salaries - Regul,UNRESTRICTED,"$7,327.40"
48,J.F. Drake State,90011539,MATTIE B FREEMAN,Aug,31,2009,Instructional Salaries - Tempo,UNRESTRICTED,"$1,992.88"
48,J.F. Drake State,90011540,BRENDA H FRIEND,Aug,31,2009,Other Professional Salaries -,TITLE III CARRYOVER,"$7,905.25"
48,J.F. Drake State,90011541,KIM GALKOWSKI,Aug,31,2009,Support Personnel Salaries - S,UNRESTRICTED,"$3,972.50"
48,J.F. Drake State,90011542,BONNIE GARRETT,Aug,31,2009,Instructional Salaries - Tempo,UNRESTRICTED,"$1,402.50"
48,J.F. Drake State,90011543,MANELZA CRAWFORD HAMBRICK,Aug,31,2009,Support Personnel Salaries - S,UNRESTRICTED,"$2,336.50"
48,J.F. Drake State,90011544,WILLIAM HAMPTON,Aug,31,2009,Support Personnel Salaries - S,UNRESTRICTED,"$2,016.00"
48,J.F. Drake State,90011545,ALIREZA HASSANZADEH,Aug,31,2009,Other Contractual Services,NAT'L SCIENCE FOUNDATION,$620.00
48,J.F. Drake State,90011546,RENEE A HEADEN,Aug,31,2009,Instructional Salaries - Tempo,UNRESTRICTED,$401.26
48,J.F. Drake State,90011547,CAROLYN HENDERSON,Aug,31,2009,Instructional Salaries - Regul,UNRESTRICTED,"$3,963.74"
48,J.F. Drake State,90011547,CAROLYN HENDERSON,Aug,31,2009,Instructional Salaries - Tempo,UNRESTRICTED,$450.00
48,J.F. Drake State,90011547,CAROLYN HENDERSON,Aug,31,2009,Instructional Salaries - Regul,NAT'L SCIENCE FOUNDATION,$783.26
48,J.F. Drake State,90011548,DEXTER R HENRY,Aug,31,2009,Instructional Salaries - Regul,UNRESTRICTED,"$5,675.34"
48,J.F. Drake State,90011548,DEXTER R HENRY,Aug,31,2009,Instructional Salaries - Tempo,UNRESTRICTED,$733.76
48,J.F. Drake State,90011549,KARL W HENRY SR,Aug,31,2009,Instructional Salaries - Regul,UNRESTRICTED,"$5,070.50"
48,J.F. Drake State,90011549,KARL W HENRY SR,Aug,31,2009,Instructional Salaries - Regul,NAT'L SCIENCE FOUNDATION,"$1,556.84"
48,J.F. Drake State,90011550,DORIS HINTON,Aug,31,2009,Instructional Salaries - Regul,UNRESTRICTED,"$4,508.34"
48,J.F. Drake State,90011551,CANDICE HOWELL,Aug,31,2009,Instructional Salaries - Tempo,UNRESTRICTED,$267.50
48,J.F. Drake State,90011551,CANDICE HOWELL,Aug,31,2009,Support Personnel Salaries - S,NAT'L SCIENCE FOUNDATION,"$1,964.00"
48,J.F. Drake State,90011552,PATRICIA HUGHES,Aug,31,2009,Administrative Salaries- Sched,UNRESTRICTED,"$7,747.60"
48,J.F. Drake State,90011554,JAN J HYMAN,Aug,31,2009,Support Personnel Salaries - S,UNRESTRICTED,"$2,187.62"
48,J.F. Drake State,90011556,DONYALE D JONES,Aug,31,2009,Support Personnel Salaries - S,TITLE III CARRYOVER,"$3,303.38"
48,J.F. Drake State,90011557,PETURA M JONES,Aug,31,2009,Other Contractual Services,NAT'L SCIENCE FOUNDATION,$234.00
48,J.F. Drake State,90011558,CHERYL P KEMP,Aug,31,2009,Instructional Salaries - Tempo,UNRESTRICTED,"$1,952.75"
48,J.F. Drake State,90011559,NICHOLAS PAUL KSEPKA,Aug,31,2009,Hourly Wages,UNRESTRICTED,"$1,807.50"
48,J.F. Drake State,90011560,HONG THUYDUC LAM,Aug,31,2009,Instructional Salaries - Regul,UNRESTRICTED,"$5,123.00"
48,J.F. Drake State,90011561,JOYCE P LAMAR,Aug,31,2009,Support Personnel Salaries - S,UNRESTRICTED,"$1,836.00"
48,J.F. Drake State,90011562,JOEL M LINER,Aug,31,2009,Instructional Salaries - Tempo,UNRESTRICTED,$450.00
48,J.F. Drake State,90011563,WINFRED L LOGAN,Aug,31,2009,Support Personnel Salaries - S,UNRESTRICTED,$756.00
48,J.F. Drake State,90011564,HELEN T MCALPINE,Aug,31,2009,Administrative Salaries- Sched,UNRESTRICTED,"$14,266.45"
48,J.F. Drake State,90011564,HELEN T MCALPINE,Aug,31,2009,President's Expense Allowance,UNRESTRICTED,$200.00
48,J.F. Drake State,90011564,HELEN T MCALPINE,Aug,31,2009,Housing Allowance,UNRESTRICTED,"$1,000.00"
48,J.F. Drake State,90011565,DEMETIUS L MCCARTY,Aug,31,2009,Support Personnel Salaries - S,UNRESTRICTED,"$2,208.00"
48,J.F. Drake State,90011566,ANTHONY MCDANIELS,Aug,31,2009,Support Personnel Salaries - S,CAREER COACHES,"$2,336.00"
48,J.F. Drake State,90011567,SCOTTY MCLAUGHLIN,Aug,31,2009,Instructional Salaries - Regul,UNRESTRICTED,"$6,535.00"
48,J.F. Drake State,90011567,SCOTTY MCLAUGHLIN,Aug,31,2009,Instructional Salaries - Tempo,UNRESTRICTED,$300.00
48,J.F. Drake State,90011568,DEBORAH A MILLING,Aug,31,2009,Instructional Salaries - Regul,UNRESTRICTED,"$10,265.71"
48,J.F. Drake State,90011569,SAMMY J MILTON,Aug,31,2009,Support Personnel Salaries - S,UNRESTRICTED,"$3,452.87"
48,J.F. Drake State,90011570,PREMA A MONTEIRO,Aug,31,2009,Instructional Salaries - Regul,UNRESTRICTED,"$4,194.96"
48,J.F. Drake State,90011571,DANA MOORE,Aug,31,2009,Other Professional Salaries -,TITLE III CARRYOVER,"$8,503.50"
48,J.F. Drake State,90011572,MARY JO MORAN,Aug,31,2009,Instructional Salaries - Tempo,UNRESTRICTED,"$1,324.13"
48,J.F. Drake State,90011573,BRUCE D MORRISON,Aug,31,2009,Support Personnel Salaries - S,UNRESTRICTED,"$4,047.25"
48,J.F. Drake State,90011574,KATHRYN B NEAL,Aug,31,2009,Other Professional Salaries -,UNRESTRICTED,"$7,905.25"
48,J.F. Drake State,90011576,KAREN NEIR,Aug,31,2009,Instructional Salaries - Tempo,UNRESTRICTED,"$1,926.00"
48,J.F. Drake State,90011577,JENNIFER O'LINGER,Aug,31,2009,Support Personnel Salaries - S,UNRESTRICTED,"$3,079.87"
48,J.F. Drake State,90011578,DONALD ORR,Aug,31,2009,Support Personnel Salaries - S,UNRESTRICTED,"$3,601.25"
48,J.F. Drake State,90011579,JARROD PATTERSON,Aug,31,2009,Other Contractual Services,TITLE III CARRYOVER,$600.00
48,J.F. Drake State,90011580,JENNIFER E PATTERSON,Aug,31,2009,Other Contractual Services,TITLE III CARRYOVER,$720.00
48,J.F. Drake State,90011581,WILLIE C PATTON,Aug,31,2009,Instructional Salaries - Tempo,UNRESTRICTED,$733.76
48,J.F. Drake State,90011582,GWENDOLYN D POPE,Aug,31,2009,Instructional Salaries - Regul,UNRESTRICTED,"$12,393.62"
48,J.F. Drake State,90011582,GWENDOLYN D POPE,Aug,31,2009,Instructional Salaries - Tempo,UNRESTRICTED,$450.00
48,J.F. Drake State,90011583,KARRIE PRATT,Aug,31,2009,Instructional Salaries - Tempo,UNRESTRICTED,$481.50
48,J.F. Drake State,90011584,FREDRICK O PRUITT,Aug,31,2009,Instructional Salaries - Regul,UNRESTRICTED,"$4,332.66"
48,J.F. Drake State,90011584,FREDRICK O PRUITT,Aug,31,2009,Instructional Salaries - Tempo,UNRESTRICTED,"$1,402.50"
48,J.F. Drake State,90011585,MICHAEL RADDEN,Aug,31,2009,Instructional Salaries - Tempo,UNRESTRICTED,$450.00
48,J.F. Drake State,90011586,LORAINE RAGIN,Aug,31,2009,Instructional Salaries - Tempo,UNRESTRICTED,"$1,402.50"
48,J.F. Drake State,90011587,WELDON RAGLAND,Aug,31,2009,Instructional Salaries - Tempo,UNRESTRICTED,$867.50
48,J.F. Drake State,90011588,ALICE G RAYMOND,Aug,31,2009,Instructional Salaries - Regul,UNRESTRICTED,"$6,075.34"
48,J.F. Drake State,90011589,JOYCE L RENTZ,Aug,31,2009,Instructional Salaries - Tempo,UNRESTRICTED,$450.00
48,J.F. Drake State,90011589,JOYCE L RENTZ,Aug,31,2009,Instructional Salaries - Regul,UNRESTRICTED,"$6,251.00"
48,J.F. Drake State,90011590,JOHN REUTTER III,Aug,31,2009,Administrative Salaries- Sched,NAT'L SCIENCE FOUNDATION,"$6,616.00"
48,J.F. Drake State,90011591,MARTHA J ROBERTS,Aug,31,2009,Support Personnel Salaries - S,UNRESTRICTED,"$4,940.37"
48,J.F. Drake State,90011592,CHRISTINA R SCISSUM,Aug,31,2009,Other Professional Salaries -,TITLE III CARRYOVER,"$4,012.50"
48,J.F. Drake State,90011593,JACQUELINE M SHIVERS,Aug,31,2009,Instructional Salaries - Tempo,UNRESTRICTED,"$2,250.00"
48,J.F. Drake State,90011594,LESLEY SHOTTS,Aug,31,2009,Instructional Salaries - Tempo,UNRESTRICTED,$267.50
48,J.F. Drake State,90011594,LESLEY SHOTTS,Aug,31,2009,Other Professional Salaries -,UNRESTRICTED,"$4,044.75"
48,J.F. Drake State,90011595,COLLIS H SIMS III,Aug,31,2009,Instructional Salaries - Regul,UNRESTRICTED,"$4,232.34"
48,J.F. Drake State,90011596,PATRICIA GORDON SIMS,Aug,31,2009,Administrative Salaries- Sched,UNRESTRICTED,"$9,244.00"
48,J.F. Drake State,90011597,JACKIE SMITH,Aug,31,2009,Other Professional Salaries -,ALLIED HEALTH CARRYOVER,"$2,707.00"
48,J.F. Drake State,90011598,AUGUSTUS SMITH JR,Aug,31,2009,Instructional Salaries - Tempo,UNRESTRICTED,$649.00
48,J.F. Drake State,90011599,RYAN E SMITH,Aug,31,2009,Other Professional Salaries -,UNRESTRICTED,"$4,000.00"
48,J.F. Drake State,90011600,DELORIS A SMOTHERS,Aug,31,2009,Instructional Salaries - Regul,UNRESTRICTED,"$6,227.34"
48,J.F. Drake State,90011600,DELORIS A SMOTHERS,Aug,31,2009,Instructional Salaries - Tempo,UNRESTRICTED,$867.50
48,J.F. Drake State,90011601,JULIE P SPURGEON,Aug,31,2009,Support Personnel Salaries - S,UNRESTRICTED,"$1,889.00"
48,J.F. Drake State,90011602,VERLINDSEY B STEWART,Aug,31,2009,Instructional Salaries - Regul,UNRESTRICTED,"$6,135.00"
48,J.F. Drake State,90011603,MONICA SUDEALL-HAWKINS,Aug,31,2009,Instructional Salaries - Tempo,UNRESTRICTED,$450.00
48,J.F. Drake State,90011603,MONICA SUDEALL-HAWKINS,Aug,31,2009,Other Professional Salaries -,UNRESTRICTED,"$4,993.37"
48,J.F. Drake State,90011604,SHANNON SUMMERS,Aug,31,2009,Instructional Salaries - Tempo,UNRESTRICTED,$737.00
48,J.F. Drake State,90011605,JOY D TORNQUIST,Aug,31,2009,Instructional Salaries - Tempo,UNRESTRICTED,"$1,819.00"
48,J.F. Drake State,90011606,KRISTIN TREADWAY,Aug,31,2009,Support Personnel Salaries - S,CAREER COACHES,"$2,336.00"
48,J.F. Drake State,90011607,JOYLYN ERNA TROTMAN,Aug,31,2009,Other Professional Salaries -,UNRESTRICTED,"$4,465.87"
48,J.F. Drake State,90011608,ELIZABETH A TUGGLE,Aug,31,2009,Instructional Salaries - Tempo,UNRESTRICTED,"$2,470.00"
48,J.F. Drake State,90011609,GILBERT T TURLEY,Aug,31,2009,Other Professional Salaries -,UNRESTRICTED,"$6,450.12"
48,J.F. Drake State,90011610,LETITIA E WALKER,Aug,31,2009,Support Personnel Salaries - S,UNRESTRICTED,"$3,080.50"
48,J.F. Drake State,90011611,THEO NATHAN WALSTON,Aug,31,2009,Support Personnel Salaries - S,UNRESTRICTED,"$2,187.58"
48,J.F. Drake State,90011612,KATINA L WALTON,Aug,31,2009,Instructional Salaries - Tempo,UNRESTRICTED,"$1,344.00"
48,J.F. Drake State,90011613,MIRIE WESTBROOK III,Aug,31,2009,Instructional Salaries - Tempo,UNRESTRICTED,$867.50
48,J.F. Drake State,90011614,YVONNE M WHITE,Aug,31,2009,Support Personnel Salaries - S,UNRESTRICTED,"$1,142.03"
48,J.F. Drake State,90011614,YVONNE M WHITE,Aug,31,2009,Support Personnel Salaries - S,TITLE III CARRYOVER,"$3,426.09"
48,J.F. Drake State,90011617,SANOYIA L WILLIAMS,Aug,31,2009,Instructional Salaries - Tempo,UNRESTRICTED,$450.00
48,J.F. Drake State,90011618,DAWN WILLIAMSON-ASHLEY,Aug,31,2009,Instructional Salaries - Tempo,UNRESTRICTED,$450.00
48,J.F. Drake State,90011619,RICKY WILLINGHAM,Aug,31,2009,Support Personnel Salaries - S,CAREER COACHES,"$3,080.50"
48,J.F. Drake State,90011620,INA M WILSON,Aug,31,2009,Support Personnel Salaries - S,UNRESTRICTED,"$3,601.00"
48,J.F. Drake State,90011621,GEORGE R WINN,Aug,31,2009,Instructional Salaries - Regul,UNRESTRICTED,"$4,985.00"
48,J.F. Drake State,90011621,GEORGE R WINN,Aug,31,2009,Instructional Salaries - Tempo,UNRESTRICTED,$867.50
48,J.F. Drake State,90011622,JOHNIKA WORD,Aug,31,2009,Support Personnel Salaries - S,UNRESTRICTED,"$2,118.00"
48,J.F. Drake State,90011624,ANDRAIN YELDELL,Aug,31,2009,Instructional Salaries - Tempo,UNRESTRICTED,$267.50
48,J.F. Drake State,20038753,SHERESE FLOYD,Aug,26,2009,Other Contractual Services,NAT'L SCIENCE FOUNDATION,$459.00
48,J.F. Drake State,20038734,ALAPCAE,Aug,21,2009,In-State Travel,TITLE III CARRYOVER,$125.00
48,J.F. Drake State,20038735,AMERICAN EXPRESS,Aug,21,2009,Out-of-State Travel,TITLE III CARRYOVER,$274.20
48,J.F. Drake State,20038736,BREANNA WINTON,Aug,21,2009,Other Contractual Services,NAT'L SCIENCE FOUNDATION,$34.00
48,J.F. Drake State,20038737,BUSINESS SYSTEMS & CONSUL,Aug,21,2009,Materials and Supplies,TITLE III CARRYOVER,"$4,952.00"
48,J.F. Drake State,20038738,CDW-G,Aug,21,2009,Materials and Supplies,TITLE III CARRYOVER,$613.95
48,J.F. Drake State,20038739,CHASE,Aug,21,2009,Out-of-State Travel,TITLE III CARRYOVER,"$1,076.30"
48,J.F. Drake State,20038740,HARLAND TECHNOLOGY SERV,Aug,21,2009,Materials and Supplies,TITLE III CARRYOVER,"$1,626.00"
48,J.F. Drake State,20038741,"HENRY, KARL W. SR.",Aug,21,2009,Out-of-State Travel,NAT'L SCIENCE FOUNDATION,$545.53
48,J.F. Drake State,20038742,"HENRY, KARL W. SR.",Aug,21,2009,In-State Travel,TITLE III CARRYOVER,$434.93
48,J.F. Drake State,20038743,HUNTSVILLE TIMES,Aug,21,2009,Advertising and Promotions,NAT'L SCIENCE FOUNDATION,"$1,054.32"
48,J.F. Drake State,20038744,DR. MOHAMMED R. KARIM,Aug,21,2009,Other Contractual Services,NAT'L SCIENCE FOUNDATION,"$1,625.00"
48,J.F. Drake State,20038745,DR. MOHAMMED R. KARIM,Aug,21,2009,Other Contractual Services,NAT'L SCIENCE FOUNDATION,"$1,625.00"
48,J.F. Drake State,20038746,"MILLING, DEBORAH",Aug,21,2009,Out-of-State Travel,TITLE III CARRYOVER,$596.45
48,J.F. Drake State,20038747,NASPA,Aug,21,2009,Memberships,TITLE III CARRYOVER,$375.00
48,J.F. Drake State,20038748,"RAYMOND, ALICE",Aug,21,2009,In-State Travel,ALLIED HEALTH CARRYOVER,$548.80
48,J.F. Drake State,20038749,"RAYMOND, ALICE",Aug,21,2009,Out-of-State Travel,ALLIED HEALTH CARRYOVER,"$1,742.78"
48,J.F. Drake State,20038750,"SUDEALL, MONICA",Aug,21,2009,In-State Travel,TITLE III CARRYOVER,$122.10
48,J.F. Drake State,20038750,"SUDEALL, MONICA",Aug,21,2009,Employee Taxable Per Diem,TITLE III CARRYOVER,$11.25
48,J.F. Drake State,20038751,"WHITE, YVONNE M.",Aug,21,2009,In-State Travel,TITLE III CARRYOVER,$447.51
48,J.F. Drake State,10030570,ALCA,Aug,21,2009,Memberships,UNRESTRICTED,$71.00
48,J.F. Drake State,10030571,AMERICAN COLLEGE COUNSELI,Aug,21,2009,Memberships,UNRESTRICTED,$262.00
48,J.F. Drake State,10030572,BUBBA'S,Aug,21,2009,Advertising and Promotions,UNRESTRICTED,$141.00
48,J.F. Drake State,10030573,CM & F GROUP INC.,Aug,21,2009,Purchases for Resale,AUXILIARY,$120.00
48,J.F. Drake State,10030574,FOLLET SOFTWARE COMPANY,Aug,21,2009,Other Contractual Services,UNRESTRICTED,$395.00
48,J.F. Drake State,10030576,"MCALPINE, HELEN",Aug,21,2009,Advertising and Promotions,UNRESTRICTED,$61.62
48,J.F. Drake State,10030577,"NATIONAL SEMINARS, INC.",Aug,21,2009,Materials and Supplies,UNRESTRICTED,$399.99
48,J.F. Drake State,10030578,"SMITH, RYAN",Aug,21,2009,In-State Travel,UNRESTRICTED,$84.35
48,J.F. Drake State,10030579,"WHOLESALE TROPHIES, INC.",Aug,21,2009,Advertising and Promotions,UNRESTRICTED,$67.69
48,J.F. Drake State,20038690,ALFONZO MITCHELL,Aug,13,2009,Other Contractual Services,NAT'L SCIENCE FOUNDATION,$493.00
48,J.F. Drake State,20038691,AMERICAN EXPRESS,Aug,13,2009,Maintenance and Repairs,TITLE III CARRYOVER,$786.90
48,J.F. Drake State,20038692,ANTWAN TURNER,Aug,13,2009,Other Contractual Services,NAT'L SCIENCE FOUNDATION,$484.50
48,J.F. Drake State,20038693,BETTYE WILLIAMS,Aug,13,2009,Other Contractual Services,NAT'L SCIENCE FOUNDATION,$297.50
48,J.F. Drake State,20038694,BONNY JACKSON,Aug,13,2009,Other Contractual Services,NAT'L SCIENCE FOUNDATION,$544.00
48,J.F. Drake State,20038695,BRANDON THOMAS,Aug,13,2009,Other Contractual Services,NAT'L SCIENCE FOUNDATION,$17.00
48,J.F. Drake State,20038696,BRENDA JOHNSON,Aug,13,2009,Other Contractual Services,NAT'L SCIENCE FOUNDATION,$544.00
48,J.F. Drake State,20038697,CARLA HENRY,Aug,13,2009,In-State Travel,,$185.89
48,J.F. Drake State,20038698,CAROL C BRUNO,Aug,13,2009,Other Contractual Services,NAT'L SCIENCE FOUNDATION,$544.00
48,J.F. Drake State,20038699,CASSANDRA LANGFORD,Aug,13,2009,Other Contractual Services,NAT'L SCIENCE FOUNDATION,$535.50
48,J.F. Drake State,20038700,CHAD ROBINSON,Aug,13,2009,Other Contractual Services,NAT'L SCIENCE FOUNDATION,$544.00
48,J.F. Drake State,20038701,DUSTIN DODD,Aug,13,2009,Other Contractual Services,NAT'L SCIENCE FOUNDATION,$374.00
48,J.F. Drake State,20038702,EMMA WHITE,Aug,13,2009,Other Contractual Services,NAT'L SCIENCE FOUNDATION,$544.00
48,J.F. Drake State,20038703,ERIC EDWARDS II,Aug,13,2009,Other Contractual Services,NAT'L SCIENCE FOUNDATION,$467.50
48,J.F. Drake State,20038704,HANNAH WHITE,Aug,13,2009,Other Contractual Services,NAT'L SCIENCE FOUNDATION,$348.50
48,J.F. Drake State,20038705,ISAAC IDRIS,Aug,13,2009,Other Contractual Services,NAT'L SCIENCE FOUNDATION,$544.00
48,J.F. Drake State,20038706,JACQUELINE COOPER,Aug,13,2009,Other Contractual Services,NAT'L SCIENCE FOUNDATION,$280.50
48,J.F. Drake State,20038707,JAMES BURTON II,Aug,13,2009,Other Contractual Services,NAT'L SCIENCE FOUNDATION,$544.00
48,J.F. Drake State,20038708,KATHY STANTON,Aug,13,2009,Other Contractual Services,NAT'L SCIENCE FOUNDATION,$544.00
48,J.F. Drake State,20038709,LASHONDA JONES,Aug,13,2009,Other Contractual Services,NAT'L SCIENCE FOUNDATION,$493.00
48,J.F. Drake State,20038710,LAURA WESTBROOK,Aug,13,2009,Other Contractual Services,NAT'L SCIENCE FOUNDATION,$85.00
48,J.F. Drake State,20038711,LINDA BYRD,Aug,13,2009,Other Contractual Services,NAT'L SCIENCE FOUNDATION,$518.50
48,J.F. Drake State,20038712,LISA TEAGUE,Aug,13,2009,Other Contractual Services,NAT'L SCIENCE FOUNDATION,$510.00
48,J.F. Drake State,20038713,LOLA SHAND,Aug,13,2009,Other Contractual Services,NAT'L SCIENCE FOUNDATION,$510.00
48,J.F. Drake State,20038714,MARVA BROCKS,Aug,13,2009,Other Contractual Services,NAT'L SCIENCE FOUNDATION,$527.00
48,J.F. Drake State,20038715,MARY FRIEND,Aug,13,2009,Other Contractual Services,NAT'L SCIENCE FOUNDATION,$527.00
48,J.F. Drake State,20038716,MATTIE MCLIN,Aug,13,2009,Other Contractual Services,NAT'L SCIENCE FOUNDATION,$527.00
48,J.F. Drake State,20038717,MESHONDA BATTLE,Aug,13,2009,Other Contractual Services,NAT'L SCIENCE FOUNDATION,$544.00
48,J.F. Drake State,20038718,MICHELLE MCCLURE,Aug,13,2009,Other Contractual Services,NAT'L SCIENCE FOUNDATION,$518.50
48,J.F. Drake State,20038719,NIKKI BERKIL,Aug,13,2009,Other Contractual Services,NAT'L SCIENCE FOUNDATION,$544.00
48,J.F. Drake State,20038720,OLIVIA SMOOT,Aug,13,2009,Other Contractual Services,NAT'L SCIENCE FOUNDATION,$501.50
48,J.F. Drake State,20038721,PARTHENA FREEMAN,Aug,13,2009,Other Contractual Services,NAT'L SCIENCE FOUNDATION,$416.50
48,J.F. Drake State,20038722,PATRICIA GORDILLO,Aug,13,2009,Other Contractual Services,NAT'L SCIENCE FOUNDATION,$544.00
48,J.F. Drake State,20038723,PAULA MCCARY,Aug,13,2009,Other Contractual Services,NAT'L SCIENCE FOUNDATION,$42.50
48,J.F. Drake State,20038724,RENAISSANCE HOTELS,Aug,13,2009,Out-of-State Travel,TITLE III CARRYOVER,$911.42
48,J.F. Drake State,20038725,RICHARD NEWTON,Aug,13,2009,Other Contractual Services,NAT'L SCIENCE FOUNDATION,$544.00
48,J.F. Drake State,20038726,ROSE WATSON,Aug,13,2009,Other Contractual Services,NAT'L SCIENCE FOUNDATION,$535.50
48,J.F. Drake State,20038727,SANDRA FULLENWIDER STEWAR,Aug,13,2009,Other Contractual Services,NAT'L SCIENCE FOUNDATION,$527.00
48,J.F. Drake State,20038728,SHERESE FLOYD,Aug,13,2009,Other Contractual Services,NAT'L SCIENCE FOUNDATION,$459.00
48,J.F. Drake State,20038729,TEQUISHA TAPSCOTT,Aug,13,2009,Other Contractual Services,NAT'L SCIENCE FOUNDATION,$459.00
48,J.F. Drake State,20038730,TONYA MINOR,Aug,13,2009,Other Contractual Services,NAT'L SCIENCE FOUNDATION,$255.00
48,J.F. Drake State,20038731,TRACI REYNOLDS,Aug,13,2009,Other Contractual Services,NAT'L SCIENCE FOUNDATION,$510.00
48,J.F. Drake State,20038732,UA HUNTSVILLE OFFICE,Aug,13,2009,In-State Travel,ALLIED HEALTH CARRYOVER,$40.00
48,J.F. Drake State,10030560,AMERICAN EXPRESS,Aug,13,2009,Out-of-State Travel,UNRESTRICTED,$262.30
48,J.F. Drake State,10030560,AMERICAN EXPRESS,Aug,13,2009,Out-of-State Travel,NAT'L SCIENCE FOUNDATION,"$1,107.20"
48,J.F. Drake State,10030561,COSTCO WHOLESALE,Aug,13,2009,Materials and Supplies,UNRESTRICTED,$500.00
48,J.F. Drake State,10030562,MADISON COUNTY DHR (OCOC),Aug,13,2009,Purchases for Resale,AUXILIARY,$292.50
48,J.F. Drake State,10030563,SAM'S CLUB/WALMART,Aug,13,2009,Purchases for Resale,UNRESTRICTED,$300.00
48,J.F. Drake State,10030547,CHEVRON CARD SERVICES,Aug,11,2009,Gasoline and Oil - Motor Vehic,UNRESTRICTED,$325.46
48,J.F. Drake State,10030548,COLONIAL GRAPHICS GROUP,Aug,11,2009,Advertising and Promotions,UNRESTRICTED,$392.00
48,J.F. Drake State,10030549,HUNTSVILLE TIMES,Aug,11,2009,Advertising and Promotions,UNRESTRICTED,$673.75
48,J.F. Drake State,10030550,LEADERSHIP ALABAMA,Aug,11,2009,Memberships,UNRESTRICTED,$150.00
48,J.F. Drake State,10030552,RELEVANT CLASSROOM,Aug,11,2009,Materials and Supplies,CAREER COACHES,$315.83
48,J.F. Drake State,10030553,SAFETY KLEEN CORPORATION,Aug,11,2009,Other Contractual Services,UNRESTRICTED,$363.73
48,J.F. Drake State,10030554,SANDY HAMOCK,Aug,11,2009,Purchases for Resale,AUXILIARY,$292.50
48,J.F. Drake State,10030555,VON BRAUN CENTER,Aug,11,2009,Institutional Use,UNRESTRICTED,"$4,014.70"
48,J.F. Drake State,20038669,ROBERT WATSON,Aug,7,2009,Other Contractual Services,NAT'L SCIENCE FOUNDATION,"$1,000.00"
48,J.F. Drake State,20038670,ANNETTE KING,Aug,7,2009,Other Contractual Services,NAT'L SCIENCE FOUNDATION,$650.00
48,J.F. Drake State,20038671,ANTHONY LANSDELL,Aug,7,2009,Other Contractual Services,NAT'L SCIENCE FOUNDATION,"$1,000.00"
48,J.F. Drake State,20038672,CAROLYN RUSS,Aug,7,2009,Other Contractual Services,NAT'L SCIENCE FOUNDATION,"$1,000.00"
48,J.F. Drake State,20038673,CATHERINE FREEMAN,Aug,7,2009,Other Contractual Services,NAT'L SCIENCE FOUNDATION,"$1,000.00"
48,J.F. Drake State,20038674,CHRYSANTHA STALLWORTH,Aug,7,2009,Other Contractual Services,NAT'L SCIENCE FOUNDATION,"$1,000.00"
48,J.F. Drake State,20038675,DARIN LILES,Aug,7,2009,Other Contractual Services,NAT'L SCIENCE FOUNDATION,$900.00
48,J.F. Drake State,20038676,DESHONNA FORD,Aug,7,2009,Other Contractual Services,NAT'L SCIENCE FOUNDATION,"$1,000.00"
48,J.F. Drake State,20038677,DIANNE LANZA,Aug,7,2009,Other Contractual Services,NAT'L SCIENCE FOUNDATION,"$1,000.00"
48,J.F. Drake State,20038678,DOYLE HENSLEY,Aug,7,2009,Other Contractual Services,NAT'L SCIENCE FOUNDATION,$900.00
48,J.F. Drake State,20038679,FAY WALKER,Aug,7,2009,Other Contractual Services,NAT'L SCIENCE FOUNDATION,"$1,000.00"
48,J.F. Drake State,20038680,KATHERINE WILLAIMS,Aug,7,2009,Other Contractual Services,NAT'L SCIENCE FOUNDATION,$950.00
48,J.F. Drake State,20038681,KIM BURGESS TROTT,Aug,7,2009,Other Contractual Services,NAT'L SCIENCE FOUNDATION,"$1,000.00"
48,J.F. Drake State,20038682,LULA BELL,Aug,7,2009,Other Contractual Services,NAT'L SCIENCE FOUNDATION,"$1,000.00"
48,J.F. Drake State,20038683,QUINIESHAI DENT,Aug,7,2009,Other Contractual Services,NAT'L SCIENCE FOUNDATION,"$1,000.00"
48,J.F. Drake State,20038684,"SIMS, PATRICIA G.",Aug,7,2009,Out-of-State Travel,TITLE III CARRYOVER,$237.68
48,J.F. Drake State,20038685,SOLOMON WILLIAMS,Aug,7,2009,Other Contractual Services,NAT'L SCIENCE FOUNDATION,$900.00
48,J.F. Drake State,20038686,TAKEISHA KENNEMORE,Aug,7,2009,Other Contractual Services,NAT'L SCIENCE FOUNDATION,"$1,000.00"
48,J.F. Drake State,20038687,THOMAS STEGMAN,Aug,7,2009,Other Contractual Services,NAT'L SCIENCE FOUNDATION,"$1,000.00"
48,J.F. Drake State,20038688,YVONNE HOLMES,Aug,7,2009,Other Contractual Services,NAT'L SCIENCE FOUNDATION,"$1,000.00"
48,J.F. Drake State,10030542,APRIL CLEMENT,Aug,7,2009,In-State Travel,CAREER COACHES,$46.97
48,J.F. Drake State,10030543,ANTHONY MCDANIELS,Aug,7,2009,In-State Travel,CAREER COACHES,$58.63
48,J.F. Drake State,10030544,KRISTIN TREADWAY,Aug,7,2009,In-State Travel,CAREER COACHES,$57.15
48,J.F. Drake State,10030545,RICKY WILLINGHAM,Aug,7,2009,In-State Travel,CAREER COACHES,$47.52
48,J.F. Drake State,10030497,AVIZENT,Aug,6,2009,Insurance and Bonding,UNRESTRICTED,$116.67
48,J.F. Drake State,10030499,FASTENAL,Aug,6,2009,Transportation Equipment,UNRESTRICTED,"$10,910.00"
48,J.F. Drake State,10030500,INA WILSON,Aug,6,2009,Materials and Supplies,UNRESTRICTED,$48.59
48,J.F. Drake State,10030501,MADISON SQUARE ASSOCIATES,Aug,6,2009,Advertising and Promotions,UNRESTRICTED,$400.00
48,J.F. Drake State,10030502,MSC INDUSTRIAL SUPPLY,Aug,6,2009,Materials and Supplies,PLANT FUNDS,"$6,363.98"
48,J.F. Drake State,10030503,TECHNICAL TRAINING AIDS,Aug,6,2009,Other Contractual Services,UNRESTRICTED,"$3,600.00"
48,J.F. Drake State,20038655,AMERICAN EXPRESS,Aug,6,2009,Out-of-State Travel,TITLE III CARRYOVER,$859.60
48,J.F. Drake State,20038656,"BATTLE, BEN (JR)",Aug,6,2009,In-State Travel,TITLE III CARRYOVER,$212.30
48,J.F. Drake State,20038656,"BATTLE, BEN (JR)",Aug,6,2009,Employee Taxable Per Diem,TITLE III CARRYOVER,$11.25
48,J.F. Drake State,20038657,DR. MOSTAFA DOKHANIAN,Aug,6,2009,Other Contractual Services,NAT'L SCIENCE FOUNDATION,"$3,250.00"
48,J.F. Drake State,20038658,"FONTENOT, BERNELL S.",Aug,6,2009,In-State Travel,TITLE III CARRYOVER,$114.14
48,J.F. Drake State,20038658,"FONTENOT, BERNELL S.",Aug,6,2009,Employee Taxable Per Diem,TITLE III CARRYOVER,$11.25
48,J.F. Drake State,20038659,JACKIE SMITH,Aug,6,2009,In-State Travel,ALLIED HEALTH CARRYOVER,$66.00
48,J.F. Drake State,20038660,DR. MOHAMMED R. KARIM,Aug,6,2009,Other Contractual Services,NAT'L SCIENCE FOUNDATION,"$3,250.00"
48,J.F. Drake State,20038661,JENNIFER OLINGER,Aug,6,2009,In-State Travel,,$150.00
48,J.F. Drake State,20038662,"POPE, GWENDOLYN M.",Aug,6,2009,In-State Travel,,$150.00
48,J.F. Drake State,20038663,RENAISSANCE HOTELS,Aug,6,2009,Out-of-State Travel,TITLE III CARRYOVER,$644.65
48,J.F. Drake State,20038664,DR. JOHN REUTTER,Aug,6,2009,Materials and Supplies,NAT'L SCIENCE FOUNDATION,$71.45
48,J.F. Drake State,20038665,"SUDEALL, MONICA",Aug,6,2009,In-State Travel,TITLE III CARRYOVER,$438.40
48,J.F. Drake State,20038666,THEO WALSTON,Aug,6,2009,In-State Travel,TITLE III CARRYOVER,$350.20
48,J.F. Drake State,20038667,"WHITE, YVONNE M.",Aug,6,2009,In-State Travel,TITLE III CARRYOVER,$522.51
48,J.F. Drake State,90011276,MONTIE D PARKS,Aug,5,2009,Support Personnel Salaries - S,NAT'L SCIENCE FOUNDATION,$691.90
48,J.F. Drake State,14870,MOSTAFA DOKHANIAN,Jul,31,2009,Other Contractual Services,NAT'L SCIENCE FOUNDATION,"$3,840.00"
48,J.F. Drake State,14871,TOBY R HOLLOWAY,Jul,31,2009,Instructional Salaries - Tempo,UNRESTRICTED,"$1,268.77"
48,J.F. Drake State,14872,PRAVEENA KOMMIDI,Jul,31,2009,Other Contractual Services,NAT'L SCIENCE FOUNDATION,"$1,920.00"
48,J.F. Drake State,14873,JACKIE D SANDERS,Jul,31,2009,Instructional Salaries - Tempo,UNRESTRICTED,"$1,268.77"
48,J.F. Drake State,14874,INA M WILSON,Jul,31,2009,Support Personnel Salaries - S,UNRESTRICTED,"$1,662.00"
48,J.F. Drake State,90011155,ROBBIE LEE AKINS,Jul,31,2009,Support Personnel Salaries - S,UNRESTRICTED,"$2,172.00"
48,J.F. Drake State,90011156,LYSA AUGUSTIN,Jul,31,2009,Instructional Salaries - Tempo,UNRESTRICTED,$671.00
48,J.F. Drake State,90011157,CAROLYN AVRITTE,Jul,31,2009,Instructional Salaries - Tempo,UNRESTRICTED,"$1,337.50"
48,J.F. Drake State,90011158,LAUREN BARNES,Jul,31,2009,Other Contractual Services,NAT'L SCIENCE FOUNDATION,"$3,840.00"
48,J.F. Drake State,90011159,NELSON E BARNES,Jul,31,2009,Instructional Salaries - Tempo,UNRESTRICTED,"$1,268.77"
48,J.F. Drake State,90011160,BEN BATTLE,Jul,31,2009,Instructional Salaries - Regul,UNRESTRICTED,"$5,322.33"
48,J.F. Drake State,90011162,HAROLD E BATTS,Jul,31,2009,Other Professional Salaries -,UNRESTRICTED,"$8,503.50"
48,J.F. Drake State,90011164,ANGELA NICOLE BELL,Jul,31,2009,Instructional Salaries - Regul,UNRESTRICTED,"$4,332.67"
48,J.F. Drake State,90011166,SHALANA L BROWN,Jul,31,2009,Instructional Salaries - Tempo,UNRESTRICTED,$450.00
48,J.F. Drake State,90011166,SHALANA L BROWN,Jul,31,2009,Other Contractual Services,NAT'L SCIENCE FOUNDATION,"$3,840.00"
48,J.F. Drake State,90011167,NINA BULLOCK,Jul,31,2009,Instructional Salaries - Regul,UNRESTRICTED,"$4,370.33"
48,J.F. Drake State,90011168,LINDA BURRUSS,Jul,31,2009,Instructional Salaries - Tempo,UNRESTRICTED,$733.77
48,J.F. Drake State,90011168,LINDA BURRUSS,Jul,31,2009,Other Contractual Services,NAT'L SCIENCE FOUNDATION,"$3,840.00"
48,J.F. Drake State,90011169,KHALILAH BURTON,Jul,31,2009,Instructional Salaries - Regul,UNRESTRICTED,"$4,332.67"
48,J.F. Drake State,90011169,KHALILAH BURTON,Jul,31,2009,Instructional Salaries - Tempo,UNRESTRICTED,$733.77
48,J.F. Drake State,90011170,TROY M CAMPBELL,Jul,31,2009,Instructional Salaries - Tempo,UNRESTRICTED,$733.77
48,J.F. Drake State,90011171,KEMBA CHAMBERS,Jul,31,2009,Other Professional Salaries -,UNRESTRICTED,"$7,360.41"
48,J.F. Drake State,90011172,JOSHUA CHAMPION,Jul,31,2009,Support Personnel Salaries - S,UNRESTRICTED,$760.00
48,J.F. Drake State,90011173,ROGER CHEN,Jul,31,2009,Other Contractual Services,NAT'L SCIENCE FOUNDATION,"$1,360.00"
48,J.F. Drake State,90011174,ADAM CLARK,Jul,31,2009,Instructional Salaries - Regul,UNRESTRICTED,"$4,295.00"
48,J.F. Drake State,90011175,APRIL CLEMENT,Jul,31,2009,Support Personnel Salaries - S,CAREER COACHES,"$2,336.00"
48,J.F. Drake State,90011176,TINA COTHREN,Jul,31,2009,Instructional Salaries - Tempo,UNRESTRICTED,$963.00
48,J.F. Drake State,90011177,MATTIE D DAVIS,Jul,31,2009,Instructional Salaries - Regul,UNRESTRICTED,"$4,609.00"
48,J.F. Drake State,90011178,MARTHA W DUBEY,Jul,31,2009,Support Personnel Salaries - S,UNRESTRICTED,"$4,500.00"
48,J.F. Drake State,90011179,VERNESSA M EDWARDS,Jul,31,2009,Other Contractual Services,NAT'L SCIENCE FOUNDATION,"$1,920.00"
48,J.F. Drake State,90011180,MARY D FISHER,Jul,31,2009,Instructional Salaries - Tempo,UNRESTRICTED,$883.75
48,J.F. Drake State,90011181,PAUL FONTAINE,Jul,31,2009,Instructional Salaries - Tempo,UNRESTRICTED,$616.00
48,J.F. Drake State,90011182,BERNELL S FONTENOT,Jul,31,2009,Support Personnel Salaries - S,UNRESTRICTED,"$3,973.25"
48,J.F. Drake State,90011183,EDWIN T FORBES,Jul,31,2009,Instructional Salaries - Regul,UNRESTRICTED,"$8,587.25"
48,J.F. Drake State,90011183,EDWIN T FORBES,Jul,31,2009,Instructional Salaries - Tempo,UNRESTRICTED,$450.00
48,J.F. Drake State,90011184,MIRIAM B FRANK,Jul,31,2009,Instructional Salaries - Regul,UNRESTRICTED,"$7,327.42"
48,J.F. Drake State,90011185,MATTIE B FREEMAN,Jul,31,2009,Instructional Salaries - Tempo,UNRESTRICTED,"$1,926.00"
48,J.F. Drake State,90011186,BRENDA H FRIEND,Jul,31,2009,Other Professional Salaries -,TITLE III CARRYOVER,"$7,905.25"
48,J.F. Drake State,90011187,KIM GALKOWSKI,Jul,31,2009,Support Personnel Salaries - S,UNRESTRICTED,"$3,972.50"
48,J.F. Drake State,90011188,BONNIE GARRETT,Jul,31,2009,Instructional Salaries - Tempo,UNRESTRICTED,"$1,402.50"
48,J.F. Drake State,90011189,MANELZA CRAWFORD HAMBRICK,Jul,31,2009,Support Personnel Salaries - S,UNRESTRICTED,"$2,336.50"
48,J.F. Drake State,90011190,WILLIAM HAMPTON,Jul,31,2009,Support Personnel Salaries - S,UNRESTRICTED,"$2,208.00"
48,J.F. Drake State,90011191,ALIREZA HASSANZADEH,Jul,31,2009,Other Contractual Services,NAT'L SCIENCE FOUNDATION,"$1,260.00"
48,J.F. Drake State,90011192,RENEE A HEADEN,Jul,31,2009,Instructional Salaries - Tempo,UNRESTRICTED,$401.27
48,J.F. Drake State,90011193,CAROLYN HENDERSON,Jul,31,2009,Instructional Salaries - Regul,UNRESTRICTED,"$3,963.75"
48,J.F. Drake State,90011193,CAROLYN HENDERSON,Jul,31,2009,Instructional Salaries - Tempo,UNRESTRICTED,$450.00
48,J.F. Drake State,90011193,CAROLYN HENDERSON,Jul,31,2009,Instructional Salaries - Regul,NAT'L SCIENCE FOUNDATION,$783.25
48,J.F. Drake State,90011194,DEXTER R HENRY,Jul,31,2009,Instructional Salaries - Regul,UNRESTRICTED,"$5,675.33"
48,J.F. Drake State,90011194,DEXTER R HENRY,Jul,31,2009,Instructional Salaries - Tempo,UNRESTRICTED,$733.77
48,J.F. Drake State,90011195,KARL W HENRY SR,Jul,31,2009,Instructional Salaries - Regul,UNRESTRICTED,"$5,070.50"
48,J.F. Drake State,90011195,KARL W HENRY SR,Jul,31,2009,Instructional Salaries - Regul,NAT'L SCIENCE FOUNDATION,"$1,556.83"
48,J.F. Drake State,90011196,DORIS HINTON,Jul,31,2009,Instructional Salaries - Regul,UNRESTRICTED,"$4,508.33"
48,J.F. Drake State,90011197,CANDICE HOWELL,Jul,31,2009,Instructional Salaries - Tempo,UNRESTRICTED,$267.50
48,J.F. Drake State,90011197,CANDICE HOWELL,Jul,31,2009,Support Personnel Salaries - S,NAT'L SCIENCE FOUNDATION,"$1,964.00"
48,J.F. Drake State,90011198,PATRICIA HUGHES,Jul,31,2009,Administrative Salaries- Sched,UNRESTRICTED,"$7,747.64"
48,J.F. Drake State,90011200,JAN J HYMAN,Jul,31,2009,Support Personnel Salaries - S,UNRESTRICTED,"$2,187.58"
48,J.F. Drake State,90011202,DONYALE D JONES,Jul,31,2009,Support Personnel Salaries - S,TITLE III CARRYOVER,"$3,303.42"
48,J.F. Drake State,90011203,PETURA M JONES,Jul,31,2009,Other Contractual Services,NAT'L SCIENCE FOUNDATION,"$4,300.00"
48,J.F. Drake State,90011204,CHERYL P KEMP,Jul,31,2009,Instructional Salaries - Tempo,UNRESTRICTED,"$2,140.00"
48,J.F. Drake State,90011205,NICHOLAS PAUL KSEPKA,Jul,31,2009,Hourly Wages,UNRESTRICTED,"$1,500.00"
48,J.F. Drake State,90011206,HONG THUYDUC LAM,Jul,31,2009,Instructional Salaries - Regul,UNRESTRICTED,"$5,123.00"
48,J.F. Drake State,90011207,JOYCE P LAMAR,Jul,31,2009,Support Personnel Salaries - S,UNRESTRICTED,"$1,632.00"
48,J.F. Drake State,90011208,JOEL M LINER,Jul,31,2009,Instructional Salaries - Tempo,UNRESTRICTED,$450.00
48,J.F. Drake State,90011209,WINFRED L LOGAN,Jul,31,2009,Support Personnel Salaries - S,UNRESTRICTED,$960.00
48,J.F. Drake State,90011210,MUKESHA MBUGUJE,Jul,31,2009,Instructional Salaries - Tempo,UNRESTRICTED,"$1,329.50"
48,J.F. Drake State,90011211,HELEN T MCALPINE,Jul,31,2009,Administrative Salaries- Sched,UNRESTRICTED,"$14,266.45"
48,J.F. Drake State,90011211,HELEN T MCALPINE,Jul,31,2009,President's Expense Allowance,UNRESTRICTED,$200.00
48,J.F. Drake State,90011211,HELEN T MCALPINE,Jul,31,2009,Housing Allowance,UNRESTRICTED,"$1,000.00"
48,J.F. Drake State,90011212,DEMETIUS L MCCARTY,Jul,31,2009,Support Personnel Salaries - S,UNRESTRICTED,"$1,920.00"
48,J.F. Drake State,90011213,ANTHONY MCDANIELS,Jul,31,2009,Support Personnel Salaries - S,CAREER COACHES,"$2,336.00"
48,J.F. Drake State,90011214,SCOTTY MCLAUGHLIN,Jul,31,2009,Instructional Salaries - Regul,UNRESTRICTED,"$6,535.00"
48,J.F. Drake State,90011214,SCOTTY MCLAUGHLIN,Jul,31,2009,Instructional Salaries - Tempo,UNRESTRICTED,$300.00
48,J.F. Drake State,90011215,DEBORAH A MILLING,Jul,31,2009,Instructional Salaries - Regul,UNRESTRICTED,"$10,265.66"
48,J.F. Drake State,90011216,SAMMY J MILTON,Jul,31,2009,Support Personnel Salaries - S,UNRESTRICTED,"$3,452.83"
48,J.F. Drake State,90011217,PREMA A MONTEIRO,Jul,31,2009,Instructional Salaries - Regul,UNRESTRICTED,"$4,194.97"
48,J.F. Drake State,90011218,DANA MOORE,Jul,31,2009,Other Professional Salaries -,TITLE III CARRYOVER,"$8,503.50"
48,J.F. Drake State,90011219,MARY JO MORAN,Jul,31,2009,Instructional Salaries - Tempo,UNRESTRICTED,$361.13
48,J.F. Drake State,90011220,BRUCE D MORRISON,Jul,31,2009,Support Personnel Salaries - S,UNRESTRICTED,"$4,047.25"
48,J.F. Drake State,90011221,KATHRYN B NEAL,Jul,31,2009,Other Professional Salaries -,UNRESTRICTED,"$7,905.25"
48,J.F. Drake State,90011223,KAREN NEIR,Jul,31,2009,Instructional Salaries - Tempo,UNRESTRICTED,"$2,300.50"
48,J.F. Drake State,90011224,JENNIFER O'LINGER,Jul,31,2009,Support Personnel Salaries - S,UNRESTRICTED,"$3,079.83"
48,J.F. Drake State,90011225,DONALD ORR,Jul,31,2009,Support Personnel Salaries - S,UNRESTRICTED,"$3,601.25"
48,J.F. Drake State,90011226,MONTIE D PARKS,Jul,31,2009,Support Personnel Salaries - S,NAT'L SCIENCE FOUNDATION,"$2,116.01"
48,J.F. Drake State,90011227,JARROD PATTERSON,Jul,31,2009,Other Contractual Services,TITLE III CARRYOVER,$795.00
48,J.F. Drake State,90011228,JENNIFER E PATTERSON,Jul,31,2009,Other Contractual Services,TITLE III CARRYOVER,$885.00
48,J.F. Drake State,90011229,WILLIE C PATTON,Jul,31,2009,Instructional Salaries - Tempo,UNRESTRICTED,$733.77
48,J.F. Drake State,90011230,GWENDOLYN D POPE,Jul,31,2009,Instructional Salaries - Regul,UNRESTRICTED,"$12,393.58"
48,J.F. Drake State,90011230,GWENDOLYN D POPE,Jul,31,2009,Instructional Salaries - Tempo,UNRESTRICTED,$450.00
48,J.F. Drake State,90011231,KARRIE PRATT,Jul,31,2009,Instructional Salaries - Tempo,UNRESTRICTED,$321.00
48,J.F. Drake State,90011232,FREDRICK O PRUITT,Jul,31,2009,Instructional Salaries - Regul,UNRESTRICTED,"$4,332.67"
48,J.F. Drake State,90011232,FREDRICK O PRUITT,Jul,31,2009,Instructional Salaries - Tempo,UNRESTRICTED,"$1,402.50"
48,J.F. Drake State,90011233,MICHAEL RADDEN,Jul,31,2009,Instructional Salaries - Tempo,UNRESTRICTED,$450.00
48,J.F. Drake State,90011234,LORAINE RAGIN,Jul,31,2009,Instructional Salaries - Tempo,UNRESTRICTED,"$1,402.50"
48,J.F. Drake State,90011235,WELDON RAGLAND,Jul,31,2009,Instructional Salaries - Tempo,UNRESTRICTED,$867.50
48,J.F. Drake State,90011236,PATRICIA RAMEY,Jul,31,2009,Instructional Salaries - Tempo,UNRESTRICTED,"$1,337.50"
48,J.F. Drake State,90011237,ALICE G RAYMOND,Jul,31,2009,Instructional Salaries - Regul,UNRESTRICTED,"$6,075.33"
48,J.F. Drake State,90011238,JOYCE L RENTZ,Jul,31,2009,Instructional Salaries - Tempo,UNRESTRICTED,$450.00
48,J.F. Drake State,90011238,JOYCE L RENTZ,Jul,31,2009,Instructional Salaries - Regul,UNRESTRICTED,"$6,251.00"
48,J.F. Drake State,90011239,JOHN REUTTER III,Jul,31,2009,Administrative Salaries- Sched,NAT'L SCIENCE FOUNDATION,"$6,616.00"
48,J.F. Drake State,90011240,MARTHA J ROBERTS,Jul,31,2009,Support Personnel Salaries - S,UNRESTRICTED,"$4,940.33"
48,J.F. Drake State,90011241,CHRISTINA R SCISSUM,Jul,31,2009,Other Professional Salaries -,TITLE III CARRYOVER,"$4,012.50"
48,J.F. Drake State,90011242,JACQUELINE M SHIVERS,Jul,31,2009,Instructional Salaries - Tempo,UNRESTRICTED,"$1,743.75"
48,J.F. Drake State,90011243,LESLEY SHOTTS,Jul,31,2009,Instructional Salaries - Tempo,UNRESTRICTED,$267.50
48,J.F. Drake State,90011243,LESLEY SHOTTS,Jul,31,2009,Other Professional Salaries -,UNRESTRICTED,"$4,044.75"
48,J.F. Drake State,90011244,COLLIS H SIMS III,Jul,31,2009,Instructional Salaries - Regul,UNRESTRICTED,"$4,232.33"
48,J.F. Drake State,90011245,PATRICIA GORDON SIMS,Jul,31,2009,Administrative Salaries- Sched,UNRESTRICTED,"$9,244.00"
48,J.F. Drake State,90011246,JACKIE SMITH,Jul,31,2009,Other Professional Salaries -,ALLIED HEALTH CARRYOVER,"$2,707.00"
48,J.F. Drake State,90011247,AUGUSTUS SMITH JR,Jul,31,2009,Instructional Salaries - Tempo,UNRESTRICTED,$440.00
48,J.F. Drake State,90011248,RYAN E SMITH,Jul,31,2009,Other Professional Salaries -,UNRESTRICTED,"$4,000.00"
48,J.F. Drake State,90011249,DELORIS A SMOTHERS,Jul,31,2009,Instructional Salaries - Regul,UNRESTRICTED,"$6,227.33"
48,J.F. Drake State,90011249,DELORIS A SMOTHERS,Jul,31,2009,Instructional Salaries - Tempo,UNRESTRICTED,$867.50
48,J.F. Drake State,90011250,JULIE P SPURGEON,Jul,31,2009,Support Personnel Salaries - S,UNRESTRICTED,"$1,889.00"
48,J.F. Drake State,90011251,VERLINDSEY B STEWART,Jul,31,2009,Instructional Salaries - Regul,UNRESTRICTED,"$6,135.00"
48,J.F. Drake State,90011252,MONICA SUDEALL-HAWKINS,Jul,31,2009,Instructional Salaries - Tempo,UNRESTRICTED,$450.00
48,J.F. Drake State,90011252,MONICA SUDEALL-HAWKINS,Jul,31,2009,Other Professional Salaries -,UNRESTRICTED,"$4,993.33"
48,J.F. Drake State,90011253,SHANNON SUMMERS,Jul,31,2009,Instructional Salaries - Tempo,UNRESTRICTED,$561.00
48,J.F. Drake State,90011254,JOY D TORNQUIST,Jul,31,2009,Instructional Salaries - Tempo,UNRESTRICTED,"$1,926.00"
48,J.F. Drake State,90011255,KRISTIN TREADWAY,Jul,31,2009,Support Personnel Salaries - S,CAREER COACHES,"$2,336.00"
48,J.F. Drake State,90011256,JOYLYN ERNA TROTMAN,Jul,31,2009,Other Professional Salaries -,UNRESTRICTED,"$4,465.83"
48,J.F. Drake State,90011257,ELIZABETH A TUGGLE,Jul,31,2009,Instructional Salaries - Tempo,UNRESTRICTED,"$1,976.00"
48,J.F. Drake State,90011258,GILBERT T TURLEY,Jul,31,2009,Other Professional Salaries -,UNRESTRICTED,"$6,450.08"
48,J.F. Drake State,90011259,LETITIA E WALKER,Jul,31,2009,Support Personnel Salaries - S,UNRESTRICTED,"$3,080.50"
48,J.F. Drake State,90011260,THEO NATHAN WALSTON,Jul,31,2009,Support Personnel Salaries - S,UNRESTRICTED,"$2,187.58"
48,J.F. Drake State,90011261,KATINA L WALTON,Jul,31,2009,Instructional Salaries - Tempo,UNRESTRICTED,$924.00
48,J.F. Drake State,90011262,MICHELLE L WATKINS,Jul,31,2009,Other Contractual Services,NAT'L SCIENCE FOUNDATION,"$3,840.00"
48,J.F. Drake State,90011263,MIRIE WESTBROOK III,Jul,31,2009,Instructional Salaries - Tempo,UNRESTRICTED,$867.50
48,J.F. Drake State,90011264,YVONNE M WHITE,Jul,31,2009,Support Personnel Salaries - S,UNRESTRICTED,"$1,142.02"
48,J.F. Drake State,90011264,YVONNE M WHITE,Jul,31,2009,Support Personnel Salaries - S,TITLE III CARRYOVER,"$3,426.06"
48,J.F. Drake State,90011267,KRISHALON WILKERSON,Jul,31,2009,Other Contractual Services,NAT'L SCIENCE FOUNDATION,"$3,840.00"
48,J.F. Drake State,90011268,SANOYIA L WILLIAMS,Jul,31,2009,Instructional Salaries - Tempo,UNRESTRICTED,$450.00
48,J.F. Drake State,90011269,DAWN WILLIAMSON-ASHLEY,Jul,31,2009,Instructional Salaries - Tempo,UNRESTRICTED,$450.00
48,J.F. Drake State,90011270,RICKY WILLINGHAM,Jul,31,2009,Support Personnel Salaries - S,CAREER COACHES,"$3,080.50"
48,J.F. Drake State,90011271,GEORGE R WINN,Jul,31,2009,Instructional Salaries - Regul,UNRESTRICTED,"$4,985.00"
48,J.F. Drake State,90011271,GEORGE R WINN,Jul,31,2009,Instructional Salaries - Tempo,UNRESTRICTED,$867.50
48,J.F. Drake State,90011272,JOHNIKA WORD,Jul,31,2009,Support Personnel Salaries - S,UNRESTRICTED,"$2,016.00"
48,J.F. Drake State,90011274,ANDRAIN YELDELL,Jul,31,2009,Instructional Salaries - Tempo,UNRESTRICTED,$267.50
48,J.F. Drake State,20038629,ALAPCAE,Jul,30,2009,In-State Travel,TITLE III CARRYOVER,$125.00
48,J.F. Drake State,20038630,"BATTS, HAROLD",Jul,30,2009,Out-of-State Travel,TITLE III CARRYOVER,$407.25
48,J.F. Drake State,20038631,BUBBA'S,Jul,30,2009,Materials and Supplies,NAT'L SCIENCE FOUNDATION,$170.00
48,J.F. Drake State,20038632,"CAMCAD TECHNOLOGIES, INC",Jul,30,2009,Materials and Supplies,,"$1,200.00"
48,J.F. Drake State,20038633,CARLA HENRY,Jul,30,2009,In-State Travel,,$99.66
48,J.F. Drake State,20038634,CDW-G,Jul,30,2009,Materials and Supplies,TITLE III CARRYOVER,"$1,291.90"
48,J.F. Drake State,20038635,DAIGGER LAB SUPPLIES,Jul,30,2009,Materials and Supplies,NAT'L SCIENCE FOUNDATION,$345.50
48,J.F. Drake State,20038636,EBSCO PUBLISHING,Jul,30,2009,Subscriptions,TITLE III CARRYOVER,$79.88
48,J.F. Drake State,20038637,FILMS FOR THE HUMANITIES,Jul,30,2009,Audiovisuals,TITLE III CARRYOVER,"$6,640.31"
48,J.F. Drake State,20038637,FILMS FOR THE HUMANITIES,Jul,30,2009,Books,TITLE III CARRYOVER,"$1,645.75"
48,J.F. Drake State,20038638,KIM GALKOWSKI,Jul,30,2009,Employee Taxable Per Diem,TITLE III CARRYOVER,$11.25
48,J.F. Drake State,20038639,GRAINGER,Jul,30,2009,Materials and Supplies,,$313.09
48,J.F. Drake State,20038640,INDIANA FURNITURE,Jul,30,2009,Materials and Supplies,TITLE III CARRYOVER,"$3,730.43"
48,J.F. Drake State,20038641,KANTOLA PRODUCTIONS,Jul,30,2009,Materials and Supplies,TITLE III CARRYOVER,$346.50
48,J.F. Drake State,20038642,NINA BULLOCK,Jul,30,2009,In-State Travel,TITLE III CARRYOVER,$573.49
48,J.F. Drake State,20038643,"OFFICE DEPOT, INC.",Jul,30,2009,Materials and Supplies,TITLE III CARRYOVER,$290.15
48,J.F. Drake State,20038643,"OFFICE DEPOT, INC.",Jul,30,2009,Materials and Supplies,ALLIED HEALTH CARRYOVER,"$1,614.24"
48,J.F. Drake State,20038643,"OFFICE DEPOT, INC.",Jul,30,2009,Materials and Supplies,NAT'L SCIENCE FOUNDATION,"$3,168.33"
48,J.F. Drake State,20038644,SCANTRON CORPORATION,Jul,30,2009,Materials and Supplies,TITLE III CARRYOVER,$198.14
48,J.F. Drake State,20038645,SERVICE STEEL INCORP,Jul,30,2009,Materials and Supplies,,$883.00
48,J.F. Drake State,20038646,4IMPRINT,Jul,30,2009,Materials and Supplies,NAT'L SCIENCE FOUNDATION,"$1,933.75"
48,J.F. Drake State,10030447,ADULT ED DIRECTORS ASSO,Jul,30,2009,Memberships,UNRESTRICTED,$300.00
48,J.F. Drake State,10030448,APPLIED ROBOTICS,Jul,30,2009,Furniture and Equipment,WIRED GRANT,"$26,103.52"
48,J.F. Drake State,10030449,CDW-G,Jul,30,2009,Materials and Supplies,UNRESTRICTED,"$1,616.48"
48,J.F. Drake State,10030450,CM & F GROUP INC.,Jul,30,2009,Purchases for Resale,AUXILIARY,$160.00
48,J.F. Drake State,10030451,COLONIAL GRAPHICS GROUP,Jul,30,2009,Advertising and Promotions,UNRESTRICTED,$620.00
48,J.F. Drake State,10030452,CONDITIONED AIR SOLUTIONS,Jul,30,2009,Maintenance and Repairs,ARMY GRANT,$153.00
48,J.F. Drake State,10030453,COSTCO WHOLESALE,Jul,30,2009,Materials and Supplies,UNRESTRICTED,$500.00
48,J.F. Drake State,10030454,"DYNAMIC SECURITY, INC.",Jul,30,2009,Other Contractual Services,UNRESTRICTED,"$8,211.84"
48,J.F. Drake State,10030455,GATUR LAWN CARE,Jul,30,2009,Other Contractual Services,UNRESTRICTED,"$2,459.00"
48,J.F. Drake State,10030456,HIGHLANDS OCCUPATIONAL ME,Jul,30,2009,Purchases for Resale,AUXILIARY,$740.00
48,J.F. Drake State,10030457,CANDICE HOWELL,Jul,30,2009,In-State Travel,UNRESTRICTED,$121.30
48,J.F. Drake State,10030457,CANDICE HOWELL,Jul,30,2009,Employee Taxable Per Diem,UNRESTRICTED,$11.25
48,J.F. Drake State,10030458,KOORSEN PROTECTION SERVIC,Jul,30,2009,Maintenance and Repairs,UNRESTRICTED,$35.32
48,J.F. Drake State,10030459,"LANIER,FORD,SHAVER &",Jul,30,2009,Legal Services,UNRESTRICTED,"$2,388.00"
48,J.F. Drake State,10030460,MCNEESE GLASS COMPANY,Jul,30,2009,Maintenance and Repairs,UNRESTRICTED,$141.00
48,J.F. Drake State,10030462,"OFFICE DEPOT, INC.",Jul,30,2009,Materials and Supplies,CAREER COACHES,$6.82
48,J.F. Drake State,10030463,OPI PRODUCTS INC,Jul,30,2009,Purchases for Resale,UNRESTRICTED,"$1,358.67"
48,J.F. Drake State,10030464,OVERHEAD DOOR,Jul,30,2009,Maintenance and Repairs,PLANT FUNDS,"$13,261.00"
48,J.F. Drake State,10030465,PEARSON EDUCATION CTR,Jul,30,2009,Purchases for Resale,UNRESTRICTED,"$5,581.05"
48,J.F. Drake State,10030466,PITNEY BOWES,Jul,30,2009,Postage,UNRESTRICTED,$158.37
48,J.F. Drake State,10030467,"QUALITY COUNTS, INC",Jul,30,2009,Purchases for Resale,AUXILIARY,$793.00
48,J.F. Drake State,10030468,QWEST,Jul,30,2009,Other Contractual Services,ARMY GRANT,$173.42
48,J.F. Drake State,10030469,SAFETY KLEEN CORPORATION,Jul,30,2009,Other Contractual Services,UNRESTRICTED,$362.12
48,J.F. Drake State,10030470,"SMITH, RYAN",Jul,30,2009,In-State Travel,UNRESTRICTED,$339.24
48,J.F. Drake State,10030471,SOUTHERN GAS & SUPPLY,Jul,30,2009,Materials and Supplies,WIRED GRANT,"$45,446.64"
48,J.F. Drake State,10030472,SUCCESS MARKETING,Jul,30,2009,Advertising and Promotions,UNRESTRICTED,$155.00
48,J.F. Drake State,10030473,UNIVERSITY OF ALABAMA,Jul,30,2009,Other Contractual Services,UNRESTRICTED,$500.00
48,J.F. Drake State,10030439,ACT,Jul,27,2009,Materials and Supplies,UNRESTRICTED,$510.00
48,J.F. Drake State,10030440,PETTY CASH,Jul,27,2009,Materials and Supplies,UNRESTRICTED,$106.96
48,J.F. Drake State,10030440,PETTY CASH,Jul,27,2009,Institutional Use,UNRESTRICTED,$48.58
48,J.F. Drake State,10030440,PETTY CASH,Jul,27,2009,Employee Taxable Per Diem,UNRESTRICTED,$15.00
48,J.F. Drake State,10030440,PETTY CASH,Jul,27,2009,Postage,UNRESTRICTED,$6.60
48,J.F. Drake State,10030440,PETTY CASH,Jul,27,2009,Maintenance and Repairs,UNRESTRICTED,$25.98
48,J.F. Drake State,10030441,FEDEX,Jul,27,2009,Postage,UNRESTRICTED,$169.80
48,J.F. Drake State,10030442,THE INTEGRITY GROUP,Jul,27,2009,Other Contractual Services,UNRESTRICTED,$405.00
48,J.F. Drake State,10030443,UPS,Jul,27,2009,Freight,UNRESTRICTED,$347.19
48,J.F. Drake State,10030444,WEDC FOUNDATION,Jul,27,2009,Advertising and Promotions,UNRESTRICTED,"$1,000.00"
48,J.F. Drake State,10030445,"WOODY ANDERSON FORD, INC.",Jul,27,2009,Other Contractual Services,UNRESTRICTED,$36.45
48,J.F. Drake State,10030392,JUDY D. GARRETT,Jul,23,2009,Other Contractual Services,UNRESTRICTED,"$1,176.35"
48,J.F. Drake State,10030393,ACCR FOUNDATION,Jul,23,2009,Advertising and Promotions,UNRESTRICTED,$500.00
48,J.F. Drake State,10030394,ACSPRA C/O TRENT RANDOLPH,Jul,23,2009,Advertising and Promotions,UNRESTRICTED,$100.00
48,J.F. Drake State,10030395,ALABAMA A&M ATHLETICS,Jul,23,2009,Advertising and Promotions,UNRESTRICTED,$600.00
48,J.F. Drake State,10030396,AMERICAN WELDING SOCIETY,Jul,23,2009,Memberships,UNRESTRICTED,$240.00
48,J.F. Drake State,10030397,CAREER CLUSTER,Jul,23,2009,Materials and Supplies,CAREER COACHES,$315.83
48,J.F. Drake State,10030398,CHEVRON CARD SERVICES,Jul,23,2009,Gasoline and Oil - Motor Vehic,UNRESTRICTED,$561.62
48,J.F. Drake State,10030399,CONNECT CLASS 9,Jul,23,2009,Advertising and Promotions,UNRESTRICTED,$750.00
48,J.F. Drake State,10030400,COOK'S PEST CONTROL,Jul,23,2009,Other Contractual Services,ARMY GRANT,$70.00
48,J.F. Drake State,10030401,DEPARTMENT OF EXAMINERS,Jul,23,2009,Other Contractual Services,UNRESTRICTED,"$7,000.00"
48,J.F. Drake State,10030402,"DYNAMIC SECURITY, INC.",Jul,23,2009,Other Contractual Services,UNRESTRICTED,"$4,105.92"
48,J.F. Drake State,10030403,"DYNAMIC SECURITY, INC.",Jul,23,2009,Other Contractual Services,UNRESTRICTED,"$4,105.92"
48,J.F. Drake State,10030404,"DYNAMIC SECURITY, INC.",Jul,23,2009,Other Contractual Services,UNRESTRICTED,"$4,280.64"
48,J.F. Drake State,10030405,KIM GALKOWSKI,Jul,23,2009,Materials and Supplies,UNRESTRICTED,$47.99
48,J.F. Drake State,10030406,GATUR LAWN CARE,Jul,23,2009,Other Contractual Services,UNRESTRICTED,"$2,500.00"
48,J.F. Drake State,10030407,GRAINGER,Jul,23,2009,Purchases for Resale,UNRESTRICTED,$650.38
48,J.F. Drake State,10030409,KATHLEEN BUCHER,Jul,23,2009,Other Contractual Services,UNRESTRICTED,"$4,286.80"
48,J.F. Drake State,10030410,KEYPLUS SCHOOL PRODUCTS,Jul,23,2009,Institutional Use,UNRESTRICTED,$214.48
48,J.F. Drake State,10030411,THE LAMAR COMPANIES,Jul,23,2009,Advertising and Promotions,UNRESTRICTED,"$1,500.00"
48,J.F. Drake State,10030412,"MCALPINE, HELEN",Jul,23,2009,Employee Taxable Per Diem,UNRESTRICTED,$11.25
48,J.F. Drake State,10030413,MID CITY SUPPLY CO,Jul,23,2009,Materials and Supplies,UNRESTRICTED,$974.10
48,J.F. Drake State,10030414,PITNEY BOWES,Jul,23,2009,Other Contractual Services,UNRESTRICTED,$657.00
48,J.F. Drake State,10030415,SACJTC,Jul,23,2009,Memberships,UNRESTRICTED,$100.00
48,J.F. Drake State,10030416,SAVWEL,Jul,23,2009,Advertising and Promotions,UNRESTRICTED,"$1,465.00"
48,J.F. Drake State,10030417,SCHINDLER ELEVATOR CORP,Jul,23,2009,Other Contractual Services,UNRESTRICTED,$914.31
48,J.F. Drake State,10030418,"SMITH, RYAN",Jul,23,2009,In-State Travel,UNRESTRICTED,$365.94
48,J.F. Drake State,10030419,SUCCESS MARKETING,Jul,23,2009,Advertising and Promotions,UNRESTRICTED,"$19,940.00"
48,J.F. Drake State,10030420,VERIZON WIRELESS,Jul,23,2009,Communications,UNRESTRICTED,$660.19
48,J.F. Drake State,10030421,WASTE MANAGEMENT OF NORTH,Jul,23,2009,Other Contractual Services,UNRESTRICTED,$638.99
48,J.F. Drake State,10030422,XEROX CORPORATION,Jul,23,2009,Other Contractual Services,,$146.25
48,J.F. Drake State,10030423,100 BMOA GHC,Jul,23,2009,Advertising and Promotions,UNRESTRICTED,$100.00
48,J.F. Drake State,20038608,ADAM CLARK,Jul,23,2009,In-State Travel,TITLE III CARRYOVER,$197.00
48,J.F. Drake State,20038608,ADAM CLARK,Jul,23,2009,Employee Taxable Per Diem,TITLE III CARRYOVER,$60.00
48,J.F. Drake State,20038609,DOMINO'S PIZZA,Jul,23,2009,Materials and Supplies,NAT'L SCIENCE FOUNDATION,$90.00
48,J.F. Drake State,20038610,"POPE, GWENDOLYN M.",Jul,23,2009,Out-of-State Travel,,$340.34
48,J.F. Drake State,20038611,SAM'S CLUB/WALMART,Jul,23,2009,Materials and Supplies,NAT'L SCIENCE FOUNDATION,$50.00
48,J.F. Drake State,10030433,CDW-G,Jul,23,2009,Materials and Supplies,UNRESTRICTED,$201.64
48,J.F. Drake State,10030434,COUNCIL FOR OPPORT. ED,Jul,23,2009,Memberships,UNRESTRICTED,$200.00
48,J.F. Drake State,10030435,FASTENAL,Jul,23,2009,Transportation Equipment,UNRESTRICTED,"$10,910.00"
48,J.F. Drake State,10030436,INMOTION LLC,Jul,23,2009,Furniture and Equipment,WIRED GRANT,"$19,230.00"
48,J.F. Drake State,10030437,WASTE MANAGEMENT OF NORTH,Jul,23,2009,Other Contractual Services,UNRESTRICTED,$562.45
48,J.F. Drake State,20038589,ABC OFFICE,Jul,22,2009,Materials and Supplies,TITLE III CARRYOVER,$285.26
48,J.F. Drake State,20038590,AIR CONDITIONING CONTRACT,Jul,22,2009,Books,TITLE III CARRYOVER,$68.00
48,J.F. Drake State,20038591,BEST BOOKS,Jul,22,2009,Books,TITLE III CARRYOVER,"$13,605.05"
48,J.F. Drake State,20038592,CDW-G,Jul,22,2009,Materials and Supplies,TITLE III CARRYOVER,$177.79
48,J.F. Drake State,20038593,CONVERGED RESOURCE INTEG,Jul,22,2009,Materials and Supplies,TITLE III CARRYOVER,$295.50
48,J.F. Drake State,20038594,DRAKE TECH COL GEN FUND,Jul,22,2009,Materials and Supplies,TITLE III CARRYOVER,"$1,475.65"
48,J.F. Drake State,20038595,KIM GALKOWSKI,Jul,22,2009,Materials and Supplies,TITLE III CARRYOVER,$99.99
48,J.F. Drake State,20038596,"HUGHES, PATRICIA",Jul,22,2009,In-State Travel,TITLE III CARRYOVER,$370.00
48,J.F. Drake State,20038597,KEYPLUS SCHOOL PRODUCTS,Jul,22,2009,Materials and Supplies,TITLE III CARRYOVER,"$1,468.29"
48,J.F. Drake State,20038598,KIM GALKOWSKI,Jul,22,2009,In-State Travel,TITLE III CARRYOVER,$225.00
48,J.F. Drake State,20038599,NASFAA,Jul,22,2009,Memberships,TITLE III CARRYOVER,$812.00
48,J.F. Drake State,20038600,NINA BULLOCK,Jul,22,2009,Out-of-State Travel,,$353.88
48,J.F. Drake State,20038601,"RAYMOND, ALICE",Jul,22,2009,Out-of-State Travel,ALLIED HEALTH CARRYOVER,"$1,320.55"
48,J.F. Drake State,20038602,SAM'S CLUB/WALMART,Jul,22,2009,Materials and Supplies,TITLE III CARRYOVER,$59.76
48,J.F. Drake State,20038603,CHRISTINA SCISSUM,Jul,22,2009,Out-of-State Travel,TITLE III CARRYOVER,$246.36
48,J.F. Drake State,20038604,TECHNICAL TRAINING AIDS,Jul,22,2009,Materials and Supplies,TITLE III CARRYOVER,"$7,695.00"
48,J.F. Drake State,20038605,GIL TURLEY,Jul,22,2009,In-State Travel,TITLE III CARRYOVER,$716.90
48,J.F. Drake State,20038606,4IMPRINT,Jul,22,2009,Materials and Supplies,NAT'L SCIENCE FOUNDATION,"$3,937.78"
48,J.F. Drake State,14867,ROGER CHEN,Jul,15,2009,Other Contractual Services,NAT'L SCIENCE FOUNDATION,"$1,330.00"
48,J.F. Drake State,90011028,ALEXANDRA CATRICE DAVIS,Jul,15,2009,Hourly Wages,PROJECT TREE,$135.00
48,J.F. Drake State,90011029,DAMEON L HAGLER,Jul,15,2009,Other Contractual Services,NAT'L SCIENCE FOUNDATION,$100.00
48,J.F. Drake State,90011030,ANTHONY MARCEL HARRIS,Jul,15,2009,Hourly Wages,PROJECT TREE,$135.00
48,J.F. Drake State,90011031,ALIREZA HASSANZADEH,Jul,15,2009,Other Contractual Services,NAT'L SCIENCE FOUNDATION,$925.00
48,J.F. Drake State,90011032,JARROD PATTERSON,Jul,15,2009,Other Contractual Services,TITLE III CARRYOVER,$740.00
48,J.F. Drake State,90011033,MORGAN ALBERT RICHARDSON,Jul,15,2009,Hourly Wages,Q-TRACK,$135.00
48,J.F. Drake State,10030368,CM & F GROUP INC.,Jul,14,2009,Purchases for Resale,AUXILIARY,$432.00
48,J.F. Drake State,10030369,CM&F GROUP,Jul,14,2009,Purchases for Resale,AUXILIARY,$244.00
48,J.F. Drake State,10030370,EUGENE CRAWFORD,Jul,14,2009,Other Contractual Services,PLANT FUNDS,$200.00
48,J.F. Drake State,10030371,GATUR LAWN CARE,Jul,14,2009,Other Contractual Services,UNRESTRICTED,"$2,459.00"
48,J.F. Drake State,10030372,STEVEN HESTER,Jul,14,2009,Other Contractual Services,PLANT FUNDS,$120.00
48,J.F. Drake State,10030373,DANA MOORE,Jul,14,2009,Out-of-State Travel,UNRESTRICTED,$353.99
48,J.F. Drake State,10030374,JAMES REED,Jul,14,2009,Other Contractual Services,PLANT FUNDS,$120.00
48,J.F. Drake State,10030375,"SMITH, RYAN",Jul,14,2009,In-State Travel,UNRESTRICTED,$81.32
48,J.F. Drake State,10030376,SPEAKIN OUT NEWS,Jul,14,2009,Advertising and Promotions,UNRESTRICTED,"$2,800.00"
48,J.F. Drake State,10030377,PHILLIP TIDWELL,Jul,14,2009,Other Contractual Services,PLANT FUNDS,$120.00
48,J.F. Drake State,20038582,BUBBA'S,Jul,14,2009,Materials and Supplies,NAT'L SCIENCE FOUNDATION,$174.00
48,J.F. Drake State,20038583,CHING LEE PONGPAKDEE,Jul,14,2009,Other Contractual Services,NAT'L SCIENCE FOUNDATION,$544.00
48,J.F. Drake State,20038584,DR. JOHN REUTTER,Jul,14,2009,Out-of-State Travel,NAT'L SCIENCE FOUNDATION,$935.45
48,J.F. Drake State,20038585,SEXTON WELDING SUPPLY,Jul,14,2009,Materials and Supplies,,"$1,431.77"
48,J.F. Drake State,10030321,SAFELITE AUTO GLASS,Jul,9,2009,Maintenance and Repairs,UNRESTRICTED,$194.93
48,J.F. Drake State,20038427,ALABAMA MASTER TEACHER,Jul,9,2009,In-State Travel,TITLE III CARRYOVER,$500.00
48,J.F. Drake State,20038428,HAMPTON INN,Jul,9,2009,In-State Travel,,$626.75
48,J.F. Drake State,20038478,LARAE WADE,Jul,9,2009,Other Contractual Services,NAT'L SCIENCE FOUNDATION,$544.00
48,J.F. Drake State,20038479,LARRY DAVIS II,Jul,9,2009,Other Contractual Services,NAT'L SCIENCE FOUNDATION,$544.00
48,J.F. Drake State,20038480,LATORIA HAMMONS,Jul,9,2009,Other Contractual Services,NAT'L SCIENCE FOUNDATION,$544.00
48,J.F. Drake State,20038481,MARIAH CLABORN,Jul,9,2009,Other Contractual Services,NAT'L SCIENCE FOUNDATION,$510.00
48,J.F. Drake State,20038482,MARLON BAILEY,Jul,9,2009,Other Contractual Services,NAT'L SCIENCE FOUNDATION,$510.00
48,J.F. Drake State,20038483,MARQUITA NELMS,Jul,9,2009,Other Contractual Services,NAT'L SCIENCE FOUNDATION,$544.00
48,J.F. Drake State,20038484,MERCEDES DAMBER,Jul,9,2009,Other Contractual Services,NAT'L SCIENCE FOUNDATION,$544.00
48,J.F. Drake State,20038485,MICHAEL KERR,Jul,9,2009,Other Contractual Services,NAT'L SCIENCE FOUNDATION,$544.00
48,J.F. Drake State,20038486,MICHAEL PARVIN,Jul,9,2009,Other Contractual Services,NAT'L SCIENCE FOUNDATION,$476.00
48,J.F. Drake State,20038487,MICHAEL WILLIAMS,Jul,9,2009,Other Contractual Services,NAT'L SCIENCE FOUNDATION,$544.00
48,J.F. Drake State,20038489,MICHELE GOOSBY,Jul,9,2009,Other Contractual Services,NAT'L SCIENCE FOUNDATION,$501.50
48,J.F. Drake State,20038490,NICHOLAS WADLEY,Jul,9,2009,Other Contractual Services,NAT'L SCIENCE FOUNDATION,$527.00
48,J.F. Drake State,20038491,PATRICK WILLIAMS,Jul,9,2009,Other Contractual Services,NAT'L SCIENCE FOUNDATION,$527.00
48,J.F. Drake State,20038492,PRECIOUS LESLIE,Jul,9,2009,Other Contractual Services,NAT'L SCIENCE FOUNDATION,$510.00
48,J.F. Drake State,20038493,QUINTON SMITH,Jul,9,2009,Other Contractual Services,NAT'L SCIENCE FOUNDATION,$518.50
48,J.F. Drake State,20038494,RAVEN TOWSEND,Jul,9,2009,Other Contractual Services,NAT'L SCIENCE FOUNDATION,$544.00
48,J.F. Drake State,20038495,RENIER SELMAN,Jul,9,2009,Other Contractual Services,NAT'L SCIENCE FOUNDATION,$544.00
48,J.F. Drake State,20038496,RYAN WARD,Jul,9,2009,Other Contractual Services,NAT'L SCIENCE FOUNDATION,$544.00
48,J.F. Drake State,20038497,SAMELIA PLUMMER,Jul,9,2009,Other Contractual Services,NAT'L SCIENCE FOUNDATION,$544.00
48,J.F. Drake State,20038498,SHAQUALLAH SAFFOLD,Jul,9,2009,Other Contractual Services,NAT'L SCIENCE FOUNDATION,$493.00
48,J.F. Drake State,20038499,TANEQUA WHITMAN,Jul,9,2009,Other Contractual Services,NAT'L SCIENCE FOUNDATION,$510.00
48,J.F. Drake State,20038500,TAREIKA C. FLETCHER,Jul,9,2009,Other Contractual Services,NAT'L SCIENCE FOUNDATION,$544.00
48,J.F. Drake State,20038501,TIFARA JOHNSON,Jul,9,2009,Other Contractual Services,NAT'L SCIENCE FOUNDATION,$544.00
48,J.F. Drake State,20038502,TROY MCKINNEY,Jul,9,2009,Other Contractual Services,NAT'L SCIENCE FOUNDATION,$544.00
48,J.F. Drake State,20038503,TYLER WIGGINS,Jul,9,2009,Other Contractual Services,NAT'L SCIENCE FOUNDATION,$518.50
48,J.F. Drake State,20038504,VANESSA AMBER,Jul,9,2009,Other Contractual Services,NAT'L SCIENCE FOUNDATION,$510.00
48,J.F. Drake State,20038505,VICTORIA PACE,Jul,9,2009,Other Contractual Services,NAT'L SCIENCE FOUNDATION,$518.50
48,J.F. Drake State,20038506,VIVIAN NGUYEN,Jul,9,2009,Other Contractual Services,NAT'L SCIENCE FOUNDATION,$510.00
48,J.F. Drake State,20038507,WHITNE COSTON,Jul,9,2009,Other Contractual Services,NAT'L SCIENCE FOUNDATION,$501.50
48,J.F. Drake State,20038508,WILLIAM CALVERT II,Jul,9,2009,Other Contractual Services,NAT'L SCIENCE FOUNDATION,$527.00
48,J.F. Drake State,20038509,ZACHARY BURRELL,Jul,9,2009,Other Contractual Services,NAT'L SCIENCE FOUNDATION,$544.00
48,J.F. Drake State,20038510,ZAKEA BLATCHE,Jul,9,2009,Other Contractual Services,NAT'L SCIENCE FOUNDATION,$544.00
48,J.F. Drake State,10030359,EVOLVE REACH,Jul,9,2009,Purchases for Resale,AUXILIARY,$756.00
48,J.F. Drake State,10030360,FEDEX,Jul,9,2009,Postage,UNRESTRICTED,$72.77
48,J.F. Drake State,10030362,J. A. MAJORS COMPANY,Jul,9,2009,Purchases for Resale,UNRESTRICTED,$273.21
48,J.F. Drake State,10030364,SOUTHERNLINC WIRELESS,Jul,9,2009,Communications,UNRESTRICTED,$79.50
48,J.F. Drake State,20038512,A'QUINTA WHITMAN,Jul,9,2009,Other Contractual Services,NAT'L SCIENCE FOUNDATION,$527.00
48,J.F. Drake State,20038513,AINSWORTH THOMAS,Jul,9,2009,Other Contractual Services,NAT'L SCIENCE FOUNDATION,$544.00
48,J.F. Drake State,20038514,ALAN BAKER,Jul,9,2009,Other Contractual Services,NAT'L SCIENCE FOUNDATION,$501.50
48,J.F. Drake State,20038515,ALAN CRUZ,Jul,9,2009,Other Contractual Services,NAT'L SCIENCE FOUNDATION,$535.50
48,J.F. Drake State,20038516,ALESHA HENLEY,Jul,9,2009,Other Contractual Services,NAT'L SCIENCE FOUNDATION,$527.00
48,J.F. Drake State,20038517,ALLANTRIA JONES,Jul,9,2009,Other Contractual Services,NAT'L SCIENCE FOUNDATION,$510.00
48,J.F. Drake State,20038518,ALRIC GREEN,Jul,9,2009,Other Contractual Services,NAT'L SCIENCE FOUNDATION,$510.00
48,J.F. Drake State,20038519,AMY BROWN,Jul,9,2009,Other Contractual Services,NAT'L SCIENCE FOUNDATION,$544.00
48,J.F. Drake State,20038520,ANGELIQUE HUMPHREY,Jul,9,2009,Other Contractual Services,NAT'L SCIENCE FOUNDATION,$544.00
48,J.F. Drake State,20038521,ANTHONY LONG,Jul,9,2009,Other Contractual Services,NAT'L SCIENCE FOUNDATION,$544.00
48,J.F. Drake State,20038522,ARIANA HUMPHREY,Jul,9,2009,Other Contractual Services,NAT'L SCIENCE FOUNDATION,$510.00
48,J.F. Drake State,20038523,ARIEL MASON,Jul,9,2009,Other Contractual Services,NAT'L SCIENCE FOUNDATION,$544.00
48,J.F. Drake State,20038524,AUBREY MADKINS,Jul,9,2009,Other Contractual Services,NAT'L SCIENCE FOUNDATION,$544.00
48,J.F. Drake State,20038525,AYANNA FREEMAN,Jul,9,2009,Other Contractual Services,NAT'L SCIENCE FOUNDATION,$544.00
48,J.F. Drake State,20038526,BRANDON JONES,Jul,9,2009,Other Contractual Services,NAT'L SCIENCE FOUNDATION,$510.00
48,J.F. Drake State,20038527,BRANDYN CRUTCHER,Jul,9,2009,Other Contractual Services,NAT'L SCIENCE FOUNDATION,$459.00
48,J.F. Drake State,20038528,BREANNA WINTON,Jul,9,2009,Other Contractual Services,NAT'L SCIENCE FOUNDATION,$510.00
48,J.F. Drake State,20038529,BRITTANY TOWNSEND,Jul,9,2009,Other Contractual Services,NAT'L SCIENCE FOUNDATION,$518.50
48,J.F. Drake State,20038530,CANDACE CRUM,Jul,9,2009,Other Contractual Services,NAT'L SCIENCE FOUNDATION,$544.00
48,J.F. Drake State,20038531,CANISHA GREEN,Jul,9,2009,Other Contractual Services,NAT'L SCIENCE FOUNDATION,$493.00
48,J.F. Drake State,20038532,CARLA MOBERLY,Jul,9,2009,Other Contractual Services,NAT'L SCIENCE FOUNDATION,$527.00
48,J.F. Drake State,20038533,CARLOS CLAYBORN,Jul,9,2009,Other Contractual Services,NAT'L SCIENCE FOUNDATION,$493.00
48,J.F. Drake State,20038534,CARRIE SANDERS,Jul,9,2009,Other Contractual Services,NAT'L SCIENCE FOUNDATION,$544.00
48,J.F. Drake State,20038535,CHRISTINA BOYD,Jul,9,2009,Other Contractual Services,NAT'L SCIENCE FOUNDATION,$544.00
48,J.F. Drake State,20038536,DAVID MURPHY,Jul,9,2009,Other Contractual Services,NAT'L SCIENCE FOUNDATION,$544.00
48,J.F. Drake State,20038537,DEMONTREZ JONES,Jul,9,2009,Other Contractual Services,NAT'L SCIENCE FOUNDATION,$365.50
48,J.F. Drake State,20038538,DEON LEWIS,Jul,9,2009,Other Contractual Services,NAT'L SCIENCE FOUNDATION,$544.00
48,J.F. Drake State,20038539,DEREK TRIPLETT,Jul,9,2009,Other Contractual Services,NAT'L SCIENCE FOUNDATION,$544.00
48,J.F. Drake State,20038540,DOMINIQUE MOORE,Jul,9,2009,Other Contractual Services,NAT'L SCIENCE FOUNDATION,$544.00
48,J.F. Drake State,20038541,DOMINIQUE CLARK,Jul,9,2009,Other Contractual Services,NAT'L SCIENCE FOUNDATION,$544.00
48,J.F. Drake State,20038542,DUANE BRANCH,Jul,9,2009,Other Contractual Services,NAT'L SCIENCE FOUNDATION,$544.00
48,J.F. Drake State,20038543,ERIKA GOODLOE,Jul,9,2009,Other Contractual Services,NAT'L SCIENCE FOUNDATION,$527.00
48,J.F. Drake State,20038544,EVIAN JOHNSON,Jul,9,2009,Other Contractual Services,NAT'L SCIENCE FOUNDATION,$476.00
48,J.F. Drake State,20038545,JASMINE CARTHEN,Jul,9,2009,Other Contractual Services,NAT'L SCIENCE FOUNDATION,$510.00
48,J.F. Drake State,20038546,JASMINE REDUS,Jul,9,2009,Other Contractual Services,NAT'L SCIENCE FOUNDATION,$510.00
48,J.F. Drake State,20038547,JONATHAN SULLIVAN,Jul,9,2009,Other Contractual Services,NAT'L SCIENCE FOUNDATION,$510.00
48,J.F. Drake State,20038548,JORDAN BONE,Jul,9,2009,Other Contractual Services,NAT'L SCIENCE FOUNDATION,$544.00
48,J.F. Drake State,20038549,JOSHUA DOMOND,Jul,9,2009,Other Contractual Services,NAT'L SCIENCE FOUNDATION,$544.00
48,J.F. Drake State,20038550,KATHRYN TOWNSEND,Jul,9,2009,Other Contractual Services,NAT'L SCIENCE FOUNDATION,$518.50
48,J.F. Drake State,20038551,KATIE ADCOCK,Jul,9,2009,Other Contractual Services,NAT'L SCIENCE FOUNDATION,$510.00
48,J.F. Drake State,20038552,KEITH MARSHALL,Jul,9,2009,Other Contractual Services,NAT'L SCIENCE FOUNDATION,$544.00
48,J.F. Drake State,20038553,KENDALL LEWIS,Jul,9,2009,Other Contractual Services,NAT'L SCIENCE FOUNDATION,$493.00
48,J.F. Drake State,20038554,KENYA MCCRARY,Jul,9,2009,Other Contractual Services,NAT'L SCIENCE FOUNDATION,$544.00
48,J.F. Drake State,20038555,KEVIN HOUSTON,Jul,9,2009,Other Contractual Services,NAT'L SCIENCE FOUNDATION,$501.50
48,J.F. Drake State,20038556,KEVIN WILSON,Jul,9,2009,Other Contractual Services,NAT'L SCIENCE FOUNDATION,$357.00
48,J.F. Drake State,20038557,KHIERRA HARGROVE,Jul,9,2009,Other Contractual Services,NAT'L SCIENCE FOUNDATION,$527.00
48,J.F. Drake State,20038558,NIKKI LEE,Jul,9,2009,Other Contractual Services,NAT'L SCIENCE FOUNDATION,$510.00
48,J.F. Drake State,20038559,KRISTIN WOODARD,Jul,9,2009,Other Contractual Services,NAT'L SCIENCE FOUNDATION,$527.00
48,J.F. Drake State,20038560,MICHAELA GLOVER,Jul,9,2009,Other Contractual Services,NAT'L SCIENCE FOUNDATION,$544.00
48,J.F. Drake State,10030288,ALABAMA A&M UNIVERSITY,Jul,8,2009,Institutional Use,UNRESTRICTED,"$1,000.00"
48,J.F. Drake State,10030289,"BURMAX, INC.",Jul,8,2009,Purchases for Resale,UNRESTRICTED,$161.12
48,J.F. Drake State,10030290,CDW-G,Jul,8,2009,Materials and Supplies,UNRESTRICTED,"$1,461.68"
48,J.F. Drake State,10030291,CENTRAL PAPER COMPANY,Jul,8,2009,Materials and Supplies,UNRESTRICTED,"$2,451.00"
48,J.F. Drake State,10030292,APRIL CLEMENT,Jul,8,2009,In-State Travel,CAREER COACHES,$61.44
48,J.F. Drake State,10030293,COLONIAL GRAPHICS GROUP,Jul,8,2009,Materials and Supplies,UNRESTRICTED,$280.00
48,J.F. Drake State,10030294,COUNCIL ON OCCUP. EDUC.,Jul,8,2009,Memberships,UNRESTRICTED,$200.00
48,J.F. Drake State,10030295,"DATA SUPPLIES, INC.",Jul,8,2009,Materials and Supplies,UNRESTRICTED,$449.97
48,J.F. Drake State,10030296,DEAF ACCESS,Jul,8,2009,Other Contractual Services,UNRESTRICTED,"$3,716.00"
48,J.F. Drake State,10030297,DRAPHIX LLC,Jul,8,2009,Purchases for Resale,UNRESTRICTED,$359.40
48,J.F. Drake State,10030298,"DYNAMIC SECURITY, INC.",Jul,8,2009,Other Contractual Services,UNRESTRICTED,"$4,105.92"
48,J.F. Drake State,10030299,EDUCAUSE,Jul,8,2009,Other Contractual Services,UNRESTRICTED,$40.00
48,J.F. Drake State,10030300,ENGINEERED MAINTENACE SER,Jul,8,2009,Maintenance and Repairs,UNRESTRICTED,$155.80
48,J.F. Drake State,10030301,EVOLVE REACH,Jul,8,2009,Purchases for Resale,AUXILIARY,$756.00
48,J.F. Drake State,10030302,FEDEX,Jul,8,2009,Postage,UNRESTRICTED,$72.77
48,J.F. Drake State,10030303,GREY HOUSE PUB,Jul,8,2009,Materials and Supplies,UNRESTRICTED,$178.50
48,J.F. Drake State,10030304,HAWORTH,Jul,8,2009,Materials and Supplies,UNRESTRICTED,$770.82
48,J.F. Drake State,10030305,J. A. MAJORS COMPANY,Jul,8,2009,Purchases for Resale,UNRESTRICTED,$273.21
48,J.F. Drake State,10030306,KEYPLUS SCHOOL PRODUCTS,Jul,8,2009,Institutional Use,UNRESTRICTED,"$2,286.11"
48,J.F. Drake State,10030307,"LANIER,FORD,SHAVER &",Jul,8,2009,Legal Services,UNRESTRICTED,$402.50
48,J.F. Drake State,10030308,HALO BRANDED SOLUTIONS IN,Jul,8,2009,Purchases for Resale,UNRESTRICTED,$728.00
48,J.F. Drake State,10030309,"MCALPINE, HELEN",Jul,8,2009,In-State Travel,UNRESTRICTED,$632.00
48,J.F. Drake State,10030310,ANTHONY MCDANIELS,Jul,8,2009,In-State Travel,CAREER COACHES,$56.83
48,J.F. Drake State,10030311,MCGRAW HILL EDUCATION,Jul,8,2009,Purchases for Resale,UNRESTRICTED,"$11,730.88"
48,J.F. Drake State,10030311,MCGRAW HILL EDUCATION,Jul,8,2009,Materials and Supplies,UNRESTRICTED,"$3,321.30"
48,J.F. Drake State,10030312,NIGHTINGALE UNIFORM COMPA,Jul,8,2009,Purchases for Resale,UNRESTRICTED,$422.00
48,J.F. Drake State,10030313,PEARSON EDUCATION CTR,Jul,8,2009,Purchases for Resale,UNRESTRICTED,"$29,055.06"
48,J.F. Drake State,10030314,PITNEY BOWES,Jul,8,2009,Postage,UNRESTRICTED,$355.92
48,J.F. Drake State,10030315,SOUTHERNLINC WIRELESS,Jul,8,2009,Communications,UNRESTRICTED,$79.50
48,J.F. Drake State,10030316,THE INTEGRITY GROUP,Jul,8,2009,Other Contractual Services,UNRESTRICTED,$405.00
48,J.F. Drake State,10030317,KRISTIN TREADWAY,Jul,8,2009,In-State Travel,CAREER COACHES,$26.57
48,J.F. Drake State,10030318,"WHOLESALE TROPHIES, INC.",Jul,8,2009,Institutional Use,UNRESTRICTED,$289.96
48,J.F. Drake State,10030319,RICKY WILLINGHAM,Jul,8,2009,In-State Travel,CAREER COACHES,$49.61
48,J.F. Drake State,20038395,AIR CONDITIONING CONTRACT,Jul,8,2009,Books,TITLE III CARRYOVER,"$2,291.55"
48,J.F. Drake State,20038396,AIRGAS SOUTH,Jul,8,2009,Materials and Supplies,,$179.99
48,J.F. Drake State,20038397,AMERICAN EXPRESS,Jul,8,2009,Out-of-State Travel,TITLE III CARRYOVER,$349.39
48,J.F. Drake State,20038398,BUBBA'S,Jul,8,2009,Materials and Supplies,NAT'L SCIENCE FOUNDATION,$495.00
48,J.F. Drake State,20038399,CARLA HENRY,Jul,8,2009,In-State Travel,,$185.89
48,J.F. Drake State,20038400,CDW-G,Jul,8,2009,Materials and Supplies,NAT'L SCIENCE FOUNDATION,"$1,072.20"
48,J.F. Drake State,20038401,CHROMCRAFT,Jul,8,2009,Materials and Supplies,TITLE III CARRYOVER,"$23,249.00"
48,J.F. Drake State,20038402,COLONIAL MEDICAL CORP,Jul,8,2009,Materials and Supplies,ALLIED HEALTH CARRYOVER,"$2,646.95"
48,J.F. Drake State,20038403,DEANS OF STUDENT AFFAIRS,Jul,8,2009,In-State Travel,,$275.00
48,J.F. Drake State,20038404,DR. MOSTAFA DOKHANIAN,Jul,8,2009,Other Contractual Services,NAT'L SCIENCE FOUNDATION,"$1,625.00"
48,J.F. Drake State,20038405,ENTERPRISE RENT-A-CAR,Jul,8,2009,Materials and Supplies,,$321.00
48,J.F. Drake State,20038406,BRENDA H. FRIEND,Jul,8,2009,Out-of-State Travel,TITLE III CARRYOVER,$407.73
48,J.F. Drake State,20038407,GRAND HYATT SAN ANTONIO,Jul,8,2009,Out-of-State Travel,TITLE III CARRYOVER,$882.63
48,J.F. Drake State,20038408,JANPAK,Jul,8,2009,Materials and Supplies,ALLIED HEALTH CARRYOVER,"$4,879.00"
48,J.F. Drake State,20038409,MOORE MEDICAL CORP,Jul,8,2009,Materials and Supplies,ALLIED HEALTH CARRYOVER,"$4,131.45"
48,J.F. Drake State,20038410,DANA MOORE,Jul,8,2009,In-State Travel,TITLE III CARRYOVER,$126.27
48,J.F. Drake State,20038411,MTM MIDWEST TROPHY,Jul,8,2009,Materials and Supplies,,$788.71
48,J.F. Drake State,20038412,NASFAA,Jul,8,2009,Out-of-State Travel,TITLE III CARRYOVER,$625.00
48,J.F. Drake State,20038413,"OFFICE DEPOT, INC.",Jul,8,2009,Materials and Supplies,TITLE III CARRYOVER,$709.62
48,J.F. Drake State,20038413,"OFFICE DEPOT, INC.",Jul,8,2009,Materials and Supplies,ALLIED HEALTH CARRYOVER,$106.99
48,J.F. Drake State,20038414,JENNIFER OLINGER,Jul,8,2009,In-State Travel,TITLE III CARRYOVER,$636.72
48,J.F. Drake State,20038414,JENNIFER OLINGER,Jul,8,2009,In-State Travel,,$200.00
48,J.F. Drake State,20038415,JENNIFER OLINGER,Jul,8,2009,In-State Travel,,$220.00
48,J.F. Drake State,20038416,"RAYMOND, ALICE",Jul,8,2009,In-State Travel,ALLIED HEALTH CARRYOVER,$424.60
48,J.F. Drake State,20038416,"RAYMOND, ALICE",Jul,8,2009,Employee Taxable Per Diem,ALLIED HEALTH CARRYOVER,$60.00
48,J.F. Drake State,20038417,SACS,Jul,8,2009,Out-of-State Travel,TITLE III CARRYOVER,$350.00
48,J.F. Drake State,20038418,SAM'S CLUB/WALMART,Jul,8,2009,Materials and Supplies,NAT'L SCIENCE FOUNDATION,$500.00
48,J.F. Drake State,20038419,SEXTON WELDING SUPPLY,Jul,8,2009,Materials and Supplies,,"$1,431.77"
48,J.F. Drake State,20038420,"SIMS, PATRICIA G.",Jul,8,2009,In-State Travel,TITLE III CARRYOVER,$150.00
48,J.F. Drake State,20038421,"SNMP TECHNOLOGIES, INC",Jul,8,2009,Materials and Supplies,,"$4,628.40"
48,J.F. Drake State,20038422,SOUTHERN TOOL STEEL,Jul,8,2009,Materials and Supplies,,"$1,020.00"
48,J.F. Drake State,20038423,"SUDEALL, MONICA",Jul,8,2009,In-State Travel,TITLE III CARRYOVER,$792.90
48,J.F. Drake State,20038423,"SUDEALL, MONICA",Jul,8,2009,Employee Taxable Per Diem,TITLE III CARRYOVER,$82.50
48,J.F. Drake State,20038424,"TROTMAN, JOYLYN",Jul,8,2009,In-State Travel,TITLE III CARRYOVER,$363.24
48,J.F. Drake State,20038425,"WHITE, YVONNE M.",Jul,8,2009,In-State Travel,TITLE III CARRYOVER,$225.00
48,J.F. Drake State,20038393,SAM'S CLUB/WALMART,Jul,8,2009,Materials and Supplies,NAT'L SCIENCE FOUNDATION,$300.00
48,J.F. Drake State,10030238,ACT,Jun,30,2009,Materials and Supplies,UNRESTRICTED,"$2,290.00"
48,J.F. Drake State,10030239,COLONIAL GRAPHICS GROUP,Jun,30,2009,Advertising and Promotions,UNRESTRICTED,"$3,592.50"
48,J.F. Drake State,10030240,CONDITIONED AIR SOLUTIONS,Jun,30,2009,Other Contractual Services,PLANT FUNDS,$457.00
48,J.F. Drake State,10030240,CONDITIONED AIR SOLUTIONS,Jun,30,2009,Maintenance and Repairs,PLANT FUNDS,$363.24
48,J.F. Drake State,10030241,ENGINEERED MAINTENACE SER,Jun,30,2009,Maintenance and Repairs,UNRESTRICTED,$155.80
48,J.F. Drake State,10030242,GLIDDEN PROFESSIONAL PAI,Jun,30,2009,Materials and Supplies,PLANT FUNDS,$761.06
48,J.F. Drake State,10030243,JOHNSTONE SUPPLY,Jun,30,2009,Materials and Supplies,UNRESTRICTED,$252.23
48,J.F. Drake State,10030244,KOORSEN PROTECTION SERVIC,Jun,30,2009,Other Contractual Services,UNRESTRICTED,$260.00
48,J.F. Drake State,10030245,LOWE'S,Jun,30,2009,Materials and Supplies,PLANT FUNDS,"$2,561.71"
48,J.F. Drake State,10030245,LOWE'S,Jun,30,2009,Purchases for Resale,UNRESTRICTED,$260.02
48,J.F. Drake State,10030246,MULLINS FIVE POINTS RENTA,Jun,30,2009,Other Contractual Services,UNRESTRICTED,$71.50
48,J.F. Drake State,10030247,"OFFICE DEPOT, INC.",Jun,30,2009,Materials and Supplies,CAREER COACHES,$293.91
48,J.F. Drake State,10030248,ROTO-ROOTER PLUMBERS,Jun,30,2009,Materials and Supplies,ARMY GRANT,$329.00
48,J.F. Drake State,10030248,ROTO-ROOTER PLUMBERS,Jun,30,2009,Maintenance and Repairs,UNRESTRICTED,$476.00
48,J.F. Drake State,10030249,SIEMENS PRODUCT LIFECYCLE,Jun,30,2009,Maintenance and Repairs,UNRESTRICTED,$130.00
48,J.F. Drake State,14865,TOBY R HOLLOWAY,Jun,30,2009,Instructional Salaries - Tempo,UNRESTRICTED,"$1,268.77"
48,J.F. Drake State,14866,JACKIE D SANDERS,Jun,30,2009,Instructional Salaries - Tempo,UNRESTRICTED,"$1,268.77"
48,J.F. Drake State,90010900,ROBBIE LEE AKINS,Jun,30,2009,Support Personnel Salaries - S,UNRESTRICTED,"$2,112.00"
48,J.F. Drake State,90010901,LYSA AUGUSTIN,Jun,30,2009,Instructional Salaries - Tempo,UNRESTRICTED,$605.00
48,J.F. Drake State,90010902,CAROLYN AVRITTE,Jun,30,2009,Instructional Salaries - Tempo,UNRESTRICTED,$695.50
48,J.F. Drake State,90010903,NELSON E BARNES,Jun,30,2009,Instructional Salaries - Tempo,UNRESTRICTED,"$1,268.77"
48,J.F. Drake State,90010904,BEN BATTLE,Jun,30,2009,Instructional Salaries - Regul,UNRESTRICTED,"$5,322.33"
48,J.F. Drake State,90010906,HAROLD E BATTS,Jun,30,2009,Other Professional Salaries -,UNRESTRICTED,"$8,503.50"
48,J.F. Drake State,90010908,ANGELA NICOLE BELL,Jun,30,2009,Instructional Salaries - Regul,UNRESTRICTED,"$4,332.67"
48,J.F. Drake State,90010910,SHALANA L BROWN,Jun,30,2009,Instructional Salaries - Tempo,UNRESTRICTED,$450.00
48,J.F. Drake State,90010911,NINA BULLOCK,Jun,30,2009,Instructional Salaries - Regul,UNRESTRICTED,"$4,370.33"
48,J.F. Drake State,90010912,LINDA BURRUSS,Jun,30,2009,Instructional Salaries - Tempo,UNRESTRICTED,$733.77
48,J.F. Drake State,90010913,KHALILAH BURTON,Jun,30,2009,Instructional Salaries - Regul,UNRESTRICTED,"$4,332.67"
48,J.F. Drake State,90010913,KHALILAH BURTON,Jun,30,2009,Instructional Salaries - Tempo,UNRESTRICTED,$733.77
48,J.F. Drake State,90010914,NECHA L BURTON,Jun,30,2009,Support Personnel Salaries - S,UNRESTRICTED,"$1,528.72"
48,J.F. Drake State,90010914,NECHA L BURTON,Jun,30,2009,Support Personnel Salaries - S,TITLE III CARRYOVER,$509.57
48,J.F. Drake State,90010916,TROY M CAMPBELL,Jun,30,2009,Instructional Salaries - Tempo,UNRESTRICTED,$733.77
48,J.F. Drake State,90010917,KEMBA CHAMBERS,Jun,30,2009,Other Professional Salaries -,UNRESTRICTED,"$7,360.41"
48,J.F. Drake State,90010918,JOSHUA CHAMPION,Jun,30,2009,Support Personnel Salaries - S,UNRESTRICTED,$570.00
48,J.F. Drake State,90010919,ADAM CLARK,Jun,30,2009,Instructional Salaries - Regul,UNRESTRICTED,"$4,295.00"
48,J.F. Drake State,90010920,APRIL CLEMENT,Jun,30,2009,Support Personnel Salaries - S,CAREER COACHES,"$2,336.00"
48,J.F. Drake State,90010921,TINA COTHREN,Jun,30,2009,Instructional Salaries - Tempo,UNRESTRICTED,$749.00
48,J.F. Drake State,90010922,MATTIE D DAVIS,Jun,30,2009,Instructional Salaries - Regul,UNRESTRICTED,"$4,609.00"
48,J.F. Drake State,90010923,MARTHA W DUBEY,Jun,30,2009,Support Personnel Salaries - S,UNRESTRICTED,"$4,500.00"
48,J.F. Drake State,90010924,MARY D FISHER,Jun,30,2009,Instructional Salaries - Tempo,UNRESTRICTED,$883.75
48,J.F. Drake State,90010925,PAUL FONTAINE,Jun,30,2009,Instructional Salaries - Tempo,UNRESTRICTED,$638.00
48,J.F. Drake State,90010926,BERNELL S FONTENOT,Jun,30,2009,Support Personnel Salaries - S,UNRESTRICTED,"$3,973.25"
48,J.F. Drake State,90010927,EDWIN T FORBES,Jun,30,2009,Instructional Salaries - Regul,UNRESTRICTED,"$8,587.25"
48,J.F. Drake State,90010927,EDWIN T FORBES,Jun,30,2009,Instructional Salaries - Tempo,UNRESTRICTED,$450.00
48,J.F. Drake State,90010928,MIRIAM B FRANK,Jun,30,2009,Instructional Salaries - Regul,UNRESTRICTED,"$4,840.92"
48,J.F. Drake State,90010929,MATTIE B FREEMAN,Jun,30,2009,Instructional Salaries - Tempo,UNRESTRICTED,"$1,752.13"
48,J.F. Drake State,90010930,BRENDA H FRIEND,Jun,30,2009,Other Professional Salaries -,TITLE III CARRYOVER,"$7,905.25"
48,J.F. Drake State,90010931,KIM GALKOWSKI,Jun,30,2009,Support Personnel Salaries - S,UNRESTRICTED,"$3,972.50"
48,J.F. Drake State,90010932,BONNIE GARRETT,Jun,30,2009,Instructional Salaries - Tempo,UNRESTRICTED,"$1,402.50"
48,J.F. Drake State,90010933,MANELZA CRAWFORD HAMBRICK,Jun,30,2009,Support Personnel Salaries - S,UNRESTRICTED,"$2,336.50"
48,J.F. Drake State,90010934,WILLIAM HAMPTON,Jun,30,2009,Support Personnel Salaries - S,UNRESTRICTED,"$2,160.00"
48,J.F. Drake State,90010935,RENEE A HEADEN,Jun,30,2009,Instructional Salaries - Tempo,UNRESTRICTED,$401.27
48,J.F. Drake State,90010936,CAROLYN HENDERSON,Jun,30,2009,Instructional Salaries - Regul,UNRESTRICTED,"$3,963.75"
48,J.F. Drake State,90010936,CAROLYN HENDERSON,Jun,30,2009,Instructional Salaries - Tempo,UNRESTRICTED,$450.00
48,J.F. Drake State,90010936,CAROLYN HENDERSON,Jun,30,2009,Instructional Salaries - Regul,NAT'L SCIENCE FOUNDATION,$783.25
48,J.F. Drake State,90010937,DEXTER R HENRY,Jun,30,2009,Instructional Salaries - Regul,UNRESTRICTED,"$5,675.33"
48,J.F. Drake State,90010937,DEXTER R HENRY,Jun,30,2009,Instructional Salaries - Tempo,UNRESTRICTED,$733.77
48,J.F. Drake State,90010938,KARL W HENRY SR,Jun,30,2009,Instructional Salaries - Regul,UNRESTRICTED,"$5,070.50"
48,J.F. Drake State,90010938,KARL W HENRY SR,Jun,30,2009,Instructional Salaries - Regul,NAT'L SCIENCE FOUNDATION,"$1,556.83"
48,J.F. Drake State,90010939,DORIS HINTON,Jun,30,2009,Instructional Salaries - Regul,UNRESTRICTED,"$4,508.33"
48,J.F. Drake State,90010940,CANDICE HOWELL,Jun,30,2009,Instructional Salaries - Tempo,UNRESTRICTED,$267.50
48,J.F. Drake State,90010940,CANDICE HOWELL,Jun,30,2009,Support Personnel Salaries - S,NAT'L SCIENCE FOUNDATION,"$1,722.35"
48,J.F. Drake State,90010941,PATRICIA HUGHES,Jun,30,2009,Administrative Salaries- Sched,UNRESTRICTED,"$7,747.64"
48,J.F. Drake State,90010943,JAN J HYMAN,Jun,30,2009,Support Personnel Salaries - S,UNRESTRICTED,"$2,187.58"
48,J.F. Drake State,90010945,DONYALE D JONES,Jun,30,2009,Support Personnel Salaries - S,TITLE III CARRYOVER,"$3,303.42"
48,J.F. Drake State,90010946,PETURA M JONES,Jun,30,2009,Other Contractual Services,NAT'L SCIENCE FOUNDATION,$510.00
48,J.F. Drake State,90010947,CHERYL P KEMP,Jun,30,2009,Instructional Salaries - Tempo,UNRESTRICTED,"$2,140.00"
48,J.F. Drake State,90010948,NICHOLAS PAUL KSEPKA,Jun,30,2009,Hourly Wages,UNRESTRICTED,"$1,567.50"
48,J.F. Drake State,90010949,HONG THUYDUC LAM,Jun,30,2009,Instructional Salaries - Regul,UNRESTRICTED,"$5,123.00"
48,J.F. Drake State,90010950,JOYCE P LAMAR,Jun,30,2009,Support Personnel Salaries - S,UNRESTRICTED,"$1,632.00"
48,J.F. Drake State,90010951,JOAN C LEATHERWOOD,Jun,30,2009,Instructional Salaries - Tempo,READY TO WORK,"$1,222.80"
48,J.F. Drake State,90010952,JOEL M LINER,Jun,30,2009,Instructional Salaries - Tempo,UNRESTRICTED,$450.00
48,J.F. Drake State,90010953,WINFRED L LOGAN,Jun,30,2009,Support Personnel Salaries - S,UNRESTRICTED,$357.00
48,J.F. Drake State,90010954,HELEN T MCALPINE,Jun,30,2009,Administrative Salaries- Sched,UNRESTRICTED,"$14,266.45"
48,J.F. Drake State,90010954,HELEN T MCALPINE,Jun,30,2009,President's Expense Allowance,UNRESTRICTED,$200.00
48,J.F. Drake State,90010954,HELEN T MCALPINE,Jun,30,2009,Housing Allowance,UNRESTRICTED,"$1,000.00"
48,J.F. Drake State,90010955,DEMETIUS L MCCARTY,Jun,30,2009,Support Personnel Salaries - S,UNRESTRICTED,"$2,160.00"
48,J.F. Drake State,90010956,ANTHONY MCDANIELS,Jun,30,2009,Support Personnel Salaries - S,CAREER COACHES,"$2,336.00"
48,J.F. Drake State,90010957,SCOTTY MCLAUGHLIN,Jun,30,2009,Instructional Salaries - Regul,UNRESTRICTED,"$6,535.00"
48,J.F. Drake State,90010957,SCOTTY MCLAUGHLIN,Jun,30,2009,Instructional Salaries - Tempo,UNRESTRICTED,$300.00
48,J.F. Drake State,90010958,DEBORAH A MILLING,Jun,30,2009,Instructional Salaries - Regul,UNRESTRICTED,"$10,265.66"
48,J.F. Drake State,90010959,SAMMY J MILTON,Jun,30,2009,Support Personnel Salaries - S,UNRESTRICTED,"$3,452.83"
48,J.F. Drake State,90010960,PREMA A MONTEIRO,Jun,30,2009,Instructional Salaries - Regul,UNRESTRICTED,"$4,194.97"
48,J.F. Drake State,90010961,DANA MOORE,Jun,30,2009,Other Professional Salaries -,TITLE III CARRYOVER,"$8,503.50"
48,J.F. Drake State,90010962,MARY JO MORAN,Jun,30,2009,Instructional Salaries - Tempo,UNRESTRICTED,"$1,043.25"
48,J.F. Drake State,90010963,BRUCE D MORRISON,Jun,30,2009,Support Personnel Salaries - S,UNRESTRICTED,"$4,047.25"
48,J.F. Drake State,90010964,MUKESHA MBUGUJE,Jun,30,2009,Instructional Salaries - Tempo,UNRESTRICTED,"$1,670.00"
48,J.F. Drake State,90010965,KATHRYN B NEAL,Jun,30,2009,Other Professional Salaries -,UNRESTRICTED,"$7,905.25"
48,J.F. Drake State,90010967,KAREN NEIR,Jun,30,2009,Instructional Salaries - Tempo,UNRESTRICTED,"$1,444.50"
48,J.F. Drake State,90010968,JENNIFER O'LINGER,Jun,30,2009,Support Personnel Salaries - S,UNRESTRICTED,"$3,079.83"
48,J.F. Drake State,90010969,DONALD ORR,Jun,30,2009,Support Personnel Salaries - S,UNRESTRICTED,"$3,601.25"
48,J.F. Drake State,90010970,MONTIE D PARKS,Jun,30,2009,Support Personnel Salaries - S,NAT'L SCIENCE FOUNDATION,"$3,526.88"
48,J.F. Drake State,90010971,WILLIE C PATTON,Jun,30,2009,Instructional Salaries - Tempo,UNRESTRICTED,$733.77
48,J.F. Drake State,90010972,GWENDOLYN D POPE,Jun,30,2009,Instructional Salaries - Regul,UNRESTRICTED,"$12,393.58"
48,J.F. Drake State,90010972,GWENDOLYN D POPE,Jun,30,2009,Instructional Salaries - Tempo,UNRESTRICTED,$450.00
48,J.F. Drake State,90010973,KARRIE PRATT,Jun,30,2009,Instructional Salaries - Tempo,UNRESTRICTED,$668.75
48,J.F. Drake State,90010974,FREDRICK O PRUITT,Jun,30,2009,Instructional Salaries - Regul,UNRESTRICTED,"$4,332.67"
48,J.F. Drake State,90010974,FREDRICK O PRUITT,Jun,30,2009,Instructional Salaries - Tempo,UNRESTRICTED,"$1,402.50"
48,J.F. Drake State,90010975,MICHAEL RADDEN,Jun,30,2009,Instructional Salaries - Tempo,UNRESTRICTED,$450.00
48,J.F. Drake State,90010976,LORAINE RAGIN,Jun,30,2009,Instructional Salaries - Tempo,UNRESTRICTED,"$1,402.50"
48,J.F. Drake State,90010977,WELDON RAGLAND,Jun,30,2009,Instructional Salaries - Tempo,UNRESTRICTED,$867.50
48,J.F. Drake State,90010978,PATRICIA RAMEY,Jun,30,2009,Instructional Salaries - Tempo,UNRESTRICTED,$561.75
48,J.F. Drake State,90010979,ALICE G RAYMOND,Jun,30,2009,Instructional Salaries - Regul,UNRESTRICTED,"$6,075.33"
48,J.F. Drake State,90010980,JOYCE L RENTZ,Jun,30,2009,Instructional Salaries - Tempo,UNRESTRICTED,$450.00
48,J.F. Drake State,90010980,JOYCE L RENTZ,Jun,30,2009,Instructional Salaries - Regul,UNRESTRICTED,"$6,251.00"
48,J.F. Drake State,90010981,JOHN REUTTER III,Jun,30,2009,Administrative Salaries- Sched,NAT'L SCIENCE FOUNDATION,"$6,616.00"
48,J.F. Drake State,90010982,MARTHA J ROBERTS,Jun,30,2009,Support Personnel Salaries - S,UNRESTRICTED,"$4,940.33"
48,J.F. Drake State,90010983,CHRISTINA R SCISSUM,Jun,30,2009,Other Professional Salaries -,TITLE III CARRYOVER,"$4,012.50"
48,J.F. Drake State,90010984,JANET MAHAFFEY SHAFER,Jun,30,2009,Instructional Salaries - Tempo,UNRESTRICTED,$260.25
48,J.F. Drake State,90010985,JACQUELINE M SHIVERS,Jun,30,2009,Instructional Salaries - Tempo,UNRESTRICTED,"$1,500.00"
48,J.F. Drake State,90010986,LESLEY SHOTTS,Jun,30,2009,Instructional Salaries - Tempo,UNRESTRICTED,$267.50
48,J.F. Drake State,90010986,LESLEY SHOTTS,Jun,30,2009,Other Professional Salaries -,UNRESTRICTED,"$4,044.75"
48,J.F. Drake State,90010987,COLLIS H SIMS III,Jun,30,2009,Instructional Salaries - Regul,UNRESTRICTED,"$4,232.33"
48,J.F. Drake State,90010988,PATRICIA GORDON SIMS,Jun,30,2009,Administrative Salaries- Sched,UNRESTRICTED,"$9,244.00"
48,J.F. Drake State,90010989,JACKIE SMITH,Jun,30,2009,Other Professional Salaries -,ALLIED HEALTH CARRYOVER,"$2,707.00"
48,J.F. Drake State,90010990,AUGUSTUS SMITH JR,Jun,30,2009,Instructional Salaries - Tempo,UNRESTRICTED,$594.00
48,J.F. Drake State,90010991,RYAN E SMITH,Jun,30,2009,Other Professional Salaries -,UNRESTRICTED,"$4,000.00"
48,J.F. Drake State,90010992,DELORIS A SMOTHERS,Jun,30,2009,Instructional Salaries - Regul,UNRESTRICTED,"$6,227.33"
48,J.F. Drake State,90010992,DELORIS A SMOTHERS,Jun,30,2009,Instructional Salaries - Tempo,UNRESTRICTED,$867.50
48,J.F. Drake State,90010993,JULIE P SPURGEON,Jun,30,2009,Support Personnel Salaries - S,UNRESTRICTED,"$1,889.00"
48,J.F. Drake State,90010994,VERLINDSEY B STEWART,Jun,30,2009,Instructional Salaries - Regul,UNRESTRICTED,"$6,135.00"
48,J.F. Drake State,90010995,MONICA SUDEALL-HAWKINS,Jun,30,2009,Instructional Salaries - Tempo,UNRESTRICTED,$450.00
48,J.F. Drake State,90010995,MONICA SUDEALL-HAWKINS,Jun,30,2009,Other Professional Salaries -,UNRESTRICTED,"$4,993.33"
48,J.F. Drake State,90010996,SHANNON SUMMERS,Jun,30,2009,Instructional Salaries - Tempo,UNRESTRICTED,$968.00
48,J.F. Drake State,90010997,JOY D TORNQUIST,Jun,30,2009,Instructional Salaries - Tempo,UNRESTRICTED,"$1,605.00"
48,J.F. Drake State,90010998,KRISTIN TREADWAY,Jun,30,2009,Support Personnel Salaries - S,CAREER COACHES,"$2,120.32"
48,J.F. Drake State,90010999,JOYLYN ERNA TROTMAN,Jun,30,2009,Other Professional Salaries -,UNRESTRICTED,"$4,465.83"
48,J.F. Drake State,90011000,ELIZABETH A TUGGLE,Jun,30,2009,Instructional Salaries - Tempo,UNRESTRICTED,"$1,560.00"
48,J.F. Drake State,90011001,GILBERT T TURLEY,Jun,30,2009,Other Professional Salaries -,UNRESTRICTED,"$6,450.08"
48,J.F. Drake State,90011002,LETITIA E WALKER,Jun,30,2009,Support Personnel Salaries - S,UNRESTRICTED,"$3,080.50"
48,J.F. Drake State,90011003,THEO NATHAN WALSTON,Jun,30,2009,Support Personnel Salaries - S,UNRESTRICTED,"$2,187.58"
48,J.F. Drake State,90011004,KATINA L WALTON,Jun,30,2009,Instructional Salaries - Tempo,UNRESTRICTED,"$1,071.00"
48,J.F. Drake State,90011005,MIRIE WESTBROOK III,Jun,30,2009,Instructional Salaries - Tempo,UNRESTRICTED,$867.50
48,J.F. Drake State,90011006,YVONNE M WHITE,Jun,30,2009,Support Personnel Salaries - S,UNRESTRICTED,"$1,142.02"
48,J.F. Drake State,90011006,YVONNE M WHITE,Jun,30,2009,Support Personnel Salaries - S,TITLE III CARRYOVER,"$3,426.06"
48,J.F. Drake State,90011009,SANOYIA L WILLIAMS,Jun,30,2009,Instructional Salaries - Tempo,UNRESTRICTED,$450.00
48,J.F. Drake State,90011010,DAWN WILLIAMSON-ASHLEY,Jun,30,2009,Instructional Salaries - Tempo,UNRESTRICTED,$450.00
48,J.F. Drake State,90011011,RICKY WILLINGHAM,Jun,30,2009,Support Personnel Salaries - S,CAREER COACHES,"$3,080.50"
48,J.F. Drake State,90011012,GEORGE R WINN,Jun,30,2009,Instructional Salaries - Regul,UNRESTRICTED,"$4,985.00"
48,J.F. Drake State,90011012,GEORGE R WINN,Jun,30,2009,Instructional Salaries - Tempo,UNRESTRICTED,$867.50
48,J.F. Drake State,90011013,JOHNIKA WORD,Jun,30,2009,Support Personnel Salaries - S,UNRESTRICTED,"$1,920.00"
48,J.F. Drake State,90011015,ANDRAIN YELDELL,Jun,30,2009,Instructional Salaries - Tempo,UNRESTRICTED,$267.50
48,J.F. Drake State,90011019,NECHA L BURTON,Jun,30,2009,Support Personnel Salaries - S,UNRESTRICTED,$478.48
48,J.F. Drake State,90011019,NECHA L BURTON,Jun,30,2009,Support Personnel Salaries - S,TITLE III CARRYOVER,$159.43
48,J.F. Drake State,20038342,A I CORPORATE INTERIORS,Jun,29,2009,Materials and Supplies,,"$19,855.00"
48,J.F. Drake State,20038343,ABC OFFICE,Jun,29,2009,Materials and Supplies,TITLE III CARRYOVER,$948.27
48,J.F. Drake State,20038344,AMERICAN EXPRESS,Jun,29,2009,Out-of-State Travel,TITLE III CARRYOVER,$970.40
48,J.F. Drake State,20038345,CARLA HENRY,Jun,29,2009,Out-of-State Travel,,$136.50
48,J.F. Drake State,20038346,HAWORTH,Jun,29,2009,Materials and Supplies,,"$6,976.72"
48,J.F. Drake State,20038346,HAWORTH,Jun,29,2009,Materials and Supplies,TITLE III CARRYOVER,$435.12
48,J.F. Drake State,20038347,INDIANA FURNITURE,Jun,29,2009,Materials and Supplies,,"$9,562.10"
48,J.F. Drake State,20038348,INSTRUCTIONAL OFFICERS' A,Jun,29,2009,In-State Travel,TITLE III CARRYOVER,$300.00
48,J.F. Drake State,20038349,LOWE'S,Jun,29,2009,Materials and Supplies,TITLE III CARRYOVER,"$1,520.00"
48,J.F. Drake State,20038350,MEDCO,Jun,29,2009,Materials and Supplies,ALLIED HEALTH CARRYOVER,"$6,488.07"
48,J.F. Drake State,20038351,NARS TRAINING SYSTEMS,Jun,29,2009,Books,TITLE III CARRYOVER,"$1,780.20"
48,J.F. Drake State,20038352,SAM'S CLUB/WALMART,Jun,29,2009,Materials and Supplies,NAT'L SCIENCE FOUNDATION,$48.96
48,J.F. Drake State,20038353,THOMSON HEALTHCARE,Jun,29,2009,Books,TITLE III CARRYOVER,$79.20
48,J.F. Drake State,10030226,ALAPCAE,Jun,26,2009,In-State Travel,UNRESTRICTED,$175.00
48,J.F. Drake State,10030227,EUGENE CRAWFORD,Jun,26,2009,Other Contractual Services,PLANT FUNDS,$975.00
48,J.F. Drake State,10030228,STEVEN HESTER,Jun,26,2009,Other Contractual Services,PLANT FUNDS,$585.00
48,J.F. Drake State,10030229,PROGRESSIVE INS,Jun,26,2009,Insurance and Bonding,UNRESTRICTED,$91.00
48,J.F. Drake State,10030230,JAMES REED,Jun,26,2009,Other Contractual Services,PLANT FUNDS,$465.00
48,J.F. Drake State,10030231,SUCCESS MARKETING,Jun,26,2009,Advertising and Promotions,UNRESTRICTED,"$18,915.00"
48,J.F. Drake State,10030232,PHILLIP TIDWELL,Jun,26,2009,Other Contractual Services,PLANT FUNDS,$585.00
48,J.F. Drake State,20038328,COUNCIL ON OCCUP. EDUC.,Jun,25,2009,Out-of-State Travel,TITLE III CARRYOVER,$550.00
48,J.F. Drake State,20038329,DR. MOHAMMED R. KARIM,Jun,25,2009,Other Contractual Services,NAT'L SCIENCE FOUNDATION,"$1,625.00"
48,J.F. Drake State,20038330,PATCHWORKS PRODUCTIONS,Jun,25,2009,Audiovisuals,TITLE III CARRYOVER,$530.00
48,J.F. Drake State,20038331,SAN ANTONIO MARRIOTT,Jun,25,2009,Out-of-State Travel,TITLE III CARRYOVER,$591.93
48,J.F. Drake State,20038332,CHRISTINA SCISSUM,Jun,25,2009,Out-of-State Travel,TITLE III CARRYOVER,$273.70
48,J.F. Drake State,20038333,WAL MART,Jun,25,2009,Materials and Supplies,NAT'L SCIENCE FOUNDATION,$128.94
48,J.F. Drake State,20038326,NINA BULLOCK,Jun,23,2009,Out-of-State Travel,,$200.00
48,J.F. Drake State,10030200,ALBERT'S FLOWERS,Jun,22,2009,Institutional Use,UNRESTRICTED,$866.50
48,J.F. Drake State,10030201,"ALLIANT DATA SYSTEM,INC",Jun,22,2009,Other Contractual Services,UNRESTRICTED,"$13,230.00"
48,J.F. Drake State,10030202,CHEVRON CARD SERVICES,Jun,22,2009,Gasoline and Oil - Motor Vehic,UNRESTRICTED,$492.10
48,J.F. Drake State,10030203,"DYNAMIC SECURITY, INC.",Jun,22,2009,Other Contractual Services,UNRESTRICTED,"$16,816.80"
48,J.F. Drake State,10030204,FEDEX,Jun,22,2009,Postage,UNRESTRICTED,$15.20
48,J.F. Drake State,10030205,THE LAMAR COMPANIES,Jun,22,2009,Advertising and Promotions,UNRESTRICTED,"$1,500.00"
48,J.F. Drake State,10030206,"LANIER,FORD,SHAVER &",Jun,22,2009,Legal Services,UNRESTRICTED,"$1,289.50"
48,J.F. Drake State,10030207,LOWE'S,Jun,22,2009,Maintenance and Repairs,PLANT FUNDS,$433.99
48,J.F. Drake State,10030209,"MCALPINE, HELEN",Jun,22,2009,In-State Travel,UNRESTRICTED,$150.00
48,J.F. Drake State,10030210,MID CITY SUPPLY CO,Jun,22,2009,Materials and Supplies,UNRESTRICTED,$488.55
48,J.F. Drake State,10030211,PITNEY BOWES,Jun,22,2009,Other Contractual Services,UNRESTRICTED,$657.00
48,J.F. Drake State,10030212,PURCHASE POWER,Jun,22,2009,Postage,UNRESTRICTED,$106.99
48,J.F. Drake State,10030213,SAFETY KLEEN CORPORATION,Jun,22,2009,Other Contractual Services,UNRESTRICTED,$175.67
48,J.F. Drake State,10030214,VERIZON WIRELESS,Jun,22,2009,Communications,UNRESTRICTED,$659.95
48,J.F. Drake State,10030215,VISION BEAUTY DIST.,Jun,22,2009,Purchases for Resale,UNRESTRICTED,$796.76
48,J.F. Drake State,10030216,WASTE MANAGEMENT OF NORTH,Jun,22,2009,Other Contractual Services,UNRESTRICTED,$861.14
48,J.F. Drake State,10030216,WASTE MANAGEMENT OF NORTH,Jun,22,2009,Other Contractual Services,ARMY GRANT,$325.00
48,J.F. Drake State,10030217,XEROX CORPORATION,Jun,22,2009,Other Contractual Services,,$148.65
48,J.F. Drake State,10030218,YOO-NEK CAR WASH,Jun,22,2009,Materials and Supplies,UNRESTRICTED,$69.99
48,J.F. Drake State,10030220,J. A. MAJORS COMPANY,Jun,22,2009,Purchases for Resale,UNRESTRICTED,$409.40
48,J.F. Drake State,10030221,HALO BRANDED SOLUTIONS IN,Jun,22,2009,Purchases for Resale,UNRESTRICTED,"$1,178.27"
48,J.F. Drake State,10030222,MCGRAW HILL EDUCATION,Jun,22,2009,Purchases for Resale,UNRESTRICTED,"$6,197.63"
48,J.F. Drake State,10030223,PEARSON,Jun,22,2009,Purchases for Resale,UNRESTRICTED,"$7,241.93"
48,J.F. Drake State,10030224,UPS,Jun,22,2009,Investment Transaction Expense,UNRESTRICTED,$3.90
48,J.F. Drake State,20038309,ACCSPRA,Jun,22,2009,In-State Travel,TITLE III CARRYOVER,$200.00
48,J.F. Drake State,20038310,AMERICAN EXPRESS,Jun,22,2009,Out-of-State Travel,,"$3,945.82"
48,J.F. Drake State,20038311,BERNEY OFFICE SOLUTIONS,Jun,22,2009,Materials and Supplies,TITLE III CARRYOVER,$99.00
48,J.F. Drake State,20038312,CDW-G,Jun,22,2009,Materials and Supplies,TITLE III CARRYOVER,"$1,233.92"
48,J.F. Drake State,20038313,KEMBA CHAMBERS,Jun,22,2009,In-State Travel,TITLE III CARRYOVER,$281.41
48,J.F. Drake State,20038314,COLONIAL GRAPHICS GROUP,Jun,22,2009,Materials and Supplies,NAT'L SCIENCE FOUNDATION,$620.10
48,J.F. Drake State,20038315,DOMINO'S PIZZA,Jun,22,2009,Materials and Supplies,NAT'L SCIENCE FOUNDATION,$176.58
48,J.F. Drake State,20038316,KIM GALKOWSKI,Jun,22,2009,In-State Travel,TITLE III CARRYOVER,$24.20
48,J.F. Drake State,20038316,KIM GALKOWSKI,Jun,22,2009,Employee Taxable Per Diem,TITLE III CARRYOVER,$11.25
48,J.F. Drake State,20038317,"GIGAPARTS, INC",Jun,22,2009,Materials and Supplies,,$637.50
48,J.F. Drake State,20038318,"HUGHES, PATRICIA",Jun,22,2009,In-State Travel,TITLE III CARRYOVER,$712.36
48,J.F. Drake State,20038319,MAYER ELECTRIC FINANCIAL,Jun,22,2009,Materials and Supplies,,$353.60
48,J.F. Drake State,20038320,"OFFICE DEPOT, INC.",Jun,22,2009,Materials and Supplies,TITLE III CARRYOVER,"$1,034.38"
48,J.F. Drake State,20038320,"OFFICE DEPOT, INC.",Jun,22,2009,Materials and Supplies,ALLIED HEALTH CARRYOVER,$699.24
48,J.F. Drake State,20038321,"RAYMOND, ALICE",Jun,22,2009,In-State Travel,ALLIED HEALTH CARRYOVER,$213.08
48,J.F. Drake State,20038321,"RAYMOND, ALICE",Jun,22,2009,Employee Taxable Per Diem,ALLIED HEALTH CARRYOVER,$30.00
48,J.F. Drake State,20038322,"SIMS, PATRICIA G.",Jun,22,2009,In-State Travel,TITLE III CARRYOVER,$375.00
48,J.F. Drake State,20038323,"TROTMAN, JOYLYN",Jun,22,2009,In-State Travel,TITLE III CARRYOVER,$25.00
48,J.F. Drake State,20038323,"TROTMAN, JOYLYN",Jun,22,2009,Employee Taxable Per Diem,TITLE III CARRYOVER,$11.25
48,J.F. Drake State,20038324,UNIVERSITY OF ALABAMA,Jun,22,2009,In-State Travel,ALLIED HEALTH CARRYOVER,"$2,600.00"
48,J.F. Drake State,10030165,EUGENE CRAWFORD,Jun,18,2009,Other Contractual Services,PLANT FUNDS,"$1,000.00"
48,J.F. Drake State,10030166,STEVEN HESTER,Jun,18,2009,Other Contractual Services,PLANT FUNDS,$600.00
48,J.F. Drake State,10030167,JAMES REED,Jun,18,2009,Other Contractual Services,PLANT FUNDS,$600.00
48,J.F. Drake State,10030168,DR. JOHN REUTTER,Jun,18,2009,Out-of-State Travel,UNRESTRICTED,$86.31
48,J.F. Drake State,10030169,"SIMS, PATRICIA G.",Jun,18,2009,Out-of-State Travel,UNRESTRICTED,$319.25
48,J.F. Drake State,10030170,"SMITH, RYAN",Jun,18,2009,In-State Travel,UNRESTRICTED,$212.75
48,J.F. Drake State,10030170,"SMITH, RYAN",Jun,18,2009,Employee Taxable Per Diem,UNRESTRICTED,$11.25
48,J.F. Drake State,10030171,PHILLIP TIDWELL,Jun,18,2009,Other Contractual Services,PLANT FUNDS,$240.00
48,J.F. Drake State,20038285,AIRGAS SOUTH,Jun,17,2009,Materials and Supplies,,"$1,634.99"
48,J.F. Drake State,20038286,NICOLE BELL,Jun,17,2009,Out-of-State Travel,,$511.62
48,J.F. Drake State,20038287,BNA TAX MANAGEMENT,Jun,17,2009,In-State Travel,TITLE III CARRYOVER,$224.00
48,J.F. Drake State,20038288,COPELAND CLEANERS,Jun,17,2009,Materials and Supplies,,$106.86
48,J.F. Drake State,20038289,"DAVIS, CHRISTINE",Jun,17,2009,In-State Travel,,$300.00
48,J.F. Drake State,20038290,"DAVIS, CHRISTINE",Jun,17,2009,Out-of-State Travel,,"$1,260.00"
48,J.F. Drake State,20038291,"DAVIS, CHRISTINE",Jun,17,2009,Out-of-State Travel,,$200.00
48,J.F. Drake State,20038292,DELTA AIRLINES,Jun,17,2009,Out-of-State Travel,,$75.00
48,J.F. Drake State,20038293,DRAKE TECH COL GEN FUND,Jun,17,2009,In-State Travel,TITLE III CARRYOVER,"$1,651.65"
48,J.F. Drake State,20038294,"FONTENOT, BERNELL S.",Jun,17,2009,In-State Travel,TITLE III CARRYOVER,$25.00
48,J.F. Drake State,20038294,"FONTENOT, BERNELL S.",Jun,17,2009,Employee Taxable Per Diem,TITLE III CARRYOVER,$11.25
48,J.F. Drake State,20038295,"HENRY, KARL W. SR.",Jun,17,2009,Out-of-State Travel,NAT'L SCIENCE FOUNDATION,$576.94
48,J.F. Drake State,20038296,IDI,Jun,17,2009,Materials and Supplies,TITLE III CARRYOVER,$279.00
48,J.F. Drake State,20038297,INDIANA FURNITURE,Jun,17,2009,Materials and Supplies,TITLE III CARRYOVER,"$9,874.40"
48,J.F. Drake State,20038298,MONTIE PARKS,Jun,17,2009,In-State Travel,NAT'L SCIENCE FOUNDATION,$73.65
48,J.F. Drake State,20038299,"POPE, GWENDOLYN M.",Jun,17,2009,Out-of-State Travel,,$200.00
48,J.F. Drake State,20038300,"RAYMOND, ALICE",Jun,17,2009,In-State Travel,ALLIED HEALTH CARRYOVER,$210.10
48,J.F. Drake State,20038300,"RAYMOND, ALICE",Jun,17,2009,Employee Taxable Per Diem,ALLIED HEALTH CARRYOVER,$30.00
48,J.F. Drake State,20038301,RICO-EDISON,Jun,17,2009,Materials and Supplies,,"$13,225.07"
48,J.F. Drake State,20038302,SKILLS ALABAMA,Jun,17,2009,Out-of-State Travel,,"$5,530.00"
48,J.F. Drake State,20038303,THE HON CO,Jun,17,2009,Materials and Supplies,,"$3,605.00"
48,J.F. Drake State,20038304,THE PEABODY MEMPHIS,Jun,17,2009,Out-of-State Travel,TITLE III CARRYOVER,"$1,145.50"
48,J.F. Drake State,20038305,"TROTMAN, JOYLYN",Jun,17,2009,Out-of-State Travel,TITLE III CARRYOVER,$94.45
48,J.F. Drake State,20038306,GIL TURLEY,Jun,17,2009,Out-of-State Travel,TITLE III CARRYOVER,"$1,820.25"
48,J.F. Drake State,20038307,WAL MART,Jun,17,2009,Materials and Supplies,,$100.00
48,J.F. Drake State,10030157,APRIL CLEMENT,Jun,17,2009,In-State Travel,CAREER COACHES,$25.63
48,J.F. Drake State,10030158,ANTHONY MCDANIELS,Jun,17,2009,In-State Travel,CAREER COACHES,$51.97
48,J.F. Drake State,10030159,KRISTIN TREADWAY,Jun,17,2009,In-State Travel,CAREER COACHES,$57.53
48,J.F. Drake State,10030160,RICKY WILLINGHAM,Jun,17,2009,In-State Travel,CAREER COACHES,$55.11
48,J.F. Drake State,90011017,MICHELLE R CUNNINGHAM,Jun,17,2009,Instructional Salaries - Regul,UNRESTRICTED,"$4,823.84"
48,J.F. Drake State,10030117,EUGENE CRAWFORD,Jun,12,2009,Other Contractual Services,PLANT FUNDS,"$1,000.00"
48,J.F. Drake State,10030118,STEVEN HESTER,Jun,12,2009,Other Contractual Services,PLANT FUNDS,$600.00
48,J.F. Drake State,10030119,JAMES REED,Jun,12,2009,Other Contractual Services,PLANT FUNDS,$480.00
48,J.F. Drake State,10030120,PHILLIP TIDWELL,Jun,12,2009,Other Contractual Services,PLANT FUNDS,$600.00
48,J.F. Drake State,10030121,CM&F GROUP,Jun,12,2009,Purchases for Resale,AUXILIARY,$244.00
48,J.F. Drake State,10030122,BIG SPRING PARTNERS,Jun,12,2009,Out-of-State Travel,UNRESTRICTED,$200.00
48,J.F. Drake State,10030116,SOUTHERN ASSOC OF COLLEGE,Jun,11,2009,Institutional Use,UNRESTRICTED,"$10,000.00"
48,J.F. Drake State,10030111,PHILLIP TIDWELL,Jun,5,2009,Other Contractual Services,PLANT FUNDS,$600.00
48,J.F. Drake State,10030113,EUGENE CRAWFORD,Jun,5,2009,Other Contractual Services,PLANT FUNDS,"$1,000.00"
48,J.F. Drake State,10030114,STEVEN HESTER,Jun,5,2009,Other Contractual Services,PLANT FUNDS,$600.00
48,J.F. Drake State,10030115,JAMES REED,Jun,5,2009,Other Contractual Services,PLANT FUNDS,$465.00
48,J.F. Drake State,10030093,ACS PRESIDENTS' ASSOC.,Jun,3,2009,Memberships,UNRESTRICTED,"$3,000.00"
48,J.F. Drake State,10030094,CHAMBER OF COMMERCE,Jun,3,2009,Advertising and Promotions,UNRESTRICTED,$375.00
48,J.F. Drake State,10030095,HUNTSVILLE MADISON COUNTY,Jun,3,2009,Advertising and Promotions,UNRESTRICTED,$120.00
48,J.F. Drake State,10030096,COLONIAL GRAPHICS GROUP,Jun,3,2009,Institutional Use,UNRESTRICTED,"$1,175.00"
48,J.F. Drake State,10030097,CROWN TROPHY,Jun,3,2009,Institutional Use,UNRESTRICTED,$180.00
48,J.F. Drake State,10030098,PETTY CASH,Jun,3,2009,Materials and Supplies,UNRESTRICTED,$122.66
48,J.F. Drake State,10030098,PETTY CASH,Jun,3,2009,Maintenance and Repairs,UNRESTRICTED,$52.42
48,J.F. Drake State,10030098,PETTY CASH,Jun,3,2009,Maintenance and Repairs,PLANT FUNDS,$9.92
48,J.F. Drake State,10030099,"DYNAMIC SECURITY, INC.",Jun,3,2009,Other Contractual Services,UNRESTRICTED,"$4,105.92"
48,J.F. Drake State,10030100,ELECTRONIX EXPRESS,Jun,3,2009,Purchases for Resale,UNRESTRICTED,$523.10
48,J.F. Drake State,10030101,FEDEX,Jun,3,2009,Postage,UNRESTRICTED,$25.95
48,J.F. Drake State,10030102,GATUR LAWN CARE,Jun,3,2009,Other Contractual Services,UNRESTRICTED,"$2,459.00"
48,J.F. Drake State,10030103,THE LAMAR COMPANIES,Jun,3,2009,Advertising and Promotions,UNRESTRICTED,"$1,500.00"
48,J.F. Drake State,10030104,"MCALPINE, HELEN",Jun,3,2009,Employee Taxable Per Diem,UNRESTRICTED,$11.25
48,J.F. Drake State,10030105,HUNTSVILLE ROTARY CLUB,Jun,3,2009,Advertising and Promotions,UNRESTRICTED,$40.00
48,J.F. Drake State,10030106,ULTRA VIDEO PRODUCTIONS,Jun,3,2009,Advertising and Promotions,UNRESTRICTED,$410.00
48,J.F. Drake State,10030107,UPS,Jun,3,2009,Freight,UNRESTRICTED,$10.07
48,J.F. Drake State,10030108,W W NORTON,Jun,3,2009,Purchases for Resale,UNRESTRICTED,$162.04
48,J.F. Drake State,10030089,SATELITE AUTO GLASS,Jun,2,2009,Maintenance and Repairs,UNRESTRICTED,$201.93
48,J.F. Drake State,75360000,AT&T,Jun,2,2009,Communications,UNRESTRICTED,$48.19
48,J.F. Drake State,75370000,AT&T,Jun,2,2009,Communications,UNRESTRICTED,$133.44
48,J.F. Drake State,75380000,AT&T,Jun,2,2009,Communications,UNRESTRICTED,$84.72
48,J.F. Drake State,75390000,AT&T,Jun,2,2009,Communications,UNRESTRICTED,$392.20
48,J.F. Drake State,75400000,AT&T,Jun,2,2009,Communications,UNRESTRICTED,"$3,674.42"
48,J.F. Drake State,75410000,AT&T,Jun,2,2009,Communications,UNRESTRICTED,$48.19
48,J.F. Drake State,75420000,AT&T,Jun,2,2009,Communications,UNRESTRICTED,$143.09
48,J.F. Drake State,75430000,AT&T,Jun,2,2009,Communications,UNRESTRICTED,$133.44
48,J.F. Drake State,75440000,AT&T,Jun,2,2009,Communications,UNRESTRICTED,$392.20
48,J.F. Drake State,75450000,AT&T,Jun,2,2009,Communications,UNRESTRICTED,"$3,600.74"
48,J.F. Drake State,75470000,COMCAST,Jun,2,2009,Communications,UNRESTRICTED,$56.76
48,J.F. Drake State,75480000,COOK'S PEST CONTROL,Jun,2,2009,Other Contractual Services,UNRESTRICTED,$67.00
48,J.F. Drake State,75490000,COOK'S PEST CONTROL,Jun,2,2009,Other Contractual Services,UNRESTRICTED,$249.00
48,J.F. Drake State,75500000,HUNTSVILLE UTILITIES,Jun,2,2009,Water and Sewer,UNRESTRICTED,$19.66
48,J.F. Drake State,75510000,HUNTSVILLE UTILITIES,Jun,2,2009,Water and Sewer,UNRESTRICTED,$293.12
48,J.F. Drake State,75520000,HUNTSVILLE UTILITIES,Jun,2,2009,Electricity,UNRESTRICTED,"$3,600.02"
48,J.F. Drake State,75520000,HUNTSVILLE UTILITIES,Jun,2,2009,Gas and Heating Fuel,UNRESTRICTED,$385.13
48,J.F. Drake State,75530000,HUNTSVILLE UTILITIES,Jun,2,2009,Water and Sewer,UNRESTRICTED,$18.81
48,J.F. Drake State,75540000,HUNTSVILLE UTILITIES,Jun,2,2009,Water and Sewer,UNRESTRICTED,$3.99
48,J.F. Drake State,75550000,HUNTSVILLE UTILITIES,Jun,2,2009,Gas and Heating Fuel,UNRESTRICTED,"$3,731.19"
48,J.F. Drake State,75560000,HUNTSVILLE UTILITIES,Jun,2,2009,Electricity,UNRESTRICTED,"$8,842.97"
48,J.F. Drake State,75560000,HUNTSVILLE UTILITIES,Jun,2,2009,Water and Sewer,UNRESTRICTED,$584.75
48,J.F. Drake State,75570000,WOW! BUSINESS,Jun,2,2009,Communications,UNRESTRICTED,$104.17
48,J.F. Drake State,75580000,PITNEY BOWES,Jun,2,2009,Postage,UNRESTRICTED,$700.00
48,J.F. Drake State,90010891,FARRON GIBSON,Jun,2,2009,Support Personnel Salaries - S,NAT'L SCIENCE FOUNDATION,$188.16
48,J.F. Drake State,90010892,JOHN R SHROUT,Jun,2,2009,Support Personnel Salaries - S,UNRESTRICTED,$692.48
48,J.F. Drake State,90010896,MICHELLE R CUNNINGHAM,Jun,2,2009,Instructional Salaries - Regul,UNRESTRICTED,"$4,823.77"
48,J.F. Drake State,90010896,MICHELLE R CUNNINGHAM,Jun,2,2009,Instructional Salaries - Tempo,UNRESTRICTED,$450.00
48,J.F. Drake State,20037942,ALA BUSINESS FURNISHINGS,May,29,2009,Materials and Supplies,,"$1,900.00"
48,J.F. Drake State,20037943,"BATTS, HAROLD",May,29,2009,In-State Travel,TITLE III CARRYOVER,$407.10
48,J.F. Drake State,20037944,NECHA BURTON,May,29,2009,Out-of-State Travel,TITLE III CARRYOVER,$218.80
48,J.F. Drake State,20037945,KIM GALKOWSKI,May,29,2009,Employee Taxable Per Diem,TITLE III CARRYOVER,$11.25
48,J.F. Drake State,20037947,INDIANA FURNITURE,May,29,2009,Materials and Supplies,TITLE III CARRYOVER,$958.46
48,J.F. Drake State,10030042,AMERICAN TECH. PUBLISHERS,May,29,2009,Purchases for Resale,UNRESTRICTED,"$2,067.79"
48,J.F. Drake State,10030043,APRIL CLEMENT,May,29,2009,In-State Travel,CAREER COACHES,$55.50
48,J.F. Drake State,10030044,EUGENE CRAWFORD,May,29,2009,Other Contractual Services,PLANT FUNDS,"$1,000.00"
48,J.F. Drake State,10030045,GRAINGER,May,29,2009,Purchases for Resale,UNRESTRICTED,$440.47
48,J.F. Drake State,10030046,STEVEN HESTER,May,29,2009,Other Contractual Services,PLANT FUNDS,$600.00
48,J.F. Drake State,10030047,JOHNSTONE SUPPLY,May,29,2009,Maintenance and Repairs,UNRESTRICTED,$32.84
48,J.F. Drake State,10030048,"MCALPINE, HELEN",May,29,2009,In-State Travel,UNRESTRICTED,$150.00
48,J.F. Drake State,10030049,ANTHONY MCDANIELS,May,29,2009,In-State Travel,CAREER COACHES,$89.21
48,J.F. Drake State,10030050,JAMES REED,May,29,2009,Other Contractual Services,PLANT FUNDS,$360.00
48,J.F. Drake State,10030051,DR. JOHN REUTTER,May,29,2009,Employee Taxable Per Diem,UNRESTRICTED,$11.25
48,J.F. Drake State,10030052,SOUTHERNLINC WIRELESS,May,29,2009,Communications,UNRESTRICTED,$15.90
48,J.F. Drake State,10030053,PHILLIP TIDWELL,May,29,2009,Other Contractual Services,PLANT FUNDS,$600.00
48,J.F. Drake State,10030054,KRISTIN TREADWAY,May,29,2009,In-State Travel,CAREER COACHES,$79.15
48,J.F. Drake State,10030055,RICKY WILLINGHAM,May,29,2009,In-State Travel,CAREER COACHES,$111.60
48,J.F. Drake State,14860,MOSTAFA DOKHANIAN,May,29,2009,Instructional Salaries - Tempo,UNRESTRICTED,"$1,650.00"
48,J.F. Drake State,14861,NICHOLAS PAUL KSEPKA,May,29,2009,Hourly Wages,UNRESTRICTED,"$1,875.00"
48,J.F. Drake State,14862,WINFRED L LOGAN,May,29,2009,Support Personnel Salaries - S,UNRESTRICTED,$288.00
48,J.F. Drake State,14863,JULIUS T TATE,May,29,2009,Instructional Salaries - Tempo,UNRESTRICTED,$949.00
48,J.F. Drake State,90010782,ROBBIE LEE AKINS,May,29,2009,Support Personnel Salaries - S,UNRESTRICTED,"$2,016.00"
48,J.F. Drake State,90010783,LYSA AUGUSTIN,May,29,2009,Instructional Salaries - Tempo,UNRESTRICTED,$682.00
48,J.F. Drake State,90010784,CAROLYN AVRITTE,May,29,2009,Instructional Salaries - Tempo,UNRESTRICTED,$588.50
48,J.F. Drake State,90010785,NELSON E BARNES,May,29,2009,Instructional Salaries - Tempo,UNRESTRICTED,$360.00
48,J.F. Drake State,90010786,JADA M BARRETT,May,29,2009,Instructional Salaries - Tempo,UNRESTRICTED,$360.00
48,J.F. Drake State,90010787,BEN BATTLE,May,29,2009,Instructional Salaries - Regul,UNRESTRICTED,"$5,706.36"
48,J.F. Drake State,90010789,HAROLD E BATTS,May,29,2009,Other Professional Salaries -,UNRESTRICTED,"$8,503.50"
48,J.F. Drake State,90010791,ANGELA NICOLE BELL,May,29,2009,Instructional Salaries - Regul,UNRESTRICTED,"$4,675.52"
48,J.F. Drake State,90010793,NINA BULLOCK,May,29,2009,Instructional Salaries - Regul,UNRESTRICTED,"$4,713.36"
48,J.F. Drake State,90010794,KHALILAH BURTON,May,29,2009,Instructional Salaries - Regul,UNRESTRICTED,"$2,831.65"
48,J.F. Drake State,90010795,NECHA L BURTON,May,29,2009,Support Personnel Salaries - S,UNRESTRICTED,"$2,365.88"
48,J.F. Drake State,90010795,NECHA L BURTON,May,29,2009,Support Personnel Salaries - S,TITLE III CARRYOVER,$788.63
48,J.F. Drake State,90010797,KEMBA CHAMBERS,May,29,2009,Other Professional Salaries -,UNRESTRICTED,"$7,360.41"
48,J.F. Drake State,90010798,ADAM CLARK,May,29,2009,Instructional Salaries - Regul,UNRESTRICTED,"$4,637.89"
48,J.F. Drake State,90010799,APRIL CLEMENT,May,29,2009,Support Personnel Salaries - S,CAREER COACHES,"$2,336.00"
48,J.F. Drake State,90010800,TINA COTHREN,May,29,2009,Instructional Salaries - Tempo,UNRESTRICTED,$535.00
48,J.F. Drake State,90010801,CHRISTINE H DAVIS,May,29,2009,Instructional Salaries - Regul,UNRESTRICTED,"$5,306.36"
48,J.F. Drake State,90010802,MATTIE D DAVIS,May,29,2009,Instructional Salaries - Regul,UNRESTRICTED,"$4,972.00"
48,J.F. Drake State,90010803,MARTHA W DUBEY,May,29,2009,Support Personnel Salaries - S,UNRESTRICTED,"$4,500.00"
48,J.F. Drake State,90010804,PAUL FONTAINE,May,29,2009,Instructional Salaries - Tempo,UNRESTRICTED,$528.00
48,J.F. Drake State,90010805,BERNELL S FONTENOT,May,29,2009,Support Personnel Salaries - S,UNRESTRICTED,"$3,973.25"
48,J.F. Drake State,90010806,EDWIN T FORBES,May,29,2009,Instructional Salaries - Regul,UNRESTRICTED,"$3,840.25"
48,J.F. Drake State,90010807,MIRIAM B FRANK,May,29,2009,Instructional Salaries - Regul,UNRESTRICTED,"$4,840.92"
48,J.F. Drake State,90010808,MATTIE B FREEMAN,May,29,2009,Instructional Salaries - Tempo,UNRESTRICTED,"$2,220.25"
48,J.F. Drake State,90010809,BRENDA H FRIEND,May,29,2009,Other Professional Salaries -,TITLE III CARRYOVER,"$7,905.25"
48,J.F. Drake State,90010810,KIM GALKOWSKI,May,29,2009,Support Personnel Salaries - S,UNRESTRICTED,"$3,972.50"
48,J.F. Drake State,90010811,FARRON GIBSON,May,29,2009,Support Personnel Salaries - S,NAT'L SCIENCE FOUNDATION,$564.48
48,J.F. Drake State,90010812,DAMEON L HAGLER,May,29,2009,Other Contractual Services,NAT'L SCIENCE FOUNDATION,$300.00
48,J.F. Drake State,90010813,MANELZA CRAWFORD HAMBRICK,May,29,2009,Support Personnel Salaries - S,UNRESTRICTED,"$2,336.50"
48,J.F. Drake State,90010814,WILLIAM HAMPTON,May,29,2009,Support Personnel Salaries - S,UNRESTRICTED,"$2,016.00"
48,J.F. Drake State,90010815,ALIREZA HASSANZADEH,May,29,2009,Other Contractual Services,NAT'L SCIENCE FOUNDATION,"$1,236.00"
48,J.F. Drake State,90010816,KENNETH DOUGLAS HAYNES,May,29,2009,Hourly Wages,Q-TRACK,$545.00
48,J.F. Drake State,90010817,CAROLYN HENDERSON,May,29,2009,Instructional Salaries - Regul,UNRESTRICTED,"$4,266.93"
48,J.F. Drake State,90010817,CAROLYN HENDERSON,May,29,2009,Instructional Salaries - Regul,NAT'L SCIENCE FOUNDATION,$853.38
48,J.F. Drake State,90010818,DEXTER R HENRY,May,29,2009,Instructional Salaries - Regul,UNRESTRICTED,"$6,120.48"
48,J.F. Drake State,90010819,KARL W HENRY SR,May,29,2009,Instructional Salaries - Regul,UNRESTRICTED,"$5,435.08"
48,J.F. Drake State,90010819,KARL W HENRY SR,May,29,2009,Instructional Salaries - Regul,NAT'L SCIENCE FOUNDATION,"$1,678.37"
48,J.F. Drake State,90010820,DORIS HINTON,May,29,2009,Instructional Salaries - Regul,UNRESTRICTED,"$4,861.52"
48,J.F. Drake State,90010821,PATRICIA HUGHES,May,29,2009,Administrative Salaries- Sched,UNRESTRICTED,"$7,747.64"
48,J.F. Drake State,90010823,JAN J HYMAN,May,29,2009,Support Personnel Salaries - S,UNRESTRICTED,"$2,187.58"
48,J.F. Drake State,90010825,DONYALE D JONES,May,29,2009,Support Personnel Salaries - S,TITLE III CARRYOVER,"$3,303.42"
48,J.F. Drake State,90010826,PETURA M JONES,May,29,2009,Other Contractual Services,NAT'L SCIENCE FOUNDATION,$920.00
48,J.F. Drake State,90010827,CHERYL P KEMP,May,29,2009,Instructional Salaries - Tempo,UNRESTRICTED,"$2,140.00"
48,J.F. Drake State,90010828,SUSAN KREULEN,May,29,2009,Instructional Salaries - Regul,UNRESTRICTED,"$2,750.00"
48,J.F. Drake State,90010828,SUSAN KREULEN,May,29,2009,Other Professional Salaries -,UNRESTRICTED,$300.00
48,J.F. Drake State,90010829,HONG THUYDUC LAM,May,29,2009,Instructional Salaries - Regul,UNRESTRICTED,"$5,527.36"
48,J.F. Drake State,90010830,JOYCE P LAMAR,May,29,2009,Support Personnel Salaries - S,UNRESTRICTED,"$1,632.00"
48,J.F. Drake State,90010831,JOAN C LEATHERWOOD,May,29,2009,Instructional Salaries - Tempo,READY TO WORK,"$2,640.00"
48,J.F. Drake State,90010832,HELEN T MCALPINE,May,29,2009,Administrative Salaries- Sched,UNRESTRICTED,"$14,266.45"
48,J.F. Drake State,90010832,HELEN T MCALPINE,May,29,2009,President's Expense Allowance,UNRESTRICTED,$200.00
48,J.F. Drake State,90010832,HELEN T MCALPINE,May,29,2009,Housing Allowance,UNRESTRICTED,"$1,000.00"
48,J.F. Drake State,90010833,DEMETIUS L MCCARTY,May,29,2009,Support Personnel Salaries - S,UNRESTRICTED,"$2,148.00"
48,J.F. Drake State,90010834,ANTHONY MCDANIELS,May,29,2009,Support Personnel Salaries - S,CAREER COACHES,"$2,336.00"
48,J.F. Drake State,90010835,SCOTTY MCLAUGHLIN,May,29,2009,Instructional Salaries - Regul,UNRESTRICTED,"$7,016.48"
48,J.F. Drake State,90010836,DEBORAH A MILLING,May,29,2009,Instructional Salaries - Regul,UNRESTRICTED,"$4,590.33"
48,J.F. Drake State,90010837,SAMMY J MILTON,May,29,2009,Support Personnel Salaries - S,UNRESTRICTED,"$3,452.83"
48,J.F. Drake State,90010838,PREMA A MONTEIRO,May,29,2009,Instructional Salaries - Regul,UNRESTRICTED,"$4,527.36"
48,J.F. Drake State,90010839,DANA MOORE,May,29,2009,Other Professional Salaries -,TITLE III CARRYOVER,"$8,503.50"
48,J.F. Drake State,90010840,MARY JO MORAN,May,29,2009,Instructional Salaries - Tempo,UNRESTRICTED,"$1,650.48"
48,J.F. Drake State,90010841,BRUCE D MORRISON,May,29,2009,Support Personnel Salaries - S,UNRESTRICTED,"$4,047.25"
48,J.F. Drake State,90010842,KATHRYN B NEAL,May,29,2009,Other Professional Salaries -,UNRESTRICTED,"$7,905.25"
48,J.F. Drake State,90010844,KAREN NEIR,May,29,2009,Instructional Salaries - Tempo,UNRESTRICTED,"$1,230.50"
48,J.F. Drake State,90010845,JENNIFER O'LINGER,May,29,2009,Support Personnel Salaries - S,UNRESTRICTED,"$3,079.83"
48,J.F. Drake State,90010846,DONALD ORR,May,29,2009,Support Personnel Salaries - S,UNRESTRICTED,"$3,601.25"
48,J.F. Drake State,90010847,MONTIE D PARKS,May,29,2009,Support Personnel Salaries - S,NAT'L SCIENCE FOUNDATION,"$3,526.88"
48,J.F. Drake State,90010848,JARROD PATTERSON,May,29,2009,Other Contractual Services,TITLE III CARRYOVER,"$1,080.00"
48,J.F. Drake State,90010849,GWENDOLYN D POPE,May,29,2009,Instructional Salaries - Regul,UNRESTRICTED,"$5,540.58"
48,J.F. Drake State,90010850,KARRIE PRATT,May,29,2009,Instructional Salaries - Tempo,UNRESTRICTED,$267.50
48,J.F. Drake State,90010851,FREDRICK O PRUITT,May,29,2009,Instructional Salaries - Regul,UNRESTRICTED,"$4,675.52"
48,J.F. Drake State,90010852,ALICE G RAYMOND,May,29,2009,Instructional Salaries - Regul,UNRESTRICTED,"$6,520.48"
48,J.F. Drake State,90010853,JOYCE L RENTZ,May,29,2009,Instructional Salaries - Regul,UNRESTRICTED,"$6,706.36"
48,J.F. Drake State,90010854,JOHN REUTTER III,May,29,2009,Administrative Salaries- Sched,UNRESTRICTED,"$4,165.84"
48,J.F. Drake State,90010854,JOHN REUTTER III,May,29,2009,Administrative Salaries- Sched,NAT'L SCIENCE FOUNDATION,"$3,053.88"
48,J.F. Drake State,90010855,MORGAN ALBERT RICHARDSON,May,29,2009,Hourly Wages,Q-TRACK,$512.60
48,J.F. Drake State,90010856,MARTHA J ROBERTS,May,29,2009,Support Personnel Salaries - S,UNRESTRICTED,"$4,940.33"
48,J.F. Drake State,90010857,CHRISTINA R SCISSUM,May,29,2009,Other Professional Salaries -,TITLE III CARRYOVER,"$4,012.50"
48,J.F. Drake State,90010858,JACQUELINE M SHIVERS,May,29,2009,Instructional Salaries - Tempo,UNRESTRICTED,"$1,500.00"
48,J.F. Drake State,90010859,LESLEY SHOTTS,May,29,2009,Other Professional Salaries -,UNRESTRICTED,"$4,044.75"
48,J.F. Drake State,90010860,JOHN R SHROUT,May,29,2009,Support Personnel Salaries - S,UNRESTRICTED,"$2,769.28"
48,J.F. Drake State,90010862,ANGELA P SIMMONS,May,29,2009,Instructional Salaries - Tempo,UNRESTRICTED,$347.75
48,J.F. Drake State,90010863,COLLIS H SIMS III,May,29,2009,Instructional Salaries - Regul,UNRESTRICTED,"$4,565.12"
48,J.F. Drake State,90010864,PATRICIA GORDON SIMS,May,29,2009,Administrative Salaries- Sched,UNRESTRICTED,"$4,266.97"
48,J.F. Drake State,90010864,PATRICIA GORDON SIMS,May,29,2009,Administrative Salaries- Sched,TITLE III CARRYOVER,"$4,250.40"
48,J.F. Drake State,90010865,JACKIE SMITH,May,29,2009,Other Professional Salaries -,ALLIED HEALTH CARRYOVER,"$2,707.00"
48,J.F. Drake State,90010866,AUGUSTUS SMITH JR,May,29,2009,Instructional Salaries - Tempo,UNRESTRICTED,$660.00
48,J.F. Drake State,90010867,RYAN E SMITH,May,29,2009,Other Professional Salaries -,UNRESTRICTED,$738.48
48,J.F. Drake State,90010867,RYAN E SMITH,May,29,2009,Other Contractual Services,TITLE III CARRYOVER,$720.00
48,J.F. Drake State,90010868,DELORIS A SMOTHERS,May,29,2009,Instructional Salaries - Regul,UNRESTRICTED,"$6,713.47"
48,J.F. Drake State,90010868,DELORIS A SMOTHERS,May,29,2009,Instructional Salaries - Tempo,UNRESTRICTED,$720.00
48,J.F. Drake State,90010869,JULIE P SPURGEON,May,29,2009,Support Personnel Salaries - S,UNRESTRICTED,"$1,889.00"
48,J.F. Drake State,90010870,VERLINDSEY B STEWART,May,29,2009,Instructional Salaries - Regul,UNRESTRICTED,"$6,616.48"
48,J.F. Drake State,90010871,MONICA SUDEALL-HAWKINS,May,29,2009,Other Professional Salaries -,UNRESTRICTED,"$4,993.33"
48,J.F. Drake State,90010872,SHANNON SUMMERS,May,29,2009,Instructional Salaries - Tempo,UNRESTRICTED,$572.00
48,J.F. Drake State,90010873,JOY D TORNQUIST,May,29,2009,Instructional Salaries - Tempo,UNRESTRICTED,"$2,354.00"
48,J.F. Drake State,90010874,KRISTIN TREADWAY,May,29,2009,Support Personnel Salaries - S,CAREER COACHES,"$2,336.00"
48,J.F. Drake State,90010875,JOYLYN ERNA TROTMAN,May,29,2009,Other Professional Salaries -,UNRESTRICTED,"$4,465.83"
48,J.F. Drake State,90010876,ELIZABETH A TUGGLE,May,29,2009,Instructional Salaries - Tempo,UNRESTRICTED,"$2,275.00"
48,J.F. Drake State,90010877,GILBERT T TURLEY,May,29,2009,Other Professional Salaries -,UNRESTRICTED,"$6,450.08"
48,J.F. Drake State,90010878,LETITIA E WALKER,May,29,2009,Support Personnel Salaries - S,UNRESTRICTED,"$3,080.50"
48,J.F. Drake State,90010879,THEO NATHAN WALSTON,May,29,2009,Support Personnel Salaries - S,UNRESTRICTED,"$1,009.70"
48,J.F. Drake State,90010879,THEO NATHAN WALSTON,May,29,2009,Hourly Wages,UNRESTRICTED,"$1,207.50"
48,J.F. Drake State,90010880,YVONNE M WHITE,May,29,2009,Support Personnel Salaries - S,UNRESTRICTED,"$1,142.02"
48,J.F. Drake State,90010880,YVONNE M WHITE,May,29,2009,Support Personnel Salaries - S,TITLE III CARRYOVER,"$3,426.06"
48,J.F. Drake State,90010883,RICKY WILLINGHAM,May,29,2009,Support Personnel Salaries - S,CAREER COACHES,"$3,080.50"
48,J.F. Drake State,90010884,GEORGE R WINN,May,29,2009,Instructional Salaries - Regul,UNRESTRICTED,"$5,379.13"
48,J.F. Drake State,90010885,JOHNIKA WORD,May,29,2009,Support Personnel Salaries - S,UNRESTRICTED,"$2,019.00"
48,J.F. Drake State,10029996,BERNEY OFFICE SOLUTIONS,May,21,2009,Furniture and Equipment,UNRESTRICTED,"$7,223.95"
48,J.F. Drake State,10029997,"BURMAX, INC.",May,21,2009,Purchases for Resale,UNRESTRICTED,"$10,903.32"
48,J.F. Drake State,10029998,CDW-G,May,21,2009,Institutional Use,CAREER COACHES,"$2,787.20"
48,J.F. Drake State,10029998,CDW-G,May,21,2009,Materials and Supplies,UNRESTRICTED,$680.00
48,J.F. Drake State,10029999,CENGAGE LEARNING,May,21,2009,Purchases for Resale,UNRESTRICTED,"$18,855.41"
48,J.F. Drake State,10030000,CHEVRON CARD SERVICES,May,21,2009,Gasoline and Oil - Motor Vehic,UNRESTRICTED,$370.50
48,J.F. Drake State,10030001,EUGENE CRAWFORD,May,21,2009,Other Contractual Services,PLANT FUNDS,"$1,000.00"
48,J.F. Drake State,10030002,HSV ALUMNAE CHAPTER DELTA,May,21,2009,Advertising and Promotions,UNRESTRICTED,$400.00
48,J.F. Drake State,10030003,"DYNAMIC SECURITY, INC.",May,21,2009,Other Contractual Services,UNRESTRICTED,"$8,211.84"
48,J.F. Drake State,10030004,ELSEVIER/HESI,May,21,2009,Purchases for Resale,UNRESTRICTED,"$3,059.90"
48,J.F. Drake State,10030005,FEDEX,May,21,2009,Postage,UNRESTRICTED,$94.15
48,J.F. Drake State,10030006,GRAINGER,May,21,2009,Purchases for Resale,UNRESTRICTED,$282.21
48,J.F. Drake State,10030007,STEVEN HESTER,May,21,2009,Other Contractual Services,PLANT FUNDS,$600.00
48,J.F. Drake State,10030008,INDUSTRIAL PRESS,May,21,2009,Purchases for Resale,UNRESTRICTED,$490.72
48,J.F. Drake State,10030009,J. A. MAJORS COMPANY,May,21,2009,Purchases for Resale,UNRESTRICTED,"$2,747.27"
48,J.F. Drake State,10030010,LOWE'S,May,21,2009,Maintenance and Repairs,PLANT FUNDS,"$1,574.57"
48,J.F. Drake State,10030011,MICROCHIP DIRECT,May,21,2009,Purchases for Resale,UNRESTRICTED,$840.80
48,J.F. Drake State,10030012,NORTH AL SICKLE CELL,May,21,2009,Advertising and Promotions,UNRESTRICTED,$250.00
48,J.F. Drake State,10030013,"OFFICE DEPOT, INC.",May,21,2009,Materials and Supplies,PLANT FUNDS,$62.70
48,J.F. Drake State,10030013,"OFFICE DEPOT, INC.",May,21,2009,Materials and Supplies,CAREER COACHES,$439.96
48,J.F. Drake State,10030013,"OFFICE DEPOT, INC.",May,21,2009,Materials and Supplies,UNRESTRICTED,"$1,329.20"
48,J.F. Drake State,10030014,POCKET NURSE,May,21,2009,Purchases for Resale,UNRESTRICTED,$217.85
48,J.F. Drake State,10030015,SCHROFF DEVELOPMENT CORP,May,21,2009,Purchases for Resale,UNRESTRICTED,$421.00
48,J.F. Drake State,10030016,SUCCESS MARKETING,May,21,2009,Advertising and Promotions,UNRESTRICTED,$75.00
48,J.F. Drake State,10030017,THE INTEGRITY GROUP,May,21,2009,Other Contractual Services,UNRESTRICTED,$540.00
48,J.F. Drake State,10030018,PHILLIP TIDWELL,May,21,2009,Other Contractual Services,PLANT FUNDS,$480.00
48,J.F. Drake State,10030019,UPS,May,21,2009,Freight,UNRESTRICTED,$65.00
48,J.F. Drake State,10030020,VERIZON WIRELESS,May,21,2009,Communications,UNRESTRICTED,$521.45
48,J.F. Drake State,10030021,WASTE MANAGEMENT OF NORTH,May,21,2009,Other Contractual Services,UNRESTRICTED,"$1,279.21"
48,J.F. Drake State,10030022,XEROX CORPORATION,May,21,2009,Other Contractual Services,,$134.89
48,J.F. Drake State,10030023,4IMPRINT,May,21,2009,Purchases for Resale,UNRESTRICTED,"$2,363.00"
48,J.F. Drake State,20037914,CDW-G,May,21,2009,Materials and Supplies,TITLE III CARRYOVER,"$2,777.80"
48,J.F. Drake State,20037915,ADAM CLARK,May,21,2009,In-State Travel,,$150.00
48,J.F. Drake State,20037916,MARTHA DUBEY,May,21,2009,In-State Travel,TITLE III CARRYOVER,$123.96
48,J.F. Drake State,20037917,INDIANA FURNITURE,May,21,2009,Materials and Supplies,,"$11,054.08"
48,J.F. Drake State,20037918,MONTIE PARKS,May,21,2009,Out-of-State Travel,NAT'L SCIENCE FOUNDATION,$226.64
48,J.F. Drake State,20037919,"RAYMOND, ALICE",May,21,2009,In-State Travel,ALLIED HEALTH CARRYOVER,$210.10
48,J.F. Drake State,20037919,"RAYMOND, ALICE",May,21,2009,Employee Taxable Per Diem,ALLIED HEALTH CARRYOVER,$11.25
48,J.F. Drake State,10030025,COSTCO WHOLESALE,May,21,2009,Materials and Supplies,UNRESTRICTED,$150.00
48,J.F. Drake State,20037893,AACUBO,May,19,2009,In-State Travel,TITLE III CARRYOVER,$450.00
48,J.F. Drake State,20037894,AUSTIN COMM. COLLEGE,May,19,2009,Out-of-State Travel,ALLIED HEALTH CARRYOVER,$399.00
48,J.F. Drake State,20037895,BERNEY OFFICE SOLUTIONS,May,19,2009,Materials and Supplies,TITLE III CARRYOVER,"$22,034.20"
48,J.F. Drake State,20037896,"BURMAX, INC.",May,19,2009,Materials and Supplies,,$395.24
48,J.F. Drake State,20037897,KEMBA CHAMBERS,May,19,2009,In-State Travel,TITLE III CARRYOVER,$550.60
48,J.F. Drake State,20037898,BRENDA H. FRIEND,May,19,2009,In-State Travel,TITLE III CARRYOVER,$86.06
48,J.F. Drake State,20037898,BRENDA H. FRIEND,May,19,2009,Employee Taxable Per Diem,TITLE III CARRYOVER,$11.25
48,J.F. Drake State,20037899,GRAINGER,May,19,2009,Materials and Supplies,,$279.82
48,J.F. Drake State,20037900,"HOSPEQ, INC",May,19,2009,Materials and Supplies,ALLIED HEALTH CARRYOVER,"$2,529.33"
48,J.F. Drake State,20037903,"MCALPINE, HELEN",May,19,2009,Out-of-State Travel,TITLE III CARRYOVER,$124.26
48,J.F. Drake State,20037903,"MCALPINE, HELEN",May,19,2009,In-State Travel,TITLE III CARRYOVER,$225.00
48,J.F. Drake State,20037904,MOORE MEDICAL CORP,May,19,2009,Materials and Supplies,ALLIED HEALTH CARRYOVER,"$2,920.69"
48,J.F. Drake State,20037905,NASCO FORT ATKINSON,May,19,2009,Materials and Supplies,ALLIED HEALTH CARRYOVER,$143.45
48,J.F. Drake State,20037906,"OFFICE DEPOT, INC.",May,19,2009,Materials and Supplies,TITLE III CARRYOVER,"$1,558.78"
48,J.F. Drake State,20037906,"OFFICE DEPOT, INC.",May,19,2009,Materials and Supplies,ALLIED HEALTH CARRYOVER,$109.99
48,J.F. Drake State,20037907,"PRUITT, FREDERICK",May,19,2009,In-State Travel,,$300.00
48,J.F. Drake State,20037908,"SHOTTS, LESLEY",May,19,2009,In-State Travel,TITLE III CARRYOVER,$396.60
48,J.F. Drake State,20037909,TUSCALOOSA LIBRARY BINDER,May,19,2009,Books,TITLE III CARRYOVER,"$1,414.70"
48,J.F. Drake State,20037912,"OFFICE DEPOT, INC.",May,19,2009,Materials and Supplies,TITLE III CARRYOVER,"$3,989.04"
48,J.F. Drake State,10029932,CALVIN DRAKE,May,15,2009,Institutional Use,UNRESTRICTED,$200.00
48,J.F. Drake State,10029915,AVNET ELECTRONICS,May,14,2009,Purchases for Resale,UNRESTRICTED,"$3,048.16"
48,J.F. Drake State,10029916,HORACE CARNEY,May,14,2009,Institutional Use,UNRESTRICTED,$250.00
48,J.F. Drake State,10029919,GOODHEART-WILCOX COMPANY,May,14,2009,Purchases for Resale,UNRESTRICTED,"$2,488.05"
48,J.F. Drake State,10029920,KUDZU PRODUCTION,May,14,2009,Advertising and Promotions,UNRESTRICTED,$380.00
48,J.F. Drake State,10029921,LOWE'S,May,14,2009,Maintenance and Repairs,PLANT FUNDS,$48.72
48,J.F. Drake State,10029923,OAK HALL CAP & GOWN CO,May,14,2009,Institutional Use,UNRESTRICTED,"$1,030.35"
48,J.F. Drake State,10029924,PARADIGM PUBLISHING,May,14,2009,Purchases for Resale,UNRESTRICTED,$400.14
48,J.F. Drake State,10029925,SCHROFF DEVELOPMENT CORP,May,14,2009,Purchases for Resale,UNRESTRICTED,"$1,027.00"
48,J.F. Drake State,10029926,PHILLIP TIDWELL,May,14,2009,Other Contractual Services,PLANT FUNDS,$225.00
48,J.F. Drake State,10029928,EUGENE CRAWFORD,May,14,2009,Other Contractual Services,PLANT FUNDS,"$1,000.00"
48,J.F. Drake State,10029929,STEVEN HESTER,May,14,2009,Other Contractual Services,PLANT FUNDS,$600.00
48,J.F. Drake State,10029930,PHILLIP TIDWELL,May,14,2009,Other Contractual Services,PLANT FUNDS,$600.00
48,J.F. Drake State,10029901,CONDITIONED AIR SOLUTIONS,May,12,2009,Maintenance and Repairs,UNRESTRICTED,$143.00
48,J.F. Drake State,10029903,"DYNAMIC SECURITY, INC.",May,12,2009,Other Contractual Services,UNRESTRICTED,"$4,105.92"
48,J.F. Drake State,10029904,ENGINEERED MAINTENACE SER,May,12,2009,Maintenance and Repairs,UNRESTRICTED,$46.98
48,J.F. Drake State,10029905,FEDEX,May,12,2009,Postage,UNRESTRICTED,$67.85
48,J.F. Drake State,10029906,GREY HOUSE PUB,May,12,2009,Materials and Supplies,UNRESTRICTED,$191.00
48,J.F. Drake State,10029907,KOORSEN PROTECTION SERVIC,May,12,2009,Other Contractual Services,UNRESTRICTED,$407.91
48,J.F. Drake State,10029908,SUSAN T. KREULEN,May,12,2009,In-State Travel,UNRESTRICTED,$39.60
48,J.F. Drake State,10029909,"MCALPINE, HELEN",May,12,2009,In-State Travel,UNRESTRICTED,$69.36
48,J.F. Drake State,10029910,MULLINS FIVE POINTS RENTA,May,12,2009,Materials and Supplies,UNRESTRICTED,$57.58
48,J.F. Drake State,10029911,MULLINS FIVE POINTS RENTA,May,12,2009,Materials and Supplies,UNRESTRICTED,$200.97
48,J.F. Drake State,10029912,SAM'S CLUB/WALMART,May,12,2009,Materials and Supplies,UNRESTRICTED,$10.00
48,J.F. Drake State,10029912,SAM'S CLUB/WALMART,May,12,2009,Investment Transaction Expense,UNRESTRICTED,$380.07
48,J.F. Drake State,10029913,WASTE MANAGEMENT OF NORTH,May,12,2009,Other Contractual Services,UNRESTRICTED,$305.98
48,J.F. Drake State,10029882,EUGENE CRAWFORD,May,8,2009,Other Contractual Services,PLANT FUNDS,$925.00
48,J.F. Drake State,10029883,STEVEN HESTER,May,8,2009,Other Contractual Services,PLANT FUNDS,$240.00
48,J.F. Drake State,10029884,JAMES REED,May,8,2009,Other Contractual Services,PLANT FUNDS,$555.00
48,J.F. Drake State,20037874,AMERICAN EXPRESS,May,7,2009,Out-of-State Travel,,$310.00
48,J.F. Drake State,20037875,BUSINESS SYSTEMS & CONSUL,May,7,2009,Materials and Supplies,TITLE III CARRYOVER,"$5,854.00"
48,J.F. Drake State,20037876,KEMBA CHAMBERS,May,7,2009,In-State Travel,TITLE III CARRYOVER,$458.40
48,J.F. Drake State,20037877,CONTEMPORARY FORUMS,May,7,2009,Out-of-State Travel,TITLE III CARRYOVER,$805.00
48,J.F. Drake State,20037878,CONVERGED RESOURCE INTEG,May,7,2009,Service Contracts on Equipment,TITLE III CARRYOVER,$98.50
48,J.F. Drake State,20037879,HAWORTH,May,7,2009,Materials and Supplies,TITLE III CARRYOVER,"$6,159.30"
48,J.F. Drake State,20037880,"HUGHES, PATRICIA",May,7,2009,In-State Travel,TITLE III CARRYOVER,$172.70
48,J.F. Drake State,20037881,HYATT REGENCY LA JOLLA,May,7,2009,Out-of-State Travel,TITLE III CARRYOVER,$896.24
48,J.F. Drake State,20037882,JACKIE SMITH,May,7,2009,In-State Travel,ALLIED HEALTH CARRYOVER,$49.50
48,J.F. Drake State,20037883,"NATIONAL SEMINARS, INC.",May,7,2009,In-State Travel,TITLE III CARRYOVER,$199.00
48,J.F. Drake State,20037884,"OFFICE DEPOT, INC.",May,7,2009,Materials and Supplies,ALLIED HEALTH CARRYOVER,$22.26
48,J.F. Drake State,20037885,"POPE, GWENDOLYN M.",May,7,2009,In-State Travel,,$170.00
48,J.F. Drake State,20037886,PROGRESSIVE GIFTS& INCENT,May,7,2009,Materials and Supplies,NAT'L SCIENCE FOUNDATION,"$4,429.08"
48,J.F. Drake State,20037887,SERVICE CLEANERS AND LAUN,May,7,2009,Materials and Supplies,,$198.46
48,J.F. Drake State,20037888,"SIMS, PATRICIA G.",May,7,2009,In-State Travel,TITLE III CARRYOVER,$150.00
48,J.F. Drake State,20037889,"STEWART, VERLINDSEY B.",May,7,2009,In-State Travel,,$284.40
48,J.F. Drake State,20037890,"STEWART, VERLINDSEY B.",May,7,2009,Out-of-State Travel,,"$1,440.00"
48,J.F. Drake State,20037891,U.N.A.,May,7,2009,In-State Travel,TITLE III CARRYOVER,$750.00
48,J.F. Drake State,10029872,MCGRAW HILL EDUCATION,May,7,2009,Materials and Supplies,UNRESTRICTED,$779.64
48,J.F. Drake State,10029874,SAINT PORTRAIT DESIGNERS,May,7,2009,Materials and Supplies,UNRESTRICTED,$39.95
48,J.F. Drake State,10029875,SAM'S CLUB/WALMART,May,7,2009,Materials and Supplies,UNRESTRICTED,$369.86
48,J.F. Drake State,14858,WINFRED L LOGAN,May,6,2009,Support Personnel Salaries - S,UNRESTRICTED,$768.00
48,J.F. Drake State,10029862,SAM'S CLUB/WALMART,May,5,2009,Materials and Supplies,UNRESTRICTED,$300.00
48,J.F. Drake State,10029867,CM & F GROUP INC.,May,5,2009,Purchases for Resale,AUXILIARY,$120.00
48,J.F. Drake State,10029869,PHILLIP TIDWELL,May,5,2009,Other Contractual Services,PLANT FUNDS,$345.00
48,J.F. Drake State,75160000,AT&T,May,4,2009,Communications,UNRESTRICTED,$48.19
48,J.F. Drake State,75170000,AT&T,May,4,2009,Communications,UNRESTRICTED,$91.64
48,J.F. Drake State,75180000,AT&T,May,4,2009,Communications,UNRESTRICTED,$133.44
48,J.F. Drake State,75190000,AT&T,May,4,2009,Communications,UNRESTRICTED,$392.20
48,J.F. Drake State,75200000,AT&T,May,4,2009,Communications,UNRESTRICTED,"$2,847.43"
48,J.F. Drake State,75220000,COMCAST,May,4,2009,Communications,UNRESTRICTED,$122.81
48,J.F. Drake State,75230000,COOK'S PEST CONTROL,May,4,2009,Other Contractual Services,UNRESTRICTED,$67.00
48,J.F. Drake State,75240000,COOK'S PEST CONTROL,May,4,2009,Other Contractual Services,UNRESTRICTED,$249.00
48,J.F. Drake State,75250000,HUNTSVILLE UTILITIES,May,4,2009,Gas and Heating Fuel,UNRESTRICTED,"$8,902.66"
48,J.F. Drake State,75260000,HUNTSVILLE UTILITIES,May,4,2009,Water and Sewer,UNRESTRICTED,$19.66
48,J.F. Drake State,75270000,HUNTSVILLE UTILITIES,May,4,2009,Water and Sewer,UNRESTRICTED,$388.15
48,J.F. Drake State,75280000,HUNTSVILLE UTILITIES,May,4,2009,Electricity,UNRESTRICTED,"$3,096.43"
48,J.F. Drake State,75280000,HUNTSVILLE UTILITIES,May,4,2009,Gas and Heating Fuel,UNRESTRICTED,$575.70
48,J.F. Drake State,75290000,HUNTSVILLE UTILITIES,May,4,2009,Water and Sewer,UNRESTRICTED,$18.81
48,J.F. Drake State,75300000,HUNTSVILLE UTILITIES,May,4,2009,Electricity,UNRESTRICTED,"$8,309.79"
48,J.F. Drake State,75300000,HUNTSVILLE UTILITIES,May,4,2009,Water and Sewer,UNRESTRICTED,$824.63
48,J.F. Drake State,75310000,HUNTSVILLE UTILITIES,May,4,2009,Water and Sewer,UNRESTRICTED,$3.99
48,J.F. Drake State,75320000,HUNTSVILLE UTILITIES,May,4,2009,Communications,UNRESTRICTED,$148.08
48,J.F. Drake State,75330000,WOW! BUSINESS,May,4,2009,Communications,UNRESTRICTED,$102.67
48,J.F. Drake State,75340000,PITNEY BOWES,May,4,2009,Postage,UNRESTRICTED,$700.00
48,J.F. Drake State,10029838,ALABAMA FLAG & BANNER,May,1,2009,Materials and Supplies,UNRESTRICTED,$308.00
48,J.F. Drake State,10029839,CDW-G,May,1,2009,Other Contractual Services,UNRESTRICTED,"$1,482.38"
48,J.F. Drake State,10029840,CENGAGE LEARNING,May,1,2009,Purchases for Resale,UNRESTRICTED,"$4,155.49"
48,J.F. Drake State,10029841,COUNCIL ON OCCUP. EDUC.,May,1,2009,Memberships,UNRESTRICTED,"$3,610.00"
48,J.F. Drake State,10029842,EUGENE CRAWFORD,May,1,2009,Other Contractual Services,PLANT FUNDS,$975.00
48,J.F. Drake State,10029843,CTB/MCGRAW HILL CLIENT,May,1,2009,Materials and Supplies,UNRESTRICTED,"$1,084.21"
48,J.F. Drake State,10029844,DEAF ACCESS,May,1,2009,Other Contractual Services,UNRESTRICTED,"$1,367.00"
48,J.F. Drake State,10029845,EVOLVE REACH,May,1,2009,Purchases for Resale,AUXILIARY,$42.00
48,J.F. Drake State,10029846,STEVEN HESTER,May,1,2009,Other Contractual Services,PLANT FUNDS,$585.00
48,J.F. Drake State,10029848,SUSAN T. KREULEN,May,1,2009,Materials and Supplies,UNRESTRICTED,$360.10
48,J.F. Drake State,10029849,"LANIER,FORD,SHAVER &",May,1,2009,Legal Services,UNRESTRICTED,"$5,136.25"
48,J.F. Drake State,10029850,LOWE'S,May,1,2009,Materials and Supplies,ARMY GRANT,$510.00
48,J.F. Drake State,10029851,"MCALPINE, HELEN",May,1,2009,In-State Travel,UNRESTRICTED,$22.50
48,J.F. Drake State,10029851,"MCALPINE, HELEN",May,1,2009,Materials and Supplies,UNRESTRICTED,$395.16
48,J.F. Drake State,10029852,MID CITY SUPPLY CO,May,1,2009,Materials and Supplies,UNRESTRICTED,$443.04
48,J.F. Drake State,10029853,NAAACC,May,1,2009,Advertising and Promotions,UNRESTRICTED,$275.00
48,J.F. Drake State,10029854,QWEST,May,1,2009,Communications,ARMY GRANT,$49.26
48,J.F. Drake State,10029855,JAMES REED,May,1,2009,Other Contractual Services,PLANT FUNDS,$585.00
48,J.F. Drake State,10029857,SERVICE CLEANERS AND LAUN,May,1,2009,Materials and Supplies,UNRESTRICTED,$202.50
48,J.F. Drake State,10029859,SYSCO CENTRAL ALABAMA,May,1,2009,Materials and Supplies,UNRESTRICTED,$21.00
48,J.F. Drake State,10029860,THE INTEGRITY GROUP,May,1,2009,Other Contractual Services,UNRESTRICTED,$495.00
48,J.F. Drake State,14849,TOBY R HOLLOWAY,Apr,30,2009,Instructional Salaries - Tempo,UNRESTRICTED,"$1,301.25"
48,J.F. Drake State,14850,NICHOLAS PAUL KSEPKA,Apr,30,2009,Hourly Wages,UNRESTRICTED,"$1,612.50"
48,J.F. Drake State,14851,JAMES ANTHONY PLENTY,Apr,30,2009,Instructional Salaries - Tempo,UNRESTRICTED,$401.25
48,J.F. Drake State,14852,JACKIE D SANDERS,Apr,30,2009,Instructional Salaries - Tempo,UNRESTRICTED,"$1,821.75"
48,J.F. Drake State,14853,AUGUSTUS SMITH JR,Apr,30,2009,Instructional Salaries - Tempo,UNRESTRICTED,$627.00
48,J.F. Drake State,14854,TOMMY JAMES SPEIGHTS,Apr,30,2009,Instructional Salaries - Tempo,UNRESTRICTED,$380.63
48,J.F. Drake State,14855,JULIUS T TATE,Apr,30,2009,Instructional Salaries - Tempo,UNRESTRICTED,"$1,183.00"
48,J.F. Drake State,14856,MIRIE WESTBROOK III,Apr,30,2009,Instructional Salaries - Tempo,UNRESTRICTED,$900.00
48,J.F. Drake State,90010655,ROBBIE LEE AKINS,Apr,30,2009,Support Personnel Salaries - S,UNRESTRICTED,"$2,112.00"
48,J.F. Drake State,90010656,NICKALOUS D ATCHLEY,Apr,30,2009,Instructional Salaries - Tempo,UNRESTRICTED,$750.00
48,J.F. Drake State,90010657,LYSA AUGUSTIN,Apr,30,2009,Instructional Salaries - Tempo,UNRESTRICTED,$583.00
48,J.F. Drake State,90010658,CAROLYN AVRITTE,Apr,30,2009,Instructional Salaries - Tempo,UNRESTRICTED,"$1,177.00"
48,J.F. Drake State,90010659,JADA M BARRETT,Apr,30,2009,Instructional Salaries - Tempo,UNRESTRICTED,$900.00
48,J.F. Drake State,90010660,BEN BATTLE,Apr,30,2009,Instructional Salaries - Regul,UNRESTRICTED,"$5,706.33"
48,J.F. Drake State,90010662,HAROLD E BATTS,Apr,30,2009,Other Professional Salaries -,UNRESTRICTED,"$8,503.50"
48,J.F. Drake State,90010664,ANGELA NICOLE BELL,Apr,30,2009,Instructional Salaries - Regul,UNRESTRICTED,"$4,675.56"
48,J.F. Drake State,90010666,SHALANA L BROWN,Apr,30,2009,Instructional Salaries - Tempo,UNRESTRICTED,$450.00
48,J.F. Drake State,90010667,NINA BULLOCK,Apr,30,2009,Instructional Salaries - Regul,UNRESTRICTED,"$4,713.33"
48,J.F. Drake State,90010668,LINDA BURRUSS,Apr,30,2009,Instructional Salaries - Tempo,UNRESTRICTED,$750.00
48,J.F. Drake State,90010669,KHALILAH BURTON,Apr,30,2009,Instructional Salaries - Regul,UNRESTRICTED,"$3,506.72"
48,J.F. Drake State,90010669,KHALILAH BURTON,Apr,30,2009,Instructional Salaries - Tempo,UNRESTRICTED,$750.00
48,J.F. Drake State,90010669,KHALILAH BURTON,Apr,30,2009,Instructional Salaries - Regul,NAT'L SCIENCE FOUNDATION,"$1,168.91"
48,J.F. Drake State,90010670,NECHA L BURTON,Apr,30,2009,Support Personnel Salaries - S,UNRESTRICTED,"$2,365.88"
48,J.F. Drake State,90010670,NECHA L BURTON,Apr,30,2009,Support Personnel Salaries - S,TITLE III CARRYOVER,$788.63
48,J.F. Drake State,90010672,KEMBA CHAMBERS,Apr,30,2009,Administrative Salaries- Sched,UNRESTRICTED,"$7,360.41"
48,J.F. Drake State,90010673,ADAM CLARK,Apr,30,2009,Instructional Salaries - Regul,UNRESTRICTED,"$4,637.89"
48,J.F. Drake State,90010673,ADAM CLARK,Apr,30,2009,Instructional Salaries - Tempo,UNRESTRICTED,$450.00
48,J.F. Drake State,90010674,APRIL CLEMENT,Apr,30,2009,Support Personnel Salaries - S,CAREER COACHES,"$2,048.58"
48,J.F. Drake State,90010675,DAVID B CONE,Apr,30,2009,Instructional Salaries - Tempo,UNRESTRICTED,$750.00
48,J.F. Drake State,90010676,TINA COTHREN,Apr,30,2009,Instructional Salaries - Tempo,UNRESTRICTED,$588.50
48,J.F. Drake State,90010677,CHRISTINE H DAVIS,Apr,30,2009,Instructional Salaries - Regul,UNRESTRICTED,"$5,306.33"
48,J.F. Drake State,90010678,MATTIE D DAVIS,Apr,30,2009,Instructional Salaries - Regul,UNRESTRICTED,"$4,972.00"
48,J.F. Drake State,90010679,MARTHA W DUBEY,Apr,30,2009,Support Personnel Salaries - S,UNRESTRICTED,"$4,500.00"
48,J.F. Drake State,90010680,MARY D FISHER,Apr,30,2009,Instructional Salaries - Tempo,UNRESTRICTED,$450.00
48,J.F. Drake State,90010681,BERNELL S FONTENOT,Apr,30,2009,Support Personnel Salaries - S,UNRESTRICTED,"$3,973.25"
48,J.F. Drake State,90010682,EDWIN T FORBES,Apr,30,2009,Instructional Salaries - Regul,UNRESTRICTED,"$3,840.25"
48,J.F. Drake State,90010682,EDWIN T FORBES,Apr,30,2009,Instructional Salaries - Tempo,UNRESTRICTED,$450.00
48,J.F. Drake State,90010683,MIRIAM B FRANK,Apr,30,2009,Instructional Salaries - Regul,UNRESTRICTED,"$4,840.92"
48,J.F. Drake State,90010684,MATTIE B FREEMAN,Apr,30,2009,Instructional Salaries - Tempo,UNRESTRICTED,"$1,217.13"
48,J.F. Drake State,90010685,BRENDA H FRIEND,Apr,30,2009,Other Professional Salaries -,TITLE III CARRYOVER,"$7,905.25"
48,J.F. Drake State,90010686,KIM GALKOWSKI,Apr,30,2009,Support Personnel Salaries - S,UNRESTRICTED,"$3,972.50"
48,J.F. Drake State,90010687,BONNIE GARRETT,Apr,30,2009,Instructional Salaries - Tempo,UNRESTRICTED,"$1,435.00"
48,J.F. Drake State,90010688,FARRON GIBSON,Apr,30,2009,Support Personnel Salaries - S,NAT'L SCIENCE FOUNDATION,"$2,038.42"
48,J.F. Drake State,90010689,DAMEON L HAGLER,Apr,30,2009,Other Contractual Services,NAT'L SCIENCE FOUNDATION,$780.00
48,J.F. Drake State,90010690,MANELZA CRAWFORD HAMBRICK,Apr,30,2009,Support Personnel Salaries - S,UNRESTRICTED,"$2,336.50"
48,J.F. Drake State,90010691,WILLIAM HAMPTON,Apr,30,2009,Support Personnel Salaries - S,UNRESTRICTED,"$2,112.00"
48,J.F. Drake State,90010692,ALIREZA HASSANZADEH,Apr,30,2009,Other Contractual Services,NAT'L SCIENCE FOUNDATION,"$1,070.00"
48,J.F. Drake State,90010693,KENNETH DOUGLAS HAYNES,Apr,30,2009,Hourly Wages,Q-TRACK,$905.00
48,J.F. Drake State,90010694,CAROLYN HENDERSON,Apr,30,2009,Instructional Salaries - Regul,UNRESTRICTED,"$4,266.94"
48,J.F. Drake State,90010694,CAROLYN HENDERSON,Apr,30,2009,Instructional Salaries - Tempo,UNRESTRICTED,$450.00
48,J.F. Drake State,90010694,CAROLYN HENDERSON,Apr,30,2009,Instructional Salaries - Regul,NAT'L SCIENCE FOUNDATION,$853.39
48,J.F. Drake State,90010695,DEXTER R HENRY,Apr,30,2009,Instructional Salaries - Regul,UNRESTRICTED,"$6,120.44"
48,J.F. Drake State,90010695,DEXTER R HENRY,Apr,30,2009,Instructional Salaries - Tempo,UNRESTRICTED,$750.00
48,J.F. Drake State,90010696,KARL W HENRY SR,Apr,30,2009,Instructional Salaries - Tempo,UNRESTRICTED,"$2,902.50"
48,J.F. Drake State,90010696,KARL W HENRY SR,Apr,30,2009,Instructional Salaries - Regul,UNRESTRICTED,"$5,435.09"
48,J.F. Drake State,90010696,KARL W HENRY SR,Apr,30,2009,Instructional Salaries - Regul,NAT'L SCIENCE FOUNDATION,"$1,678.36"
48,J.F. Drake State,90010697,DORIS HINTON,Apr,30,2009,Instructional Salaries - Regul,UNRESTRICTED,"$4,861.56"
48,J.F. Drake State,90010698,CYNTHIA F HOLDEN,Apr,30,2009,Instructional Salaries - Tempo,UNRESTRICTED,$267.50
48,J.F. Drake State,90010699,PATRICIA HUGHES,Apr,30,2009,Administrative Salaries- Sched,UNRESTRICTED,"$7,747.64"
48,J.F. Drake State,90010701,JAN J HYMAN,Apr,30,2009,Support Personnel Salaries - S,UNRESTRICTED,"$2,187.58"
48,J.F. Drake State,90010703,DEMARIS JENKINS,Apr,30,2009,Instructional Salaries - Tempo,UNRESTRICTED,$450.00
48,J.F. Drake State,90010704,DONYALE D JONES,Apr,30,2009,Support Personnel Salaries - S,TITLE III CARRYOVER,"$3,303.42"
48,J.F. Drake State,90010705,PETURA M JONES,Apr,30,2009,Other Contractual Services,NAT'L SCIENCE FOUNDATION,$840.00
48,J.F. Drake State,90010706,CHERYL P KEMP,Apr,30,2009,Instructional Salaries - Tempo,UNRESTRICTED,"$2,140.00"
48,J.F. Drake State,90010707,ANNIE R KNIGHT,Apr,30,2009,Instructional Salaries - Tempo,UNRESTRICTED,$450.00
48,J.F. Drake State,90010708,SUSAN KREULEN,Apr,30,2009,Instructional Salaries - Regul,UNRESTRICTED,"$2,750.00"
48,J.F. Drake State,90010708,SUSAN KREULEN,Apr,30,2009,Other Professional Salaries -,UNRESTRICTED,$395.48
48,J.F. Drake State,90010709,HONG THUYDUC LAM,Apr,30,2009,Instructional Salaries - Regul,UNRESTRICTED,"$5,527.33"
48,J.F. Drake State,90010710,JOYCE P LAMAR,Apr,30,2009,Support Personnel Salaries - S,UNRESTRICTED,"$1,632.00"
48,J.F. Drake State,90010711,JOAN C LEATHERWOOD,Apr,30,2009,Instructional Salaries - Tempo,READY TO WORK,"$2,280.00"
48,J.F. Drake State,90010712,JOEL M LINER,Apr,30,2009,Instructional Salaries - Tempo,UNRESTRICTED,$900.00
48,J.F. Drake State,90010713,MICHEAL V MAXTON,Apr,30,2009,Instructional Salaries - Tempo,UNRESTRICTED,$450.00
48,J.F. Drake State,90010714,HELEN T MCALPINE,Apr,30,2009,Administrative Salaries- Sched,UNRESTRICTED,"$14,266.45"
48,J.F. Drake State,90010714,HELEN T MCALPINE,Apr,30,2009,President's Expense Allowance,UNRESTRICTED,$200.00
48,J.F. Drake State,90010714,HELEN T MCALPINE,Apr,30,2009,Housing Allowance,UNRESTRICTED,"$1,000.00"
48,J.F. Drake State,90010715,DEMETIUS L MCCARTY,Apr,30,2009,Support Personnel Salaries - S,UNRESTRICTED,"$1,536.00"
48,J.F. Drake State,90010716,JERRY L MCCAULLEY,Apr,30,2009,Instructional Salaries - Tempo,UNRESTRICTED,"$1,435.00"
48,J.F. Drake State,90010717,ANTHONY MCDANIELS,Apr,30,2009,Support Personnel Salaries - S,CAREER COACHES,"$2,048.58"
48,J.F. Drake State,90010718,BOBBY F MCDONALD,Apr,30,2009,Instructional Salaries - Tempo,UNRESTRICTED,$900.00
48,J.F. Drake State,90010719,SCOTTY MCLAUGHLIN,Apr,30,2009,Instructional Salaries - Regul,UNRESTRICTED,"$7,016.44"
48,J.F. Drake State,90010720,PAMELA F MCTILLER,Apr,30,2009,Instructional Salaries - Tempo,UNRESTRICTED,$450.00
48,J.F. Drake State,90010721,DEBORAH A MILLING,Apr,30,2009,Instructional Salaries - Regul,UNRESTRICTED,"$4,590.33"
48,J.F. Drake State,90010722,SAMMY J MILTON,Apr,30,2009,Support Personnel Salaries - S,UNRESTRICTED,"$3,452.83"
48,J.F. Drake State,90010723,PREMA A MONTEIRO,Apr,30,2009,Instructional Salaries - Regul,UNRESTRICTED,"$4,527.33"
48,J.F. Drake State,90010723,PREMA A MONTEIRO,Apr,30,2009,Instructional Salaries - Tempo,UNRESTRICTED,$900.00
48,J.F. Drake State,90010724,DANA MOORE,Apr,30,2009,Other Professional Salaries -,TITLE III CARRYOVER,"$8,503.50"
48,J.F. Drake State,90010725,MARY JO MORAN,Apr,30,2009,Instructional Salaries - Tempo,UNRESTRICTED,$674.10
48,J.F. Drake State,90010726,BRUCE D MORRISON,Apr,30,2009,Support Personnel Salaries - S,UNRESTRICTED,"$4,047.25"
48,J.F. Drake State,90010727,KATHRYN B NEAL,Apr,30,2009,Other Professional Salaries -,UNRESTRICTED,"$7,905.25"
48,J.F. Drake State,90010729,KAREN NEIR,Apr,30,2009,Instructional Salaries - Tempo,UNRESTRICTED,"$1,765.50"
48,J.F. Drake State,90010730,JENNIFER O'LINGER,Apr,30,2009,Support Personnel Salaries - S,UNRESTRICTED,"$3,079.83"
48,J.F. Drake State,90010731,DONALD ORR,Apr,30,2009,Support Personnel Salaries - S,UNRESTRICTED,"$3,601.25"
48,J.F. Drake State,90010732,MONTIE D PARKS,Apr,30,2009,Support Personnel Salaries - S,NAT'L SCIENCE FOUNDATION,"$3,526.88"
48,J.F. Drake State,90010733,JARROD PATTERSON,Apr,30,2009,Other Contractual Services,TITLE III CARRYOVER,"$1,170.00"
48,J.F. Drake State,90010734,WILLIE C PATTON,Apr,30,2009,Instructional Salaries - Tempo,UNRESTRICTED,"$1,435.00"
48,J.F. Drake State,90010735,JAMES W PLEASURE,Apr,30,2009,Instructional Salaries - Tempo,UNRESTRICTED,"$2,505.00"
48,J.F. Drake State,90010736,GWENDOLYN D POPE,Apr,30,2009,Instructional Salaries - Regul,UNRESTRICTED,"$5,540.58"
48,J.F. Drake State,90010736,GWENDOLYN D POPE,Apr,30,2009,Instructional Salaries - Tempo,UNRESTRICTED,$900.00
48,J.F. Drake State,90010737,KARRIE PRATT,Apr,30,2009,Instructional Salaries - Tempo,UNRESTRICTED,$481.50
48,J.F. Drake State,90010738,FREDRICK O PRUITT,Apr,30,2009,Instructional Salaries - Regul,UNRESTRICTED,"$4,675.56"
48,J.F. Drake State,90010738,FREDRICK O PRUITT,Apr,30,2009,Instructional Salaries - Tempo,UNRESTRICTED,"$1,702.50"
48,J.F. Drake State,90010739,MICHAEL RADDEN,Apr,30,2009,Instructional Salaries - Tempo,UNRESTRICTED,$450.00
48,J.F. Drake State,90010740,LORAINE RAGIN,Apr,30,2009,Instructional Salaries - Tempo,UNRESTRICTED,"$2,103.91"
48,J.F. Drake State,90010741,WELDON RAGLAND,Apr,30,2009,Instructional Salaries - Tempo,UNRESTRICTED,$900.00
48,J.F. Drake State,90010742,ALICE G RAYMOND,Apr,30,2009,Instructional Salaries - Regul,UNRESTRICTED,"$6,520.44"
48,J.F. Drake State,90010743,JOYCE L RENTZ,Apr,30,2009,Instructional Salaries - Tempo,UNRESTRICTED,$450.00
48,J.F. Drake State,90010743,JOYCE L RENTZ,Apr,30,2009,Instructional Salaries - Regul,UNRESTRICTED,"$6,706.33"
48,J.F. Drake State,90010744,JOHN REUTTER III,Apr,30,2009,Administrative Salaries- Sched,UNRESTRICTED,"$8,205.34"
48,J.F. Drake State,90010745,MORGAN ALBERT RICHARDSON,Apr,30,2009,Hourly Wages,Q-TRACK,$614.10
48,J.F. Drake State,90010746,MARTHA J ROBERTS,Apr,30,2009,Support Personnel Salaries - S,UNRESTRICTED,"$4,940.33"
48,J.F. Drake State,90010747,CHRISTINA R SCISSUM,Apr,30,2009,Other Professional Salaries -,TITLE III CARRYOVER,"$4,012.50"
48,J.F. Drake State,90010748,JACQUELINE M SHIVERS,Apr,30,2009,Instructional Salaries - Tempo,UNRESTRICTED,"$1,625.00"
48,J.F. Drake State,90010749,LESLEY SHOTTS,Apr,30,2009,Instructional Salaries - Tempo,UNRESTRICTED,$267.50
48,J.F. Drake State,90010749,LESLEY SHOTTS,Apr,30,2009,Other Professional Salaries -,UNRESTRICTED,"$4,044.75"
48,J.F. Drake State,90010750,JOHN R SHROUT,Apr,30,2009,Support Personnel Salaries - S,UNRESTRICTED,"$3,750.17"
48,J.F. Drake State,90010752,ANGELA P SIMMONS,Apr,30,2009,Instructional Salaries - Tempo,UNRESTRICTED,$675.44
48,J.F. Drake State,90010753,COLLIS H SIMS III,Apr,30,2009,Instructional Salaries - Regul,UNRESTRICTED,"$4,565.11"
48,J.F. Drake State,90010753,COLLIS H SIMS III,Apr,30,2009,Instructional Salaries - Tempo,UNRESTRICTED,$750.00
48,J.F. Drake State,90010754,PATRICIA GORDON SIMS,Apr,30,2009,Administrative Salaries- Sched,TITLE III CARRYOVER,"$8,372.01"
48,J.F. Drake State,90010755,JACKIE SMITH,Apr,30,2009,Other Professional Salaries -,ALLIED HEALTH CARRYOVER,"$2,707.00"
48,J.F. Drake State,90010756,RYAN E SMITH,Apr,30,2009,Instructional Salaries - Tempo,UNRESTRICTED,$133.75
48,J.F. Drake State,90010756,RYAN E SMITH,Apr,30,2009,Other Contractual Services,TITLE III CARRYOVER,$830.00
48,J.F. Drake State,90010757,DELORIS A SMOTHERS,Apr,30,2009,Instructional Salaries - Regul,UNRESTRICTED,"$6,713.44"
48,J.F. Drake State,90010757,DELORIS A SMOTHERS,Apr,30,2009,Instructional Salaries - Tempo,UNRESTRICTED,$900.00
48,J.F. Drake State,90010758,JULIE P SPURGEON,Apr,30,2009,Support Personnel Salaries - S,UNRESTRICTED,"$1,889.00"
48,J.F. Drake State,90010759,VERLINDSEY B STEWART,Apr,30,2009,Instructional Salaries - Regul,UNRESTRICTED,"$6,616.44"
48,J.F. Drake State,90010760,MONICA SUDEALL-HAWKINS,Apr,30,2009,Instructional Salaries - Tempo,UNRESTRICTED,$900.00
48,J.F. Drake State,90010760,MONICA SUDEALL-HAWKINS,Apr,30,2009,Other Professional Salaries -,UNRESTRICTED,"$4,993.33"
48,J.F. Drake State,90010761,SHANNON SUMMERS,Apr,30,2009,Instructional Salaries - Tempo,UNRESTRICTED,$638.00
48,J.F. Drake State,90010762,RICHARD M SWAIM,Apr,30,2009,Instructional Salaries - Tempo,UNRESTRICTED,$750.00
48,J.F. Drake State,90010763,JOY D TORNQUIST,Apr,30,2009,Instructional Salaries - Tempo,UNRESTRICTED,"$1,952.75"
48,J.F. Drake State,90010764,KRISTIN TREADWAY,Apr,30,2009,Support Personnel Salaries - S,CAREER COACHES,"$1,832.94"
48,J.F. Drake State,90010765,JOYLYN ERNA TROTMAN,Apr,30,2009,Other Professional Salaries -,UNRESTRICTED,"$4,465.83"
48,J.F. Drake State,90010766,ELIZABETH A TUGGLE,Apr,30,2009,Instructional Salaries - Tempo,UNRESTRICTED,"$2,171.00"
48,J.F. Drake State,90010767,GILBERT T TURLEY,Apr,30,2009,Other Professional Salaries -,UNRESTRICTED,"$6,450.08"
48,J.F. Drake State,90010768,LETITIA E WALKER,Apr,30,2009,Support Personnel Salaries - S,UNRESTRICTED,"$3,080.50"
48,J.F. Drake State,90010769,THEO NATHAN WALSTON,Apr,30,2009,Hourly Wages,UNRESTRICTED,"$1,470.00"
48,J.F. Drake State,90010770,RUSTIN D WEBSTER,Apr,30,2009,Instructional Salaries - Tempo,UNRESTRICTED,$750.00
48,J.F. Drake State,90010771,YVONNE M WHITE,Apr,30,2009,Support Personnel Salaries - S,UNRESTRICTED,"$1,142.02"
48,J.F. Drake State,90010771,YVONNE M WHITE,Apr,30,2009,Support Personnel Salaries - S,TITLE III CARRYOVER,"$3,426.06"
48,J.F. Drake State,90010774,SANOYIA L WILLIAMS,Apr,30,2009,Instructional Salaries - Tempo,UNRESTRICTED,$450.00
48,J.F. Drake State,90010775,DAWN WILLIAMSON-ASHLEY,Apr,30,2009,Instructional Salaries - Tempo,UNRESTRICTED,$401.25
48,J.F. Drake State,90010776,RICKY WILLINGHAM,Apr,30,2009,Support Personnel Salaries - S,CAREER COACHES,"$2,701.42"
48,J.F. Drake State,90010777,GEORGE R WINN,Apr,30,2009,Instructional Salaries - Regul,UNRESTRICTED,"$5,379.13"
48,J.F. Drake State,90010778,JOHNIKA WORD,Apr,30,2009,Support Personnel Salaries - S,UNRESTRICTED,"$1,893.00"
48,J.F. Drake State,90010779,ANDRAIN YELDELL,Apr,30,2009,Instructional Salaries - Tempo,UNRESTRICTED,$401.25
48,J.F. Drake State,90010780,BONITA YOUNG,Apr,30,2009,Instructional Salaries - Regul,UNRESTRICTED,"$4,230.84"
48,J.F. Drake State,20037849,AMERICAN EXPRESS,Apr,28,2009,Out-of-State Travel,,"$3,314.04"
48,J.F. Drake State,20037850,FBLA-PBL,Apr,28,2009,Materials and Supplies,,"$1,070.00"
48,J.F. Drake State,20037851,HD SUPPLY,Apr,28,2009,Materials and Supplies,ALLIED HEALTH CARRYOVER,$331.80
48,J.F. Drake State,20037852,HILTON ANAHEIM,Apr,28,2009,Out-of-State Travel,,"$5,175.00"
48,J.F. Drake State,20037853,"NOEL-LEVITZ, INC",Apr,28,2009,Out-of-State Travel,TITLE III CARRYOVER,$595.00
48,J.F. Drake State,20037854,DELORIS SMOTHERS,Apr,28,2009,In-State Travel,,$284.40
48,J.F. Drake State,20037856,"SUDEALL, MONICA",Apr,28,2009,Out-of-State Travel,TITLE III CARRYOVER,$385.03
48,J.F. Drake State,10029772,ACT,Apr,28,2009,Materials and Supplies,UNRESTRICTED,$85.00
48,J.F. Drake State,10029773,BALDWIN COOKE COMPANY,Apr,28,2009,Materials and Supplies,UNRESTRICTED,$632.83
48,J.F. Drake State,10029774,CDW-G,Apr,28,2009,Other Contractual Services,UNRESTRICTED,"$4,393.75"
48,J.F. Drake State,10029775,COLONIAL GRAPHICS GROUP,Apr,28,2009,Institutional Use,UNRESTRICTED,"$1,430.00"
48,J.F. Drake State,10029776,DECATUR MORGAN COUNTY,Apr,28,2009,Advertising and Promotions,UNRESTRICTED,$500.00
48,J.F. Drake State,10029777,DIABETIC EXPRESS,Apr,28,2009,Materials and Supplies,UNRESTRICTED,$555.32
48,J.F. Drake State,10029778,"DYNAMIC SECURITY, INC.",Apr,28,2009,Other Contractual Services,UNRESTRICTED,"$4,105.92"
48,J.F. Drake State,10029779,"DYNAMIC SECURITY, INC.",Apr,28,2009,Other Contractual Services,UNRESTRICTED,"$4,105.92"
